{"text_format":"1","workbook":"xlsx","n_sheets":11,"sheets":["BOARD CABINET","HOW TO","BI - COL","BI - DOS","BI - COL DOS","BI - PER","BI - ABO","BI - HON","BI - PRE","BI - HON COL","BI - ECR"],"not_rendered":{"charts":1,"images":2,"macros":1,"external_links":0,"defined_names":10,"comments":0,"pivot_tables":0},"unopened":[],"bounds":{"document_bytes":16777216,"sheet_cells":100000,"rows_first":2000,"rows_last":500,"rows_between":2000,"halvings":0,"cell_chars":16384,"cell_head_chars":4096},"cells_cut":0,"cells_raw":0,"read":"whole","date_system":"1900"}

{"sheet":"BOARD CABINET","index":0,"n_rows":9,"n_cols":22,"rows_kept":9,"cut":false,"hidden":false,"merged":[[3,9,5,9],[0,9,1,10]]}
[null,null,null,null,null,null,null,null,null,"AJOUTER LES NOUVELLES FACTURES"]
[null,null,"SUIVI DES RELANCES CLIENTS"]
[null,null,"Exemple de tableau de bord financier fourni par les équipes Lexis Poly"]
[null,"FACTURATION DU",{"$f":"MIN(Honoraire[DateFacture])","v":"00:00:00"},null,null,null,null,null,null,{"$f":"IFERROR(1-K6/K5,\"-\")","v":"-"},{"$f":"COUNT(Tableau1[FACTURE])","v":0},"NOMBRE DE FACTURES",null,null,"DELAI ACCEPTABLE (J) INFERIEUR A",50]
[null,"AU",{"$f":"MAX(Honoraire[DateFacture])","v":"00:00:00"},null,null,null,null,null,null,null,{"$f":"SUM(Tableau1[MONTANT\nFACTURE (TTC)])","v":0},"TOTAL DES FACTURES",null,null,"DELAI A RISQUE (J) SUPERIEUR A",100]
[null,null,null,null,null,null,null,null,null,null,{"$f":"SUM(Tableau1[MONTANT\nDÛ (TTC)])","v":0},"TOTAL DES SOMMES DÛES"]
[null,{"$f":"COUNTIFS(Honoraire[Numéro de facture présente dans le board],\"\",Honoraire[Solde non nul],TRUE)","v":0},"FACTURES A AJOUTER",null,null,null,null,null,"Adresse email"]
[null,"FACTURE","DATE\nDE FACTURE","DELAIS","AUTEUR DE LA FACTURE","AUTEUR(S) DES PRESTATIONS","SITE","NOM CLIENT","@ CLIENT","REFERENCE DOSSIER","NOM DU DOSSIER","RESPONSABLE DOSSIER","MONTANT\nFACTURE (TTC)","MONTANT\nDÛ (TTC)","NOM DU CONTACT\nA RELANCER","NOTE","RELANCE 1\nINSTRUCTION AVOCAT","RELANCE 1\nDATE DE RELANCE","RELANCE 2\nINSTRUCTION AVOCAT","RELANCE 2\nDATE DE RELANCE","RELANCE 3\nINSTRUCTION AVOCAT","RELANCE 3\nDATE DE RELANCE"]
[null,null,{"$f":"IFERROR(VLOOKUP(Tableau1[[#This Row],[FACTURE]],Honoraire[[Rappel numéro de facture]:[Rappel date de facture]],2,FALSE),\"\")","v":"00:00:00"},{"$f":"TODAY()-Tableau1[[#This Row],[DATE\nDE FACTURE]]","v":45946},{"$f":"IFERROR(VLOOKUP(Tableau1[[#This Row],[FACTURE]],Honoraire[[FactureNumero]:[CollaborateurTrigramme]],14,FALSE),\"\")","v":""},{"$f":"IFERROR(VLOOKUP(Tableau1[[#This Row],[REFERENCE DOSSIER]],Prestation[[Rappel dossier]:[Liste des collaborateurs]],6,FALSE),\"\")","v":"0"},{"$f":"IFERROR(VLOOKUP(VLOOKUP(Tableau1[[#This Row],[FACTURE]],Honoraire[[Rappel numéro de facture]:[Rappel collaborateur ID]],4,FALSE),Collaborateur[],7,FALSE),\"\")","v":""},{"$f":"IFERROR(VLOOKUP(VLOOKUP(Tableau1[[#This Row],[FACTURE]],Honoraire[[Rappel numéro de facture]:[Rappel client ID]],5,FALSE),Personne[],7,FALSE),\"\")","v":""},{"$f":"IFERROR(_xlfn.CONCAT(VLOOKUP(VLOOKUP(Tableau1[[#This Row],[FACTURE]],Honoraire[[Rappel numéro de facture]:[Rappel client ID]],5,FALSE),Personne[],12,FALSE),\" \",VLOOKUP(VLOOKUP(Tableau1[[#This Row],[FACTURE]],Honoraire[[Rappel numéro de facture]:[Rappel client ID]],5,FALSE),Personne[],13,FALSE),\" \",VLOOKUP(VLOOKUP(Tableau1[[#This Row],[FACTURE]],Honoraire[[Rappel numéro de facture]:[Rappel client ID]],5,FALSE),Personne[],14,FALSE)),\"\")","v":""},{"$f":"IFERROR(VLOOKUP(Tableau1[[#This Row],[FACTURE]],Honoraire[[Rappel numéro de facture]:[Rappel dossier code]],6,FALSE),\"\")","v":0},{"$f":"IFERROR(VLOOKUP(Tableau1[[#This Row],[FACTURE]],Honoraire[[Rappel numéro de facture]:[Rappel dossier nom]],7,FALSE),\"\")","v":0},{"$f":"IFERROR(VLOOKUP(Tableau1[[#This Row],[REFERENCE DOSSIER]],Collaborateur_Dossier[[Collaborateur dossier]:[Responsable dossier]],2,FALSE),\"\")","v":""},{"$f":"IFERROR(VLOOKUP(Tableau1[[#This Row],[FACTURE]],Honoraire[[Rappel numéro de facture]:[Rappel total TTC]],8,FALSE),\"\")","v":0},{"$f":"IFERROR(VLOOKUP(Tableau1[[#This Row],[FACTURE]],Honoraire[[Rappel numéro de facture]:[Rappel solde TTC]],9,FALSE),\"\")","v":0}]

{"sheet":"HOW TO","index":1,"n_rows":20,"n_cols":3,"rows_kept":20,"cut":false,"hidden":false,"merged":[]}
[]
[null,"COMMENT IMPORTER VOS DONNEES BI ?"]
[]
[null,"A partir de Lexis Poly"]
[null,null,"Accédez au module ANALYSES"]
[null,null,"Sélectionnez la statistique \"Analyse / BI (CSV uniquement)\""]
[null,null,"Renseignez la période de facturation à extraire"]
[null,null,"Cliquez sur la commande \"Exporter\""]
[null,null,"Une archive copressée est disponible dans votre dossier local \"Téléchargements\""]
[]
[null,"Depuis votre système fichiers, poste local"]
[null,null,"Accédez à votre dossier local \"Téléchargements\""]
[null,null,"Déposez l'archive dans le dossier local \"Export LexisPoly\", accessible dans le répertoire local votre fichier EXCEL est déposé"]
[null,null,"Extraire le contenu de l'archive, écrasez les fichier existants"]
[]
[null,"Depuis votre fichier EXCEL"]
[null,null,"Accédez au bandeau \"Données\""]
[null,null,"Cliquez sur la commande \"Actualiser tout\""]
[null,null,"Vos données sont maintenant à jour"]
[null,null,"Vérifier que les tableaux affichés dans l'onglet \"Board cabinet\" n'affichent pas d'erreur, si c'est le cas, observez les actions proposées"]

{"sheet":"BI - COL","index":2,"n_rows":5,"n_cols":11,"rows_kept":5,"cut":false,"hidden":false,"merged":[]}
[]
[null,"COLLABORATEURS"]
[null,"EXPORT DE DONNEES"]
[]
[null,"CollaborateurId","Trigramme","NomComplet","Civilite","Nom","Prenom","Site","Equipe","Actif","DateFraicheur"]

{"sheet":"BI - DOS","index":3,"n_rows":206,"n_cols":21,"rows_kept":206,"cut":false,"hidden":false,"merged":[]}
[]
[null,"DOSSIERS"]
[null,"EXPORT DE DONNEES"]
[]
[null,"DossierId","DossierCode","DossierNom","PersonneRacineId","PersonneRacineNomComplet","Siren","Siret","Site","Nature","Categorie","TypeDossier","PoleCompetence","DossierEtat","EtatAvancement","DateCreation","DateFactureMin","DateFactureMax","DateArchivage","DateModification","DateFraicheur"]
[null,null,null,null,null,null,null,null,null,null,null,null,null,null,null,null,null,null,"","14/05/2020 00:00:00","2025-10-16T06:50:00"]
[null,null,null,null,null,null,null,null,null,null,null,null,null,null,null,null,null,"2022-06-07","","17/02/2023 00:00:00","2025-10-16T06:50:00"]
[null,null,null,null,null,null,null,null,null,null,null,null,null,null,null,null,null,null,"","30/11/2023 00:00:00","2025-10-16T06:50:00"]
[null,null,null,null,null,null,null,null,null,null,null,null,null,null,null,null,null,"2025-01-20","","02/07/2025 00:00:00","2025-10-16T06:50:00"]
[null,null,null,null,null,null,null,null,null,null,null,null,null,null,null,null,null,"2021-07-12","","25/08/2025 00:00:00","2025-10-16T06:50:00"]
[null,null,null,null,null,null,null,null,null,null,null,null,null,null,null,null,null,null,"","18/09/2019 00:00:00","2025-10-16T06:50:00"]
[null,null,null,null,null,null,null,null,null,null,null,null,null,null,null,null,null,"2023-05-11","","13/10/2025 00:00:00","2025-10-16T06:50:00"]
[null,null,null,null,null,null,null,null,null,null,null,null,null,null,null,null,null,null,"","25/01/2023 00:00:00","2025-10-16T06:50:00"]
[null,null,null,null,null,null,null,null,null,null,null,null,null,null,null,null,null,"2025-09-17","","14/10/2025 00:00:00","2025-10-16T06:50:00"]
[null,null,null,null,null,null,null,null,null,null,null,null,null,null,null,null,null,null,"","08/01/2024 00:00:00","2025-10-16T06:50:00"]
[null,null,null,null,null,null,null,null,null,null,null,null,null,null,null,null,null,"2023-05-09","","09/05/2023 00:00:00","2025-10-16T06:50:00"]
[null,null,null,null,null,null,null,null,null,null,null,null,null,null,null,null,null,"2023-01-27","","13/11/2023 00:00:00","2025-10-16T06:50:00"]
[null,null,null,null,null,null,null,null,null,null,null,null,null,null,null,null,null,null,"","26/03/2019 00:00:00","2025-10-16T06:50:00"]
[null,null,null,null,null,null,null,null,null,null,null,null,null,null,null,null,null,null,"","09/07/2024 00:00:00","2025-10-16T06:50:00"]
[null,null,null,null,null,null,null,null,null,null,null,null,null,null,null,null,null,null,"","10/12/2020 00:00:00","2025-10-16T06:50:00"]
[null,null,null,null,null,null,null,null,null,null,null,null,null,null,null,null,null,"2021-07-09","","11/07/2024 00:00:00","2025-10-16T06:50:00"]
[null,null,null,null,null,null,null,null,null,null,null,null,null,null,null,null,null,null,"","14/05/2020 00:00:00","2025-10-16T06:50:00"]
[null,null,null,null,null,null,null,null,null,null,null,null,null,null,null,null,null,null,"","24/04/2020 00:00:00","2025-10-16T06:50:00"]
[null,null,null,null,null,null,null,null,null,null,null,null,null,null,null,null,null,"2023-05-11","","21/08/2024 00:00:00","2025-10-16T06:50:00"]
[null,null,null,null,null,null,null,null,null,null,null,null,null,null,null,null,null,null,"","21/11/2019 00:00:00","2025-10-16T06:50:00"]
[null,null,null,null,null,null,null,null,null,null,null,null,null,null,null,null,null,"2020-12-02","","08/01/2024 00:00:00","2025-10-16T06:50:00"]
[null,null,null,null,null,null,null,null,null,null,null,null,null,null,null,null,null,"2021-07-12","","14/12/2023 00:00:00","2025-10-16T06:50:00"]
[null,null,null,null,null,null,null,null,null,null,null,null,null,null,null,null,null,"2023-05-09","","09/05/2023 00:00:00","2025-10-16T06:50:00"]
[null,null,null,null,null,null,null,null,null,null,null,null,null,null,null,null,null,null,"","27/01/2020 00:00:00","2025-10-16T06:50:00"]
[null,null,null,null,null,null,null,null,null,null,null,null,null,null,null,null,null,"2020-02-12","","20/06/2023 00:00:00","2025-10-16T06:50:00"]
[null,null,null,null,null,null,null,null,null,null,null,null,null,null,null,null,null,null,"","03/06/2020 00:00:00","2025-10-16T06:50:00"]
[null,null,null,null,null,null,null,null,null,null,null,null,null,null,null,null,null,"2022-05-18","","11/01/2023 00:00:00","2025-10-16T06:50:00"]
[null,null,null,null,null,null,null,null,null,null,null,null,null,null,null,null,null,"2021-07-12","","10/05/2023 00:00:00","2025-10-16T06:50:00"]
[null,null,null,null,null,null,null,null,null,null,null,null,null,null,null,null,null,null,"","14/05/2020 00:00:00","2025-10-16T06:50:00"]
[null,null,null,null,null,null,null,null,null,null,null,null,null,null,null,null,null,null,"","14/05/2020 00:00:00","2025-10-16T06:50:00"]
[null,null,null,null,null,null,null,null,null,null,null,null,null,null,null,null,null,"2020-09-20","","23/02/2023 00:00:00","2025-10-16T06:50:00"]
[null,null,null,null,null,null,null,null,null,null,null,null,null,null,null,null,null,null,"","14/05/2020 00:00:00","2025-10-16T06:50:00"]
[null,null,null,null,null,null,null,null,null,null,null,null,null,null,null,null,null,"2022-11-08","","26/09/2025 00:00:00","2025-10-16T06:50:00"]
[null,null,null,null,null,null,null,null,null,null,null,null,null,null,null,null,null,null,"","27/03/2023 00:00:00","2025-10-16T06:50:00"]
[null,null,null,null,null,null,null,null,null,null,null,null,null,null,null,null,null,null,"","18/05/2020 00:00:00","2025-10-16T06:50:00"]
[null,null,null,null,null,null,null,null,null,null,null,null,null,null,null,null,null,"2021-07-12","","11/01/2023 00:00:00","2025-10-16T06:50:00"]
[null,null,null,null,null,null,null,null,null,null,null,null,null,null,null,null,null,null,"","25/05/2020 00:00:00","2025-10-16T06:50:00"]
[null,null,null,null,null,null,null,null,null,null,null,null,null,null,null,null,null,null,"","10/03/2021 00:00:00","2025-10-16T06:50:00"]
[null,null,null,null,null,null,null,null,null,null,null,null,null,null,null,null,null,null,"","10/03/2021 00:00:00","2025-10-16T06:50:00"]
[null,null,null,null,null,null,null,null,null,null,null,null,null,null,null,null,null,"2022-12-15","06/06/2023 00:00:00","05/06/2025 00:00:00","2025-10-16T06:50:00"]
[null,null,null,null,null,null,null,null,null,null,null,null,null,null,null,null,null,"2020-11-19","","13/06/2022 00:00:00","2025-10-16T06:50:00"]
[null,null,null,null,null,null,null,null,null,null,null,null,null,null,null,null,null,null,"","31/08/2020 00:00:00","2025-10-16T06:50:00"]
[null,null,null,null,null,null,null,null,null,null,null,null,null,null,null,null,null,null,"","04/06/2020 00:00:00","2025-10-16T06:50:00"]
[null,null,null,null,null,null,null,null,null,null,null,null,null,null,null,null,null,null,"","04/06/2020 00:00:00","2025-10-16T06:50:00"]
[null,null,null,null,null,null,null,null,null,null,null,null,null,null,null,null,null,"2023-05-11","","02/07/2025 00:00:00","2025-10-16T06:50:00"]
[null,null,null,null,null,null,null,null,null,null,null,null,null,null,null,null,null,null,"","18/01/2021 00:00:00","2025-10-16T06:50:00"]
[null,null,null,null,null,null,null,null,null,null,null,null,null,null,null,null,null,null,"","08/03/2023 00:00:00","2025-10-16T06:50:00"]
[null,null,null,null,null,null,null,null,null,null,null,null,null,null,null,null,null,null,"","27/09/2024 00:00:00","2025-10-16T06:50:00"]
[null,null,null,null,null,null,null,null,null,null,null,null,null,null,null,null,null,null,"","25/06/2020 00:00:00","2025-10-16T06:50:00"]
[null,null,null,null,null,null,null,null,null,null,null,null,null,null,null,null,null,null,"","26/11/2020 00:00:00","2025-10-16T06:50:00"]
[null,null,null,null,null,null,null,null,null,null,null,null,null,null,null,null,null,null,"","10/09/2020 00:00:00","2025-10-16T06:50:00"]
[null,null,null,null,null,null,null,null,null,null,null,null,null,null,null,null,null,null,"","11/07/2024 00:00:00","2025-10-16T06:50:00"]
[null,null,null,null,null,null,null,null,null,null,null,null,null,null,null,null,null,"2021-07-09","","11/01/2023 00:00:00","2025-10-16T06:50:00"]
[null,null,null,null,null,null,null,null,null,null,null,null,null,null,null,null,null,null,"","17/02/2023 00:00:00","2025-10-16T06:50:00"]
[null,null,null,null,null,null,null,null,null,null,null,null,null,null,null,null,null,null,"","10/09/2020 00:00:00","2025-10-16T06:50:00"]
[null,null,null,null,null,null,null,null,null,null,null,null,null,null,null,null,null,null,"","10/09/2020 00:00:00","2025-10-16T06:50:00"]
[null,null,null,null,null,null,null,null,null,null,null,null,null,null,null,null,null,null,"","04/01/2024 00:00:00","2025-10-16T06:50:00"]
[null,null,null,null,null,null,null,null,null,null,null,null,null,null,null,null,null,"2022-11-23","","26/03/2024 00:00:00","2025-10-16T06:50:00"]
[null,null,null,null,null,null,null,null,null,null,null,null,null,null,null,null,null,"2023-12-14","","01/10/2025 00:00:00","2025-10-16T06:50:00"]
[null,null,null,null,null,null,null,null,null,null,null,null,null,null,null,null,null,null,"","20/06/2023 00:00:00","2025-10-16T06:50:00"]
[null,null,null,null,null,null,null,null,null,null,null,null,null,null,null,null,null,null,"","17/09/2020 00:00:00","2025-10-16T06:50:00"]
[null,null,null,null,null,null,null,null,null,null,null,null,null,null,null,null,null,null,"","17/09/2020 00:00:00","2025-10-16T06:50:00"]
[null,null,null,null,null,null,null,null,null,null,null,null,null,null,null,null,null,null,"","03/02/2023 00:00:00","2025-10-16T06:50:00"]
[null,null,null,null,null,null,null,null,null,null,null,null,null,null,null,null,null,"2020-11-15","","02/04/2024 00:00:00","2025-10-16T06:50:00"]
[null,null,null,null,null,null,null,null,null,null,null,null,null,null,null,null,null,"2020-09-20","","06/09/2022 00:00:00","2025-10-16T06:50:00"]
[null,null,null,null,null,null,null,null,null,null,null,null,null,null,null,null,null,"2023-05-11","","25/10/2023 00:00:00","2025-10-16T06:50:00"]
[null,null,null,null,null,null,null,null,null,null,null,null,null,null,null,null,null,null,"","10/11/2022 00:00:00","2025-10-16T06:50:00"]
[null,null,null,null,null,null,null,null,null,null,null,null,null,null,null,null,null,null,"","23/02/2023 00:00:00","2025-10-16T06:50:00"]
[null,null,null,null,null,null,null,null,null,null,null,null,null,null,null,null,null,"2021-06-03","","11/01/2023 00:00:00","2025-10-16T06:50:00"]
[null,null,null,null,null,null,null,null,null,null,null,null,null,null,null,null,null,"2021-07-12","","11/01/2023 00:00:00","2025-10-16T06:50:00"]
[null,null,null,null,null,null,null,null,null,null,null,null,null,null,null,null,null,null,"","13/07/2021 00:00:00","2025-10-16T06:50:00"]
[null,null,null,null,null,null,null,null,null,null,null,null,null,null,null,null,null,"2021-07-13","","11/01/2023 00:00:00","2025-10-16T06:50:00"]
[null,null,null,null,null,null,null,null,null,null,null,null,null,null,null,null,null,"2023-05-11","","21/05/2025 00:00:00","2025-10-16T06:50:00"]
[null,null,null,null,null,null,null,null,null,null,null,null,null,null,null,null,null,null,"","10/03/2021 00:00:00","2025-10-16T06:50:00"]
[null,null,null,null,null,null,null,null,null,null,null,null,null,null,null,null,null,"2023-05-10","","02/07/2025 00:00:00","2025-10-16T06:50:00"]
[null,null,null,null,null,null,null,null,null,null,null,null,null,null,null,null,null,null,"","09/07/2024 00:00:00","2025-10-16T06:50:00"]
[null,null,null,null,null,null,null,null,null,null,null,null,null,null,null,null,null,null,"","08/01/2024 00:00:00","2025-10-16T06:50:00"]
[null,null,null,null,null,null,null,null,null,null,null,null,null,null,null,null,null,null,"","08/01/2024 00:00:00","2025-10-16T06:50:00"]
[null,null,null,null,null,null,null,null,null,null,null,null,null,null,null,null,null,"2021-03-26","","09/08/2024 00:00:00","2025-10-16T06:50:00"]
[null,null,null,null,null,null,null,null,null,null,null,null,null,null,null,null,null,null,"","08/01/2024 00:00:00","2025-10-16T06:50:00"]
[null,null,null,null,null,null,null,null,null,null,null,null,null,null,null,null,null,null,"","08/01/2024 00:00:00","2025-10-16T06:50:00"]
[null,null,null,null,null,null,null,null,null,null,null,null,null,null,null,null,null,null,"","08/01/2024 00:00:00","2025-10-16T06:50:00"]
[null,null,null,null,null,null,null,null,null,null,null,null,null,null,null,null,null,null,"","08/01/2024 00:00:00","2025-10-16T06:50:00"]
[null,null,null,null,null,null,null,null,null,null,null,null,null,null,null,null,null,null,"","08/01/2024 00:00:00","2025-10-16T06:50:00"]
[null,null,null,null,null,null,null,null,null,null,null,null,null,null,null,null,null,null,"","08/01/2024 00:00:00","2025-10-16T06:50:00"]
[null,null,null,null,null,null,null,null,null,null,null,null,null,null,null,null,null,null,"","07/10/2025 00:00:00","2025-10-16T06:50:00"]
[null,null,null,null,null,null,null,null,null,null,null,null,null,null,null,null,null,null,"","08/01/2024 00:00:00","2025-10-16T06:50:00"]
[null,null,null,null,null,null,null,null,null,null,null,null,null,null,null,null,null,null,"","08/01/2024 00:00:00","2025-10-16T06:50:00"]
[null,null,null,null,null,null,null,null,null,null,null,null,null,null,null,null,null,null,"","08/01/2024 00:00:00","2025-10-16T06:50:00"]
[null,null,null,null,null,null,null,null,null,null,null,null,null,null,null,null,null,null,"","08/01/2024 00:00:00","2025-10-16T06:50:00"]
[null,null,null,null,null,null,null,null,null,null,null,null,null,null,null,null,null,null,"","08/01/2024 00:00:00","2025-10-16T06:50:00"]
[null,null,null,null,null,null,null,null,null,null,null,null,null,null,null,null,null,null,"","08/01/2024 00:00:00","2025-10-16T06:50:00"]
[null,null,null,null,null,null,null,null,null,null,null,null,null,null,null,null,null,null,"","08/01/2024 00:00:00","2025-10-16T06:50:00"]
[null,null,null,null,null,null,null,null,null,null,null,null,null,null,null,null,null,null,"","08/01/2024 00:00:00","2025-10-16T06:50:00"]
[null,null,null,null,null,null,null,null,null,null,null,null,null,null,null,null,null,"2023-05-11","","02/07/2025 00:00:00","2025-10-16T06:50:00"]
[null,null,null,null,null,null,null,null,null,null,null,null,null,null,null,null,null,null,"","27/11/2023 00:00:00","2025-10-16T06:50:00"]
[null,null,null,null,null,null,null,null,null,null,null,null,null,null,null,null,null,"2022-02-23","","26/03/2024 00:00:00","2025-10-16T06:50:00"]
[null,null,null,null,null,null,null,null,null,null,null,null,null,null,null,null,null,null,"","02/04/2021 00:00:00","2025-10-16T06:50:00"]
[null,null,null,null,null,null,null,null,null,null,null,null,null,null,null,null,null,null,"","18/02/2021 00:00:00","2025-10-16T06:50:00"]
[null,null,null,null,null,null,null,null,null,null,null,null,null,null,null,null,null,null,"","28/06/2022 00:00:00","2025-10-16T06:50:00"]
[null,null,null,null,null,null,null,null,null,null,null,null,null,null,null,null,null,null,"","02/03/2021 00:00:00","2025-10-16T06:50:00"]
[null,null,null,null,null,null,null,null,null,null,null,null,null,null,null,null,null,null,"","18/02/2021 00:00:00","2025-10-16T06:50:00"]
[null,null,null,null,null,null,null,null,null,null,null,null,null,null,null,null,null,null,"","18/02/2021 00:00:00","2025-10-16T06:50:00"]
[null,null,null,null,null,null,null,null,null,null,null,null,null,null,null,null,null,"2022-02-21","06/06/2023 00:00:00","25/09/2025 00:00:00","2025-10-16T06:50:00"]
[null,null,null,null,null,null,null,null,null,null,null,null,null,null,null,null,null,"2023-04-26","","21/06/2024 00:00:00","2025-10-16T06:50:00"]
[null,null,null,null,null,null,null,null,null,null,null,null,null,null,null,null,null,null,"","03/03/2021 00:00:00","2025-10-16T06:50:00"]
[null,null,null,null,null,null,null,null,null,null,null,null,null,null,null,null,null,null,"","10/03/2021 00:00:00","2025-10-16T06:50:00"]
[null,null,null,null,null,null,null,null,null,null,null,null,null,null,null,null,null,null,"","16/03/2021 00:00:00","2025-10-16T06:50:00"]
[null,null,null,null,null,null,null,null,null,null,null,null,null,null,null,null,null,null,"","11/05/2023 00:00:00","2025-10-16T06:50:00"]
[null,null,null,null,null,null,null,null,null,null,null,null,null,null,null,null,null,"2022-06-07","","06/02/2023 00:00:00","2025-10-16T06:50:00"]
[null,null,null,null,null,null,null,null,null,null,null,null,null,null,null,null,null,null,"","06/05/2021 00:00:00","2025-10-16T06:50:00"]
[null,null,null,null,null,null,null,null,null,null,null,null,null,null,null,null,null,"2021-05-06","","06/09/2022 00:00:00","2025-10-16T06:50:00"]
[null,null,null,null,null,null,null,null,null,null,null,null,null,null,null,null,null,"2021-11-23","","14/06/2024 00:00:00","2025-10-16T06:50:00"]
[null,null,null,null,null,null,null,null,null,null,null,null,null,null,null,null,null,null,"","16/06/2025 00:00:00","2025-10-16T06:50:00"]
[null,null,null,null,null,null,null,null,null,null,null,null,null,null,null,null,null,"2024-01-25","","03/10/2025 00:00:00","2025-10-16T06:50:00"]
[null,null,null,null,null,null,null,null,null,null,null,null,null,null,null,null,null,null,"","19/05/2021 00:00:00","2025-10-16T06:50:00"]
[null,null,null,null,null,null,null,null,null,null,null,null,null,null,null,null,null,"2021-05-19","","24/08/2022 00:00:00","2025-10-16T06:50:00"]
[null,null,null,null,null,null,null,null,null,null,null,null,null,null,null,null,null,null,"","02/06/2023 00:00:00","2025-10-16T06:50:00"]
[null,null,null,null,null,null,null,null,null,null,null,null,null,null,null,null,null,null,"","10/05/2023 00:00:00","2025-10-16T06:50:00"]
[null,null,null,null,null,null,null,null,null,null,null,null,null,null,null,null,null,"2023-05-11","","28/06/2023 00:00:00","2025-10-16T06:50:00"]
[null,null,null,null,null,null,null,null,null,null,null,null,null,null,null,null,null,null,"","30/06/2021 00:00:00","2025-10-16T06:50:00"]
[null,null,null,null,null,null,null,null,null,null,null,null,null,null,null,null,null,null,"","30/06/2021 00:00:00","2025-10-16T06:50:00"]
[null,null,null,null,null,null,null,null,null,null,null,null,null,null,null,null,null,"2023-06-16","","02/07/2025 00:00:00","2025-10-16T06:50:00"]
[null,null,null,null,null,null,null,null,null,null,null,null,null,null,null,null,null,null,"","06/03/2024 00:00:00","2025-10-16T06:50:00"]
[null,null,null,null,null,null,null,null,null,null,null,null,null,null,null,null,null,null,"","06/03/2024 00:00:00","2025-10-16T06:50:00"]
[null,null,null,null,null,null,null,null,null,null,null,null,null,null,null,null,null,null,"","28/11/2023 00:00:00","2025-10-16T06:50:00"]
[null,null,null,null,null,null,null,null,null,null,null,null,null,null,null,null,null,"2021-09-15","","11/01/2023 00:00:00","2025-10-16T06:50:00"]
[null,null,null,null,null,null,null,null,null,null,null,null,null,null,null,null,null,"2022-06-07","","06/02/2023 00:00:00","2025-10-16T06:50:00"]
[null,null,null,null,null,null,null,null,null,null,null,null,null,null,null,null,null,null,"06/06/2023 00:00:00","06/06/2023 00:00:00","2025-10-16T06:50:00"]
[null,null,null,null,null,null,null,null,null,null,null,null,null,null,null,null,null,null,"","06/03/2024 00:00:00","2025-10-16T06:50:00"]
[null,null,null,null,null,null,null,null,null,null,null,null,null,null,null,null,null,null,"","11/07/2024 00:00:00","2025-10-16T06:50:00"]
[null,null,null,null,null,null,null,null,null,null,null,null,null,null,null,null,null,null,"","16/03/2022 00:00:00","2025-10-16T06:50:00"]
[null,null,null,null,null,null,null,null,null,null,null,null,null,null,null,null,null,"2022-11-22","","17/12/2024 00:00:00","2025-10-16T06:50:00"]
[null,null,null,null,null,null,null,null,null,null,null,null,null,null,null,null,null,"2022-04-11","","11/01/2023 00:00:00","2025-10-16T06:50:00"]
[null,null,null,null,null,null,null,null,null,null,null,null,null,null,null,null,null,"2023-01-16","06/06/2023 00:00:00","17/09/2025 00:00:00","2025-10-16T06:50:00"]
[null,null,null,null,null,null,null,null,null,null,null,null,null,null,null,null,null,null,"","06/03/2024 00:00:00","2025-10-16T06:50:00"]
[null,null,null,null,null,null,null,null,null,null,null,null,null,null,null,null,null,null,"","25/01/2023 00:00:00","2025-10-16T06:50:00"]
[null,null,null,null,null,null,null,null,null,null,null,null,null,null,null,null,null,null,"06/06/2023 00:00:00","27/11/2023 00:00:00","2025-10-16T06:50:00"]
[null,null,null,null,null,null,null,null,null,null,null,null,null,null,null,null,null,null,"","17/02/2023 00:00:00","2025-10-16T06:50:00"]
[null,null,null,null,null,null,null,null,null,null,null,null,null,null,null,null,null,null,"16/09/2022 00:00:00","16/09/2022 00:00:00","2025-10-16T06:50:00"]
[null,null,null,null,null,null,null,null,null,null,null,null,null,null,null,null,null,"2022-07-04","","11/01/2023 00:00:00","2025-10-16T06:50:00"]
[null,null,null,null,null,null,null,null,null,null,null,null,null,null,null,null,null,"2022-07-12","","03/10/2025 00:00:00","2025-10-16T06:50:00"]
[null,null,null,null,null,null,null,null,null,null,null,null,null,null,null,null,null,null,"","01/02/2024 00:00:00","2025-10-16T06:50:00"]
[null,null,null,null,null,null,null,null,null,null,null,null,null,null,null,null,null,null,"","17/09/2025 00:00:00","2025-10-16T06:50:00"]
[null,null,null,null,null,null,null,null,null,null,null,null,null,null,null,null,null,null,"06/06/2023 00:00:00","27/11/2023 00:00:00","2025-10-16T06:50:00"]
[null,null,null,null,null,null,null,null,null,null,null,null,null,null,null,null,null,null,"","11/07/2024 00:00:00","2025-10-16T06:50:00"]
[null,null,null,null,null,null,null,null,null,null,null,null,null,null,null,null,null,"2023-03-10","","28/04/2023 00:00:00","2025-10-16T06:50:00"]
[null,null,null,null,null,null,null,null,null,null,null,null,null,null,null,null,null,null,"06/06/2023 00:00:00","06/06/2023 00:00:00","2025-10-16T06:50:00"]
[null,null,null,null,null,null,null,null,null,null,null,null,null,null,null,null,null,null,"","15/05/2023 00:00:00","2025-10-16T06:50:00"]
[null,null,null,null,null,null,null,null,null,null,null,null,null,null,null,null,null,null,"","15/05/2023 00:00:00","2025-10-16T06:50:00"]
[null,null,null,null,null,null,null,null,null,null,null,null,null,null,null,null,null,"2023-11-13","","08/01/2024 00:00:00","2025-10-16T06:50:00"]
[null,null,null,null,null,null,null,null,null,null,null,null,null,null,null,null,null,null,"","21/11/2024 00:00:00","2025-10-16T06:50:00"]
[null,null,null,null,null,null,null,null,null,null,null,null,null,null,null,null,null,null,"","21/11/2024 00:00:00","2025-10-16T06:50:00"]
[null,null,null,null,null,null,null,null,null,null,null,null,null,null,null,null,null,null,"","21/11/2024 00:00:00","2025-10-16T06:50:00"]
[null,null,null,null,null,null,null,null,null,null,null,null,null,null,null,null,null,null,"","21/11/2024 00:00:00","2025-10-16T06:50:00"]
[null,null,null,null,null,null,null,null,null,null,null,null,null,null,null,null,null,null,"","22/11/2024 00:00:00","2025-10-16T06:50:00"]
[null,null,null,null,null,null,null,null,null,null,null,null,null,null,null,null,null,null,"","22/11/2024 00:00:00","2025-10-16T06:50:00"]
[null,null,null,null,null,null,null,null,null,null,null,null,null,null,null,null,null,null,"","27/11/2024 00:00:00","2025-10-16T06:50:00"]
[null,null,null,null,null,null,null,null,null,null,null,null,null,null,null,null,null,null,"","03/12/2024 00:00:00","2025-10-16T06:50:00"]
[null,null,null,null,null,null,null,null,null,null,null,null,null,null,null,null,null,null,"","03/12/2024 00:00:00","2025-10-16T06:50:00"]
[null,null,null,null,null,null,null,null,null,null,null,null,null,null,null,null,null,null,"","03/12/2024 00:00:00","2025-10-16T06:50:00"]
[null,null,null,null,null,null,null,null,null,null,null,null,null,null,null,null,null,null,"","03/12/2024 00:00:00","2025-10-16T06:50:00"]
[null,null,null,null,null,null,null,null,null,null,null,null,null,null,null,null,null,null,"","03/12/2024 00:00:00","2025-10-16T06:50:00"]
[null,null,null,null,null,null,null,null,null,null,null,null,null,null,null,null,null,null,"","03/12/2024 00:00:00","2025-10-16T06:50:00"]
[null,null,null,null,null,null,null,null,null,null,null,null,null,null,null,null,null,null,"","03/12/2024 00:00:00","2025-10-16T06:50:00"]
[null,null,null,null,null,null,null,null,null,null,null,null,null,null,null,null,null,null,"","17/12/2024 00:00:00","2025-10-16T06:50:00"]
[null,null,null,null,null,null,null,null,null,null,null,null,null,null,null,null,null,null,"","10/01/2025 00:00:00","2025-10-16T06:50:00"]
[null,"d9497f94-f806-ef11-a6b6-9e772eff5c1c","2400000009","TEST (SICA SA)","d0497f94-f806-ef11-a6b6-9e772eff5c1c","TEST","","","","","Droit des sociétés","Droit des sociétés","","En cours","","2024-04-30",null,null,"","30/04/2024 00:00:00","2025-10-16T06:50:00"]
[null,"f35fb940-df18-ef11-a6b6-9e772eff5c1c","2400000010","BIDULOUETTE Alexis (M.)","8bb4a8af-c3bd-ed11-80f8-0050569349c3","Monsieur BIDULOUETTE Alexis","","","","","Procédure","Dossier de procédure","","En cours","","2024-05-23",null,null,"","23/05/2024 00:00:00","2025-10-16T06:50:00"]
[null,"69c2278a-8c1d-ef11-a6b6-9e772eff5c1c","2400000011","VILLEURBANNE TT (Asso. spor.)","3642db5a-8c1d-ef11-a6b6-9e772eff5c1c","VILLEURBANNE TT","842321044","84232104400013","","","Droit des sociétés","Droit des sociétés","","En cours","","2024-05-29",null,null,"","29/05/2024 00:00:00","2025-10-16T06:50:00"]
[null,"296a449c-9181-f011-a6ca-aeabfd12b8cb","2500000015","Addin Outlook - Test","896d7ca9-199e-ec11-80f3-0050569349c3","ALEXIS","987565434","98756543400012","","","Procédure","Dossier de procédure","","En cours","","2025-08-25",null,null,"","17/09/2025 00:00:00","2025-10-16T06:50:00"]
[null,"7bda6955-4b82-f011-a6ca-aeabfd12b8cb","2503000001","VOYAGES MOLEUX (SASU)","72da6955-4b82-f011-a6ca-aeabfd12b8cb","VOYAGES MOLEUX","344899448","","LYON","","Droit des sociétés","Droit des sociétés","","En cours","","2025-08-26",null,null,"","26/08/2025 00:00:00","2025-10-16T06:50:00"]
[null,"beb1a793-3e5d-ee11-a6a9-b6fbbbd8cb4f","12345678","ANITA  (SARLU)","e7891dc4-98fe-ec11-80f5-0050569349c3","ANITA","787321123","78732112300012","BORDEAUX","","Dossiers clients","Dossier Client","","En cours","","2023-09-27",null,null,"","27/09/2023 00:00:00","2025-10-16T06:50:00"]
[null,"a9597846-c062-ee11-a6a9-b6fbbbd8cb4f","2300000007","ALEXIS  (SARL)","896d7ca9-199e-ec11-80f3-0050569349c3","ALEXIS","987565434","98756543400012","","","Droit des sociétés","Action","","En cours","","2023-10-04",null,null,"","27/09/2024 00:00:00","2025-10-16T06:50:00"]
[null,"f7f47308-55f0-ef11-a6c3-bb42ca83a51a","2500000005","Test industrie (SARL)","20672c00-55f0-ef11-a6c3-bb42ca83a51a","Test industrie","123231231","12323123100017","","","Droit des sociétés","Droit des sociétés","","En cours","","2025-02-21",null,null,"","03/10/2025 00:00:00","2025-10-16T06:50:00"]
[null,"5265b6dd-27f4-ef11-a6c3-bb42ca83a51a","2500000006","CAFE DES ARTS ET METIERS (SCS)","4965b6dd-27f4-ef11-a6c3-bb42ca83a51a","CAFE DES ARTS ET METIERS","330212374","33021237400020","","","Droit des sociétés","Droit des sociétés","","En cours","","2025-02-26",null,null,"","25/04/2025 00:00:00","2025-10-16T06:50:00"]
[null,"08218e45-28f4-ef11-a6c3-bb42ca83a51a","2500000007","CONCEPT-LUOGA (SARL)","ff208e45-28f4-ef11-a6c3-bb42ca83a51a","CONCEPT-LUOGA","850743782","85074378200037","","","Droit des sociétés","Droit des sociétés","","En cours","","2025-02-26",null,null,"","26/02/2025 00:00:00","2025-10-16T06:50:00"]
[null,"48908fdc-faf8-ef11-a6c3-bb42ca83a51a","2500000008","BABOULINET (SARL)","3d908fdc-faf8-ef11-a6c3-bb42ca83a51a","BABOULINET","345323487","","","","Droit des sociétés","Droit des sociétés","","En cours","","2025-03-04",null,null,"","04/03/2025 00:00:00","2025-10-16T06:50:00"]
[null,"e3aac234-a6e3-ef11-a6c2-bfc69d2868b4","2500000002","ENGIE RESEAUX ENGIE COFELY ENGIE SOLUTIONS (SAS)","daaac234-a6e3-ef11-a6c2-bfc69d2868b4","ENGIE RESEAUX ENGIE COFELY ENGIE SOLUTIONS","552046955","","","","Droit des sociétés","Droit des sociétés","","En cours","","2025-02-05",null,null,"","05/02/2025 00:00:00","2025-10-16T06:50:00"]
[null,"4bf08bcb-66e5-ef11-a6c2-bfc69d2868b4","2500000003","AGRUMES  (SEP)","3815eb39-2c9f-ea11-80da-0050569349c3","AGRUMES","876345265","87634526500012","","","Droit Social","Droit Social","","En cours","","2025-02-07",null,null,"","07/02/2025 00:00:00","2025-10-16T06:50:00"]
[null,"2480c488-2ae9-ef11-a6c2-bfc69d2868b4","2500000004","DECATHLON (SA)","1b80c488-2ae9-ef11-a6c2-bfc69d2868b4","DECATHLON","306138900","","","","Droit des sociétés","Droit des sociétés","","En cours","","2025-02-12",null,null,"","12/02/2025 00:00:00","2025-10-16T06:50:00"]
[null,"d204cd1e-5a20-f011-a6c5-c03d2af6968f","2500000012","A CASSER  (SAS)","a2221084-0ac1-ee11-a6b3-e05075668416","A CASSER","890765456","89076545600012","","","Fusion absorption","Fusion absorption","","En cours","","2025-04-23",null,null,"","23/04/2025 00:00:00","2025-10-16T06:50:00"]
[null,"e56b653d-59a6-ee11-a6b1-cd8339cb7b55","2300000009","PIXEL (M.) / CHIPS","b57d8c77-58a6-ee11-a6b1-cd8339cb7b55","Monsieur PIXEL CHATON","","","","","Procédure","Dossier de procédure","","En cours","","2023-12-29",null,null,"","11/06/2025 00:00:00","2025-10-16T06:50:00"]
[null,"5fa448b2-d1ae-ee11-a6b1-cd8339cb7b55","2400000001","JARVIS (SAS) - Droit des sociétés","c0341a53-d1ae-ee11-a6b1-cd8339cb7b55","JARVIS","876678765","87667876500012","","","Droit des sociétés","Droit des sociétés","","En cours","","2024-01-09",null,null,"","18/06/2024 00:00:00","2025-10-16T06:50:00"]
[null,"fec04aed-db0b-f011-a6c4-d6668393914c","2500000009","ANITA  (SARLU)","e7891dc4-98fe-ec11-80f5-0050569349c3","ANITA","787321123","78732112300012","","","Droit des sociétés","Action","","En cours","","2025-03-28",null,null,"","07/04/2025 00:00:00","2025-10-16T06:50:00"]
[null,"48e7d15d-1119-f011-a6c4-d6668393914c","2500000010","SOCIETE ANONYME D'ECONOMIE MIXTE IMMOBILIERE DE NORMANDIE (SEM SA)","3fe7d15d-1119-f011-a6c4-d6668393914c","SOCIETE ANONYME D'ECONOMIE MIXTE IMMOBILIERE DE NORMANDIE","346050024","34605002400063","","","Droit des sociétés","Droit des sociétés","","En cours","","2025-04-14",null,null,"","14/04/2025 00:00:00","2025-10-16T06:50:00"]
[null,"29beee75-a21b-f011-a6c4-d6668393914c","2500000011","CLINIQUE PASTEUR (SA)","20beee75-a21b-f011-a6c4-d6668393914c","CLINIQUE PASTEUR","715450052","71545005200025","","","Droit des sociétés","Droit des sociétés","","En cours","","2025-04-17",null,null,"","18/04/2025 00:00:00","2025-10-16T06:50:00"]
[null,"6395e4f9-c5db-ee11-a6b5-dd69e2748cf6","2400000007","AXA  (SAS)","ac1a83dd-de95-ea11-80d9-0050569349c3","AXA","","","","","Droit des sociétés","Droit des sociétés","","En cours","","2024-03-06",null,null,"","17/07/2024 00:00:00","2025-10-16T06:50:00"]
[null,"54582a28-73dc-ee11-a6b5-dd69e2748cf6","2400000008","BATMOBILE (SARL)","e91fc3fb-f8f7-ea11-80dc-0050569349c3","BATMOBILE","345779099","34577909900000","","Contentieux Civil","Procédure","Dossier de procédure","CONTENTIEUX","En cours","","2024-03-07","2024-07-10","2024-07-10","","02/07/2025 00:00:00","2025-10-16T06:50:00"]
[null,"64f9e7f5-83bb-ee11-a6b3-e05075668416","2400000002","PROTECOL Luc (M.) / LEXISNEXIS","ab7d5dce-83bb-ee11-a6b3-e05075668416","Monsieur PROTECOL Luc","","","","","Procédure","Dossier de procédure","","En cours","","2024-01-25",null,null,"","25/01/2024 00:00:00","2025-10-16T06:50:00"]
[null,"061958ce-93be-ee11-a6b3-e05075668416","2400000003","MA SOCIETE AGRICOLE (SCEA)","0e290ec6-93be-ee11-a6b3-e05075668416","MA SOCIETE AGRICOLE","","","","","Droit des sociétés","Droit des sociétés","","En cours","","2024-01-29",null,null,"","29/01/2024 00:00:00","2025-10-16T06:50:00"]
[null,"1652faca-09c1-ee11-a6b3-e05075668416","A400000004","A CASSER (SARL)","d34acabd-09c1-ee11-a6b3-e05075668416","A CASSER","890765456","89076545600012","","","Droit des sociétés","Droit des sociétés","","Archivé","","2024-02-01",null,null,"01/02/2024 00:00:00","01/02/2024 00:00:00","2025-10-16T06:50:00"]
[null,"dcf8ef45-0ac1-ee11-a6b3-e05075668416","B400000004","A CASSER (SAS)","d4f8ef45-0ac1-ee11-a6b3-e05075668416","A CASSER","890765456","89076545600012","","","Droit des sociétés","Droit des sociétés","","Archivé","","2024-02-01",null,null,"01/02/2024 00:00:00","01/02/2024 00:00:00","2025-10-16T06:50:00"]
[null,"dce69c5a-0ac1-ee11-a6b3-e05075668416","C400000004","A CASSER (SARL)","d1e69c5a-0ac1-ee11-a6b3-e05075668416","A CASSER","890765456","89076545600012","","","Droit des sociétés","Droit des sociétés","","Archivé","","2024-02-01",null,null,"01/02/2024 00:00:00","01/02/2024 00:00:00","2025-10-16T06:50:00"]
[null,"aa221084-0ac1-ee11-a6b3-e05075668416","2400000004","A CASSER (SAS)","a2221084-0ac1-ee11-a6b3-e05075668416","A CASSER","890765456","89076545600012","","","Droit des sociétés","Droit des sociétés","","En cours","","2024-02-01",null,null,"","05/06/2025 00:00:00","2025-10-16T06:50:00"]
[null,"ad722cb8-0ac1-ee11-a6b3-e05075668416","A400000005","A CASSER 2 (SARL)","7508e3aa-0ac1-ee11-a6b3-e05075668416","A CASSER 2","987452987","98745298700012","","","Droit des sociétés","Droit des sociétés","","Archivé","","2024-02-01",null,null,"01/02/2024 00:00:00","01/02/2024 00:00:00","2025-10-16T06:50:00"]
[null,"c988bde5-0ac1-ee11-a6b3-e05075668416","2400000005","A CASSER 2 (SAS)","c188bde5-0ac1-ee11-a6b3-e05075668416","A CASSER 2","987452987","98745298700012","","","Droit des sociétés","Droit des sociétés","","En cours","","2024-02-01",null,null,"","11/07/2024 00:00:00","2025-10-16T06:50:00"]
[null,"f84ecac3-10c1-ee11-a6b3-e05075668416","2400000006","JETESTPOLY (SCP)","ef4ecac3-10c1-ee11-a6b3-e05075668416","JETESTPOLY","","","","","Droit des sociétés","Droit des sociétés","","En cours","","2024-02-01",null,null,"","30/04/2024 00:00:00","2025-10-16T06:50:00"]
[null,"242d9146-8272-ee11-a6ab-ec6829d0e3dc","2300000008","AGRUMES / HELENE","3815eb39-2c9f-ea11-80da-0050569349c3","AGRUMES","876345265","87634526500012","","","Appel","Appel","","En cours","","2023-10-24","2024-12-03","2024-12-03","","13/10/2025 00:00:00","2025-10-16T06:50:00"]
[null,"0eb8186a-6248-f011-a6c7-fecff9f8b4de","2500000013","EURL TEVA (SARLU)","04690964-6248-f011-a6c7-fecff9f8b4de","EURL TEVA","567453234","","","","Droit des sociétés","Droit des sociétés","","En cours","","2025-06-13",null,null,"","13/06/2025 00:00:00","2025-10-16T06:50:00"]
[null,"33dabfc0-6248-f011-a6c7-fecff9f8b4de","2500000014","GROUPEMENT FORESTIER DE BROCELIANDE (GF)","2adabfc0-6248-f011-a6c7-fecff9f8b4de","GROUPEMENT FORESTIER DE BROCELIANDE","678765565","","","","Droit des sociétés","Droit des sociétés","","En cours","","2025-06-13",null,null,"","02/07/2025 00:00:00","2025-10-16T06:50:00"]

{"sheet":"BI - COL DOS","index":4,"n_rows":205,"n_cols":20,"rows_kept":205,"cut":false,"hidden":false,"merged":[]}
[]
[null,"COLLABORATEURS DOSSIERS"]
[null,"EXPORT DE DONNEES"]
[]
[null,"CollaborateurId","DossierId","DossierCode","DateFactureDossierMin","DateFactureDossierMax","DossierDateCreation","RoleDossier","Defaut","PourcentageFacturation","Trigramme","NomComplet","Civilite","Nom","Prenom","Site","Equipe","DateFraicheur","Collaborateur dossier","Responsable dossier"]
[null,null,null,null,null,null,null,null,null,null,null,null,null,null,null,null,null,null,{"$f":"IF(AND(Collaborateur_Dossier[[#This Row],[RoleDossier]]=\"Responsable\",Collaborateur_Dossier[[#This Row],[Defaut]]),Collaborateur_Dossier[[#This Row],[DossierCode]],\"\")","v":""},{"$f":"IF(Collaborateur_Dossier[[#This Row],[Collaborateur dossier]]<>\"\",Collaborateur_Dossier[[#This Row],[Trigramme]],\"\")","v":""}]
[null,null,null,null,null,null,null,null,null,null,null,null,null,null,null,null,null,null,{"$f":"IF(AND(Collaborateur_Dossier[[#This Row],[RoleDossier]]=\"Responsable\",Collaborateur_Dossier[[#This Row],[Defaut]]),Collaborateur_Dossier[[#This Row],[DossierCode]],\"\")","v":""},{"$f":"IF(Collaborateur_Dossier[[#This Row],[Collaborateur dossier]]<>\"\",Collaborateur_Dossier[[#This Row],[Trigramme]],\"\")","v":""}]
[null,null,null,null,null,null,null,null,null,null,null,null,null,null,null,null,null,null,{"$f":"IF(AND(Collaborateur_Dossier[[#This Row],[RoleDossier]]=\"Responsable\",Collaborateur_Dossier[[#This Row],[Defaut]]),Collaborateur_Dossier[[#This Row],[DossierCode]],\"\")","v":""},{"$f":"IF(Collaborateur_Dossier[[#This Row],[Collaborateur dossier]]<>\"\",Collaborateur_Dossier[[#This Row],[Trigramme]],\"\")","v":""}]
[null,null,null,null,null,null,null,null,null,null,null,null,null,null,null,null,null,null,{"$f":"IF(AND(Collaborateur_Dossier[[#This Row],[RoleDossier]]=\"Responsable\",Collaborateur_Dossier[[#This Row],[Defaut]]),Collaborateur_Dossier[[#This Row],[DossierCode]],\"\")","v":""},{"$f":"IF(Collaborateur_Dossier[[#This Row],[Collaborateur dossier]]<>\"\",Collaborateur_Dossier[[#This Row],[Trigramme]],\"\")","v":""}]
[null,null,null,null,null,null,null,null,null,null,null,null,null,null,null,null,null,null,{"$f":"IF(AND(Collaborateur_Dossier[[#This Row],[RoleDossier]]=\"Responsable\",Collaborateur_Dossier[[#This Row],[Defaut]]),Collaborateur_Dossier[[#This Row],[DossierCode]],\"\")","v":""},{"$f":"IF(Collaborateur_Dossier[[#This Row],[Collaborateur dossier]]<>\"\",Collaborateur_Dossier[[#This Row],[Trigramme]],\"\")","v":""}]
[null,null,null,null,null,null,null,null,null,null,null,null,null,null,null,null,null,null,{"$f":"IF(AND(Collaborateur_Dossier[[#This Row],[RoleDossier]]=\"Responsable\",Collaborateur_Dossier[[#This Row],[Defaut]]),Collaborateur_Dossier[[#This Row],[DossierCode]],\"\")","v":""},{"$f":"IF(Collaborateur_Dossier[[#This Row],[Collaborateur dossier]]<>\"\",Collaborateur_Dossier[[#This Row],[Trigramme]],\"\")","v":""}]
[null,null,null,null,null,null,null,null,null,null,null,null,null,null,null,null,null,null,{"$f":"IF(AND(Collaborateur_Dossier[[#This Row],[RoleDossier]]=\"Responsable\",Collaborateur_Dossier[[#This Row],[Defaut]]),Collaborateur_Dossier[[#This Row],[DossierCode]],\"\")","v":""},{"$f":"IF(Collaborateur_Dossier[[#This Row],[Collaborateur dossier]]<>\"\",Collaborateur_Dossier[[#This Row],[Trigramme]],\"\")","v":""}]
[null,null,null,null,null,null,null,null,null,null,null,null,null,null,null,null,null,null,{"$f":"IF(AND(Collaborateur_Dossier[[#This Row],[RoleDossier]]=\"Responsable\",Collaborateur_Dossier[[#This Row],[Defaut]]),Collaborateur_Dossier[[#This Row],[DossierCode]],\"\")","v":""},{"$f":"IF(Collaborateur_Dossier[[#This Row],[Collaborateur dossier]]<>\"\",Collaborateur_Dossier[[#This Row],[Trigramme]],\"\")","v":""}]
[null,null,null,null,null,null,null,null,null,null,null,null,null,null,null,null,null,null,{"$f":"IF(AND(Collaborateur_Dossier[[#This Row],[RoleDossier]]=\"Responsable\",Collaborateur_Dossier[[#This Row],[Defaut]]),Collaborateur_Dossier[[#This Row],[DossierCode]],\"\")","v":""},{"$f":"IF(Collaborateur_Dossier[[#This Row],[Collaborateur dossier]]<>\"\",Collaborateur_Dossier[[#This Row],[Trigramme]],\"\")","v":""}]
[null,null,null,null,null,null,null,null,null,null,null,null,null,null,null,null,null,null,{"$f":"IF(AND(Collaborateur_Dossier[[#This Row],[RoleDossier]]=\"Responsable\",Collaborateur_Dossier[[#This Row],[Defaut]]),Collaborateur_Dossier[[#This Row],[DossierCode]],\"\")","v":""},{"$f":"IF(Collaborateur_Dossier[[#This Row],[Collaborateur dossier]]<>\"\",Collaborateur_Dossier[[#This Row],[Trigramme]],\"\")","v":""}]
[null,null,null,null,null,null,null,null,null,null,null,null,null,null,null,null,null,null,{"$f":"IF(AND(Collaborateur_Dossier[[#This Row],[RoleDossier]]=\"Responsable\",Collaborateur_Dossier[[#This Row],[Defaut]]),Collaborateur_Dossier[[#This Row],[DossierCode]],\"\")","v":""},{"$f":"IF(Collaborateur_Dossier[[#This Row],[Collaborateur dossier]]<>\"\",Collaborateur_Dossier[[#This Row],[Trigramme]],\"\")","v":""}]
[null,null,null,null,null,null,null,null,null,null,null,null,null,null,null,null,null,null,{"$f":"IF(AND(Collaborateur_Dossier[[#This Row],[RoleDossier]]=\"Responsable\",Collaborateur_Dossier[[#This Row],[Defaut]]),Collaborateur_Dossier[[#This Row],[DossierCode]],\"\")","v":""},{"$f":"IF(Collaborateur_Dossier[[#This Row],[Collaborateur dossier]]<>\"\",Collaborateur_Dossier[[#This Row],[Trigramme]],\"\")","v":""}]
[null,null,null,null,null,null,null,null,null,null,null,null,null,null,null,null,null,null,{"$f":"IF(AND(Collaborateur_Dossier[[#This Row],[RoleDossier]]=\"Responsable\",Collaborateur_Dossier[[#This Row],[Defaut]]),Collaborateur_Dossier[[#This Row],[DossierCode]],\"\")","v":""},{"$f":"IF(Collaborateur_Dossier[[#This Row],[Collaborateur dossier]]<>\"\",Collaborateur_Dossier[[#This Row],[Trigramme]],\"\")","v":""}]
[null,null,null,null,null,null,null,null,null,null,null,null,null,null,null,null,null,null,{"$f":"IF(AND(Collaborateur_Dossier[[#This Row],[RoleDossier]]=\"Responsable\",Collaborateur_Dossier[[#This Row],[Defaut]]),Collaborateur_Dossier[[#This Row],[DossierCode]],\"\")","v":""},{"$f":"IF(Collaborateur_Dossier[[#This Row],[Collaborateur dossier]]<>\"\",Collaborateur_Dossier[[#This Row],[Trigramme]],\"\")","v":""}]
[null,null,null,null,null,null,null,null,null,null,null,null,null,null,null,null,null,null,{"$f":"IF(AND(Collaborateur_Dossier[[#This Row],[RoleDossier]]=\"Responsable\",Collaborateur_Dossier[[#This Row],[Defaut]]),Collaborateur_Dossier[[#This Row],[DossierCode]],\"\")","v":""},{"$f":"IF(Collaborateur_Dossier[[#This Row],[Collaborateur dossier]]<>\"\",Collaborateur_Dossier[[#This Row],[Trigramme]],\"\")","v":""}]
[null,null,null,null,null,null,null,null,null,null,null,null,null,null,null,null,null,null,{"$f":"IF(AND(Collaborateur_Dossier[[#This Row],[RoleDossier]]=\"Responsable\",Collaborateur_Dossier[[#This Row],[Defaut]]),Collaborateur_Dossier[[#This Row],[DossierCode]],\"\")","v":""},{"$f":"IF(Collaborateur_Dossier[[#This Row],[Collaborateur dossier]]<>\"\",Collaborateur_Dossier[[#This Row],[Trigramme]],\"\")","v":""}]
[null,null,null,null,null,null,null,null,null,null,null,null,null,null,null,null,null,null,{"$f":"IF(AND(Collaborateur_Dossier[[#This Row],[RoleDossier]]=\"Responsable\",Collaborateur_Dossier[[#This Row],[Defaut]]),Collaborateur_Dossier[[#This Row],[DossierCode]],\"\")","v":""},{"$f":"IF(Collaborateur_Dossier[[#This Row],[Collaborateur dossier]]<>\"\",Collaborateur_Dossier[[#This Row],[Trigramme]],\"\")","v":""}]
[null,null,null,null,null,null,null,null,null,null,null,null,null,null,null,null,null,null,{"$f":"IF(AND(Collaborateur_Dossier[[#This Row],[RoleDossier]]=\"Responsable\",Collaborateur_Dossier[[#This Row],[Defaut]]),Collaborateur_Dossier[[#This Row],[DossierCode]],\"\")","v":""},{"$f":"IF(Collaborateur_Dossier[[#This Row],[Collaborateur dossier]]<>\"\",Collaborateur_Dossier[[#This Row],[Trigramme]],\"\")","v":""}]
[null,null,null,null,null,null,null,null,null,null,null,null,null,null,null,null,null,null,{"$f":"IF(AND(Collaborateur_Dossier[[#This Row],[RoleDossier]]=\"Responsable\",Collaborateur_Dossier[[#This Row],[Defaut]]),Collaborateur_Dossier[[#This Row],[DossierCode]],\"\")","v":""},{"$f":"IF(Collaborateur_Dossier[[#This Row],[Collaborateur dossier]]<>\"\",Collaborateur_Dossier[[#This Row],[Trigramme]],\"\")","v":""}]
[null,null,null,null,null,null,null,null,null,null,null,null,null,null,null,null,null,null,{"$f":"IF(AND(Collaborateur_Dossier[[#This Row],[RoleDossier]]=\"Responsable\",Collaborateur_Dossier[[#This Row],[Defaut]]),Collaborateur_Dossier[[#This Row],[DossierCode]],\"\")","v":""},{"$f":"IF(Collaborateur_Dossier[[#This Row],[Collaborateur dossier]]<>\"\",Collaborateur_Dossier[[#This Row],[Trigramme]],\"\")","v":""}]
[null,null,null,null,null,null,null,null,null,null,null,null,null,null,null,null,null,null,{"$f":"IF(AND(Collaborateur_Dossier[[#This Row],[RoleDossier]]=\"Responsable\",Collaborateur_Dossier[[#This Row],[Defaut]]),Collaborateur_Dossier[[#This Row],[DossierCode]],\"\")","v":""},{"$f":"IF(Collaborateur_Dossier[[#This Row],[Collaborateur dossier]]<>\"\",Collaborateur_Dossier[[#This Row],[Trigramme]],\"\")","v":""}]
[null,null,null,null,null,null,null,null,null,null,null,null,null,null,null,null,null,null,{"$f":"IF(AND(Collaborateur_Dossier[[#This Row],[RoleDossier]]=\"Responsable\",Collaborateur_Dossier[[#This Row],[Defaut]]),Collaborateur_Dossier[[#This Row],[DossierCode]],\"\")","v":""},{"$f":"IF(Collaborateur_Dossier[[#This Row],[Collaborateur dossier]]<>\"\",Collaborateur_Dossier[[#This Row],[Trigramme]],\"\")","v":""}]
[null,null,null,null,null,null,null,null,null,null,null,null,null,null,null,null,null,null,{"$f":"IF(AND(Collaborateur_Dossier[[#This Row],[RoleDossier]]=\"Responsable\",Collaborateur_Dossier[[#This Row],[Defaut]]),Collaborateur_Dossier[[#This Row],[DossierCode]],\"\")","v":""},{"$f":"IF(Collaborateur_Dossier[[#This Row],[Collaborateur dossier]]<>\"\",Collaborateur_Dossier[[#This Row],[Trigramme]],\"\")","v":""}]
[null,null,null,null,null,null,null,null,null,null,null,null,null,null,null,null,null,null,{"$f":"IF(AND(Collaborateur_Dossier[[#This Row],[RoleDossier]]=\"Responsable\",Collaborateur_Dossier[[#This Row],[Defaut]]),Collaborateur_Dossier[[#This Row],[DossierCode]],\"\")","v":""},{"$f":"IF(Collaborateur_Dossier[[#This Row],[Collaborateur dossier]]<>\"\",Collaborateur_Dossier[[#This Row],[Trigramme]],\"\")","v":""}]
[null,null,null,null,null,null,null,null,null,null,null,null,null,null,null,null,null,null,{"$f":"IF(AND(Collaborateur_Dossier[[#This Row],[RoleDossier]]=\"Responsable\",Collaborateur_Dossier[[#This Row],[Defaut]]),Collaborateur_Dossier[[#This Row],[DossierCode]],\"\")","v":""},{"$f":"IF(Collaborateur_Dossier[[#This Row],[Collaborateur dossier]]<>\"\",Collaborateur_Dossier[[#This Row],[Trigramme]],\"\")","v":""}]
[null,null,null,null,null,null,null,null,null,null,null,null,null,null,null,null,null,null,{"$f":"IF(AND(Collaborateur_Dossier[[#This Row],[RoleDossier]]=\"Responsable\",Collaborateur_Dossier[[#This Row],[Defaut]]),Collaborateur_Dossier[[#This Row],[DossierCode]],\"\")","v":""},{"$f":"IF(Collaborateur_Dossier[[#This Row],[Collaborateur dossier]]<>\"\",Collaborateur_Dossier[[#This Row],[Trigramme]],\"\")","v":""}]
[null,null,null,null,null,null,null,null,null,null,null,null,null,null,null,null,null,null,{"$f":"IF(AND(Collaborateur_Dossier[[#This Row],[RoleDossier]]=\"Responsable\",Collaborateur_Dossier[[#This Row],[Defaut]]),Collaborateur_Dossier[[#This Row],[DossierCode]],\"\")","v":""},{"$f":"IF(Collaborateur_Dossier[[#This Row],[Collaborateur dossier]]<>\"\",Collaborateur_Dossier[[#This Row],[Trigramme]],\"\")","v":""}]
[null,null,null,null,null,null,null,null,null,null,null,null,null,null,null,null,null,null,{"$f":"IF(AND(Collaborateur_Dossier[[#This Row],[RoleDossier]]=\"Responsable\",Collaborateur_Dossier[[#This Row],[Defaut]]),Collaborateur_Dossier[[#This Row],[DossierCode]],\"\")","v":""},{"$f":"IF(Collaborateur_Dossier[[#This Row],[Collaborateur dossier]]<>\"\",Collaborateur_Dossier[[#This Row],[Trigramme]],\"\")","v":""}]
[null,null,null,null,null,null,null,null,null,null,null,null,null,null,null,null,null,null,{"$f":"IF(AND(Collaborateur_Dossier[[#This Row],[RoleDossier]]=\"Responsable\",Collaborateur_Dossier[[#This Row],[Defaut]]),Collaborateur_Dossier[[#This Row],[DossierCode]],\"\")","v":""},{"$f":"IF(Collaborateur_Dossier[[#This Row],[Collaborateur dossier]]<>\"\",Collaborateur_Dossier[[#This Row],[Trigramme]],\"\")","v":""}]
[null,null,null,null,null,null,null,null,null,null,null,null,null,null,null,null,null,null,{"$f":"IF(AND(Collaborateur_Dossier[[#This Row],[RoleDossier]]=\"Responsable\",Collaborateur_Dossier[[#This Row],[Defaut]]),Collaborateur_Dossier[[#This Row],[DossierCode]],\"\")","v":""},{"$f":"IF(Collaborateur_Dossier[[#This Row],[Collaborateur dossier]]<>\"\",Collaborateur_Dossier[[#This Row],[Trigramme]],\"\")","v":""}]
[null,null,null,null,null,null,null,null,null,null,null,null,null,null,null,null,null,null,{"$f":"IF(AND(Collaborateur_Dossier[[#This Row],[RoleDossier]]=\"Responsable\",Collaborateur_Dossier[[#This Row],[Defaut]]),Collaborateur_Dossier[[#This Row],[DossierCode]],\"\")","v":""},{"$f":"IF(Collaborateur_Dossier[[#This Row],[Collaborateur dossier]]<>\"\",Collaborateur_Dossier[[#This Row],[Trigramme]],\"\")","v":""}]
[null,null,null,null,null,null,null,null,null,null,null,null,null,null,null,null,null,null,{"$f":"IF(AND(Collaborateur_Dossier[[#This Row],[RoleDossier]]=\"Responsable\",Collaborateur_Dossier[[#This Row],[Defaut]]),Collaborateur_Dossier[[#This Row],[DossierCode]],\"\")","v":""},{"$f":"IF(Collaborateur_Dossier[[#This Row],[Collaborateur dossier]]<>\"\",Collaborateur_Dossier[[#This Row],[Trigramme]],\"\")","v":""}]
[null,null,null,null,null,null,null,null,null,null,null,null,null,null,null,null,null,null,{"$f":"IF(AND(Collaborateur_Dossier[[#This Row],[RoleDossier]]=\"Responsable\",Collaborateur_Dossier[[#This Row],[Defaut]]),Collaborateur_Dossier[[#This Row],[DossierCode]],\"\")","v":""},{"$f":"IF(Collaborateur_Dossier[[#This Row],[Collaborateur dossier]]<>\"\",Collaborateur_Dossier[[#This Row],[Trigramme]],\"\")","v":""}]
[null,null,null,null,null,null,null,null,null,null,null,null,null,null,null,null,null,null,{"$f":"IF(AND(Collaborateur_Dossier[[#This Row],[RoleDossier]]=\"Responsable\",Collaborateur_Dossier[[#This Row],[Defaut]]),Collaborateur_Dossier[[#This Row],[DossierCode]],\"\")","v":""},{"$f":"IF(Collaborateur_Dossier[[#This Row],[Collaborateur dossier]]<>\"\",Collaborateur_Dossier[[#This Row],[Trigramme]],\"\")","v":""}]
[null,null,null,null,null,null,null,null,null,null,null,null,null,null,null,null,null,null,{"$f":"IF(AND(Collaborateur_Dossier[[#This Row],[RoleDossier]]=\"Responsable\",Collaborateur_Dossier[[#This Row],[Defaut]]),Collaborateur_Dossier[[#This Row],[DossierCode]],\"\")","v":""},{"$f":"IF(Collaborateur_Dossier[[#This Row],[Collaborateur dossier]]<>\"\",Collaborateur_Dossier[[#This Row],[Trigramme]],\"\")","v":""}]
[null,null,null,null,null,null,null,null,null,null,null,null,null,null,null,null,null,null,{"$f":"IF(AND(Collaborateur_Dossier[[#This Row],[RoleDossier]]=\"Responsable\",Collaborateur_Dossier[[#This Row],[Defaut]]),Collaborateur_Dossier[[#This Row],[DossierCode]],\"\")","v":""},{"$f":"IF(Collaborateur_Dossier[[#This Row],[Collaborateur dossier]]<>\"\",Collaborateur_Dossier[[#This Row],[Trigramme]],\"\")","v":""}]
[null,null,null,null,null,null,null,null,null,null,null,null,null,null,null,null,null,null,{"$f":"IF(AND(Collaborateur_Dossier[[#This Row],[RoleDossier]]=\"Responsable\",Collaborateur_Dossier[[#This Row],[Defaut]]),Collaborateur_Dossier[[#This Row],[DossierCode]],\"\")","v":""},{"$f":"IF(Collaborateur_Dossier[[#This Row],[Collaborateur dossier]]<>\"\",Collaborateur_Dossier[[#This Row],[Trigramme]],\"\")","v":""}]
[null,null,null,null,null,null,null,null,null,null,null,null,null,null,null,null,null,null,{"$f":"IF(AND(Collaborateur_Dossier[[#This Row],[RoleDossier]]=\"Responsable\",Collaborateur_Dossier[[#This Row],[Defaut]]),Collaborateur_Dossier[[#This Row],[DossierCode]],\"\")","v":""},{"$f":"IF(Collaborateur_Dossier[[#This Row],[Collaborateur dossier]]<>\"\",Collaborateur_Dossier[[#This Row],[Trigramme]],\"\")","v":""}]
[null,null,null,null,null,null,null,null,null,null,null,null,null,null,null,null,null,null,{"$f":"IF(AND(Collaborateur_Dossier[[#This Row],[RoleDossier]]=\"Responsable\",Collaborateur_Dossier[[#This Row],[Defaut]]),Collaborateur_Dossier[[#This Row],[DossierCode]],\"\")","v":""},{"$f":"IF(Collaborateur_Dossier[[#This Row],[Collaborateur dossier]]<>\"\",Collaborateur_Dossier[[#This Row],[Trigramme]],\"\")","v":""}]
[null,null,null,null,null,null,null,null,null,null,null,null,null,null,null,null,null,null,{"$f":"IF(AND(Collaborateur_Dossier[[#This Row],[RoleDossier]]=\"Responsable\",Collaborateur_Dossier[[#This Row],[Defaut]]),Collaborateur_Dossier[[#This Row],[DossierCode]],\"\")","v":""},{"$f":"IF(Collaborateur_Dossier[[#This Row],[Collaborateur dossier]]<>\"\",Collaborateur_Dossier[[#This Row],[Trigramme]],\"\")","v":""}]
[null,null,null,null,null,null,null,null,null,null,null,null,null,null,null,null,null,null,{"$f":"IF(AND(Collaborateur_Dossier[[#This Row],[RoleDossier]]=\"Responsable\",Collaborateur_Dossier[[#This Row],[Defaut]]),Collaborateur_Dossier[[#This Row],[DossierCode]],\"\")","v":""},{"$f":"IF(Collaborateur_Dossier[[#This Row],[Collaborateur dossier]]<>\"\",Collaborateur_Dossier[[#This Row],[Trigramme]],\"\")","v":""}]
[null,null,null,null,null,null,null,null,null,null,null,null,null,null,null,null,null,null,{"$f":"IF(AND(Collaborateur_Dossier[[#This Row],[RoleDossier]]=\"Responsable\",Collaborateur_Dossier[[#This Row],[Defaut]]),Collaborateur_Dossier[[#This Row],[DossierCode]],\"\")","v":""},{"$f":"IF(Collaborateur_Dossier[[#This Row],[Collaborateur dossier]]<>\"\",Collaborateur_Dossier[[#This Row],[Trigramme]],\"\")","v":""}]
[null,null,null,null,null,null,null,null,null,null,null,null,null,null,null,null,null,null,{"$f":"IF(AND(Collaborateur_Dossier[[#This Row],[RoleDossier]]=\"Responsable\",Collaborateur_Dossier[[#This Row],[Defaut]]),Collaborateur_Dossier[[#This Row],[DossierCode]],\"\")","v":""},{"$f":"IF(Collaborateur_Dossier[[#This Row],[Collaborateur dossier]]<>\"\",Collaborateur_Dossier[[#This Row],[Trigramme]],\"\")","v":""}]
[null,null,null,null,null,null,null,null,null,null,null,null,null,null,null,null,null,null,{"$f":"IF(AND(Collaborateur_Dossier[[#This Row],[RoleDossier]]=\"Responsable\",Collaborateur_Dossier[[#This Row],[Defaut]]),Collaborateur_Dossier[[#This Row],[DossierCode]],\"\")","v":""},{"$f":"IF(Collaborateur_Dossier[[#This Row],[Collaborateur dossier]]<>\"\",Collaborateur_Dossier[[#This Row],[Trigramme]],\"\")","v":""}]
[null,null,null,null,null,null,null,null,null,null,null,null,null,null,null,null,null,null,{"$f":"IF(AND(Collaborateur_Dossier[[#This Row],[RoleDossier]]=\"Responsable\",Collaborateur_Dossier[[#This Row],[Defaut]]),Collaborateur_Dossier[[#This Row],[DossierCode]],\"\")","v":""},{"$f":"IF(Collaborateur_Dossier[[#This Row],[Collaborateur dossier]]<>\"\",Collaborateur_Dossier[[#This Row],[Trigramme]],\"\")","v":""}]
[null,null,null,null,null,null,null,null,null,null,null,null,null,null,null,null,null,null,{"$f":"IF(AND(Collaborateur_Dossier[[#This Row],[RoleDossier]]=\"Responsable\",Collaborateur_Dossier[[#This Row],[Defaut]]),Collaborateur_Dossier[[#This Row],[DossierCode]],\"\")","v":""},{"$f":"IF(Collaborateur_Dossier[[#This Row],[Collaborateur dossier]]<>\"\",Collaborateur_Dossier[[#This Row],[Trigramme]],\"\")","v":""}]
[null,null,null,null,null,null,null,null,null,null,null,null,null,null,null,null,null,null,{"$f":"IF(AND(Collaborateur_Dossier[[#This Row],[RoleDossier]]=\"Responsable\",Collaborateur_Dossier[[#This Row],[Defaut]]),Collaborateur_Dossier[[#This Row],[DossierCode]],\"\")","v":""},{"$f":"IF(Collaborateur_Dossier[[#This Row],[Collaborateur dossier]]<>\"\",Collaborateur_Dossier[[#This Row],[Trigramme]],\"\")","v":""}]
[null,null,null,null,null,null,null,null,null,null,null,null,null,null,null,null,null,null,{"$f":"IF(AND(Collaborateur_Dossier[[#This Row],[RoleDossier]]=\"Responsable\",Collaborateur_Dossier[[#This Row],[Defaut]]),Collaborateur_Dossier[[#This Row],[DossierCode]],\"\")","v":""},{"$f":"IF(Collaborateur_Dossier[[#This Row],[Collaborateur dossier]]<>\"\",Collaborateur_Dossier[[#This Row],[Trigramme]],\"\")","v":""}]
[null,null,null,null,null,null,null,null,null,null,null,null,null,null,null,null,null,null,{"$f":"IF(AND(Collaborateur_Dossier[[#This Row],[RoleDossier]]=\"Responsable\",Collaborateur_Dossier[[#This Row],[Defaut]]),Collaborateur_Dossier[[#This Row],[DossierCode]],\"\")","v":""},{"$f":"IF(Collaborateur_Dossier[[#This Row],[Collaborateur dossier]]<>\"\",Collaborateur_Dossier[[#This Row],[Trigramme]],\"\")","v":""}]
[null,null,null,null,null,null,null,null,null,null,null,null,null,null,null,null,null,null,{"$f":"IF(AND(Collaborateur_Dossier[[#This Row],[RoleDossier]]=\"Responsable\",Collaborateur_Dossier[[#This Row],[Defaut]]),Collaborateur_Dossier[[#This Row],[DossierCode]],\"\")","v":""},{"$f":"IF(Collaborateur_Dossier[[#This Row],[Collaborateur dossier]]<>\"\",Collaborateur_Dossier[[#This Row],[Trigramme]],\"\")","v":""}]
[null,null,null,null,null,null,null,null,null,null,null,null,null,null,null,null,null,null,{"$f":"IF(AND(Collaborateur_Dossier[[#This Row],[RoleDossier]]=\"Responsable\",Collaborateur_Dossier[[#This Row],[Defaut]]),Collaborateur_Dossier[[#This Row],[DossierCode]],\"\")","v":""},{"$f":"IF(Collaborateur_Dossier[[#This Row],[Collaborateur dossier]]<>\"\",Collaborateur_Dossier[[#This Row],[Trigramme]],\"\")","v":""}]
[null,null,null,null,null,null,null,null,null,null,null,null,null,null,null,null,null,null,{"$f":"IF(AND(Collaborateur_Dossier[[#This Row],[RoleDossier]]=\"Responsable\",Collaborateur_Dossier[[#This Row],[Defaut]]),Collaborateur_Dossier[[#This Row],[DossierCode]],\"\")","v":""},{"$f":"IF(Collaborateur_Dossier[[#This Row],[Collaborateur dossier]]<>\"\",Collaborateur_Dossier[[#This Row],[Trigramme]],\"\")","v":""}]
[null,null,null,null,null,null,null,null,null,null,null,null,null,null,null,null,null,null,{"$f":"IF(AND(Collaborateur_Dossier[[#This Row],[RoleDossier]]=\"Responsable\",Collaborateur_Dossier[[#This Row],[Defaut]]),Collaborateur_Dossier[[#This Row],[DossierCode]],\"\")","v":""},{"$f":"IF(Collaborateur_Dossier[[#This Row],[Collaborateur dossier]]<>\"\",Collaborateur_Dossier[[#This Row],[Trigramme]],\"\")","v":""}]
[null,null,null,null,null,null,null,null,null,null,null,null,null,null,null,null,null,null,{"$f":"IF(AND(Collaborateur_Dossier[[#This Row],[RoleDossier]]=\"Responsable\",Collaborateur_Dossier[[#This Row],[Defaut]]),Collaborateur_Dossier[[#This Row],[DossierCode]],\"\")","v":""},{"$f":"IF(Collaborateur_Dossier[[#This Row],[Collaborateur dossier]]<>\"\",Collaborateur_Dossier[[#This Row],[Trigramme]],\"\")","v":""}]
[null,null,null,null,null,null,null,null,null,null,null,null,null,null,null,null,null,null,{"$f":"IF(AND(Collaborateur_Dossier[[#This Row],[RoleDossier]]=\"Responsable\",Collaborateur_Dossier[[#This Row],[Defaut]]),Collaborateur_Dossier[[#This Row],[DossierCode]],\"\")","v":""},{"$f":"IF(Collaborateur_Dossier[[#This Row],[Collaborateur dossier]]<>\"\",Collaborateur_Dossier[[#This Row],[Trigramme]],\"\")","v":""}]
[null,null,null,null,null,null,null,null,null,null,null,null,null,null,null,null,null,null,{"$f":"IF(AND(Collaborateur_Dossier[[#This Row],[RoleDossier]]=\"Responsable\",Collaborateur_Dossier[[#This Row],[Defaut]]),Collaborateur_Dossier[[#This Row],[DossierCode]],\"\")","v":""},{"$f":"IF(Collaborateur_Dossier[[#This Row],[Collaborateur dossier]]<>\"\",Collaborateur_Dossier[[#This Row],[Trigramme]],\"\")","v":""}]
[null,null,null,null,null,null,null,null,null,null,null,null,null,null,null,null,null,null,{"$f":"IF(AND(Collaborateur_Dossier[[#This Row],[RoleDossier]]=\"Responsable\",Collaborateur_Dossier[[#This Row],[Defaut]]),Collaborateur_Dossier[[#This Row],[DossierCode]],\"\")","v":""},{"$f":"IF(Collaborateur_Dossier[[#This Row],[Collaborateur dossier]]<>\"\",Collaborateur_Dossier[[#This Row],[Trigramme]],\"\")","v":""}]
[null,null,null,null,null,null,null,null,null,null,null,null,null,null,null,null,null,null,{"$f":"IF(AND(Collaborateur_Dossier[[#This Row],[RoleDossier]]=\"Responsable\",Collaborateur_Dossier[[#This Row],[Defaut]]),Collaborateur_Dossier[[#This Row],[DossierCode]],\"\")","v":""},{"$f":"IF(Collaborateur_Dossier[[#This Row],[Collaborateur dossier]]<>\"\",Collaborateur_Dossier[[#This Row],[Trigramme]],\"\")","v":""}]
[null,null,null,null,null,null,null,null,null,null,null,null,null,null,null,null,null,null,{"$f":"IF(AND(Collaborateur_Dossier[[#This Row],[RoleDossier]]=\"Responsable\",Collaborateur_Dossier[[#This Row],[Defaut]]),Collaborateur_Dossier[[#This Row],[DossierCode]],\"\")","v":""},{"$f":"IF(Collaborateur_Dossier[[#This Row],[Collaborateur dossier]]<>\"\",Collaborateur_Dossier[[#This Row],[Trigramme]],\"\")","v":""}]
[null,null,null,null,null,null,null,null,null,null,null,null,null,null,null,null,null,null,{"$f":"IF(AND(Collaborateur_Dossier[[#This Row],[RoleDossier]]=\"Responsable\",Collaborateur_Dossier[[#This Row],[Defaut]]),Collaborateur_Dossier[[#This Row],[DossierCode]],\"\")","v":""},{"$f":"IF(Collaborateur_Dossier[[#This Row],[Collaborateur dossier]]<>\"\",Collaborateur_Dossier[[#This Row],[Trigramme]],\"\")","v":""}]
[null,null,null,null,null,null,null,null,null,null,null,null,null,null,null,null,null,null,{"$f":"IF(AND(Collaborateur_Dossier[[#This Row],[RoleDossier]]=\"Responsable\",Collaborateur_Dossier[[#This Row],[Defaut]]),Collaborateur_Dossier[[#This Row],[DossierCode]],\"\")","v":""},{"$f":"IF(Collaborateur_Dossier[[#This Row],[Collaborateur dossier]]<>\"\",Collaborateur_Dossier[[#This Row],[Trigramme]],\"\")","v":""}]
[null,null,null,null,null,null,null,null,null,null,null,null,null,null,null,null,null,null,{"$f":"IF(AND(Collaborateur_Dossier[[#This Row],[RoleDossier]]=\"Responsable\",Collaborateur_Dossier[[#This Row],[Defaut]]),Collaborateur_Dossier[[#This Row],[DossierCode]],\"\")","v":""},{"$f":"IF(Collaborateur_Dossier[[#This Row],[Collaborateur dossier]]<>\"\",Collaborateur_Dossier[[#This Row],[Trigramme]],\"\")","v":""}]
[null,null,null,null,null,null,null,null,null,null,null,null,null,null,null,null,null,null,{"$f":"IF(AND(Collaborateur_Dossier[[#This Row],[RoleDossier]]=\"Responsable\",Collaborateur_Dossier[[#This Row],[Defaut]]),Collaborateur_Dossier[[#This Row],[DossierCode]],\"\")","v":""},{"$f":"IF(Collaborateur_Dossier[[#This Row],[Collaborateur dossier]]<>\"\",Collaborateur_Dossier[[#This Row],[Trigramme]],\"\")","v":""}]
[null,null,null,null,null,null,null,null,null,null,null,null,null,null,null,null,null,null,{"$f":"IF(AND(Collaborateur_Dossier[[#This Row],[RoleDossier]]=\"Responsable\",Collaborateur_Dossier[[#This Row],[Defaut]]),Collaborateur_Dossier[[#This Row],[DossierCode]],\"\")","v":""},{"$f":"IF(Collaborateur_Dossier[[#This Row],[Collaborateur dossier]]<>\"\",Collaborateur_Dossier[[#This Row],[Trigramme]],\"\")","v":""}]
[null,null,null,null,null,null,null,null,null,null,null,null,null,null,null,null,null,null,{"$f":"IF(AND(Collaborateur_Dossier[[#This Row],[RoleDossier]]=\"Responsable\",Collaborateur_Dossier[[#This Row],[Defaut]]),Collaborateur_Dossier[[#This Row],[DossierCode]],\"\")","v":""},{"$f":"IF(Collaborateur_Dossier[[#This Row],[Collaborateur dossier]]<>\"\",Collaborateur_Dossier[[#This Row],[Trigramme]],\"\")","v":""}]
[null,null,null,null,null,null,null,null,null,null,null,null,null,null,null,null,null,null,{"$f":"IF(AND(Collaborateur_Dossier[[#This Row],[RoleDossier]]=\"Responsable\",Collaborateur_Dossier[[#This Row],[Defaut]]),Collaborateur_Dossier[[#This Row],[DossierCode]],\"\")","v":""},{"$f":"IF(Collaborateur_Dossier[[#This Row],[Collaborateur dossier]]<>\"\",Collaborateur_Dossier[[#This Row],[Trigramme]],\"\")","v":""}]
[null,null,null,null,null,null,null,null,null,null,null,null,null,null,null,null,null,null,{"$f":"IF(AND(Collaborateur_Dossier[[#This Row],[RoleDossier]]=\"Responsable\",Collaborateur_Dossier[[#This Row],[Defaut]]),Collaborateur_Dossier[[#This Row],[DossierCode]],\"\")","v":""},{"$f":"IF(Collaborateur_Dossier[[#This Row],[Collaborateur dossier]]<>\"\",Collaborateur_Dossier[[#This Row],[Trigramme]],\"\")","v":""}]
[null,null,null,null,null,null,null,null,null,null,null,null,null,null,null,null,null,null,{"$f":"IF(AND(Collaborateur_Dossier[[#This Row],[RoleDossier]]=\"Responsable\",Collaborateur_Dossier[[#This Row],[Defaut]]),Collaborateur_Dossier[[#This Row],[DossierCode]],\"\")","v":""},{"$f":"IF(Collaborateur_Dossier[[#This Row],[Collaborateur dossier]]<>\"\",Collaborateur_Dossier[[#This Row],[Trigramme]],\"\")","v":""}]
[null,null,null,null,null,null,null,null,null,null,null,null,null,null,null,null,null,null,{"$f":"IF(AND(Collaborateur_Dossier[[#This Row],[RoleDossier]]=\"Responsable\",Collaborateur_Dossier[[#This Row],[Defaut]]),Collaborateur_Dossier[[#This Row],[DossierCode]],\"\")","v":""},{"$f":"IF(Collaborateur_Dossier[[#This Row],[Collaborateur dossier]]<>\"\",Collaborateur_Dossier[[#This Row],[Trigramme]],\"\")","v":""}]
[null,null,null,null,null,null,null,null,null,null,null,null,null,null,null,null,null,null,{"$f":"IF(AND(Collaborateur_Dossier[[#This Row],[RoleDossier]]=\"Responsable\",Collaborateur_Dossier[[#This Row],[Defaut]]),Collaborateur_Dossier[[#This Row],[DossierCode]],\"\")","v":""},{"$f":"IF(Collaborateur_Dossier[[#This Row],[Collaborateur dossier]]<>\"\",Collaborateur_Dossier[[#This Row],[Trigramme]],\"\")","v":""}]
[null,null,null,null,null,null,null,null,null,null,null,null,null,null,null,null,null,null,{"$f":"IF(AND(Collaborateur_Dossier[[#This Row],[RoleDossier]]=\"Responsable\",Collaborateur_Dossier[[#This Row],[Defaut]]),Collaborateur_Dossier[[#This Row],[DossierCode]],\"\")","v":""},{"$f":"IF(Collaborateur_Dossier[[#This Row],[Collaborateur dossier]]<>\"\",Collaborateur_Dossier[[#This Row],[Trigramme]],\"\")","v":""}]
[null,null,null,null,null,null,null,null,null,null,null,null,null,null,null,null,null,null,{"$f":"IF(AND(Collaborateur_Dossier[[#This Row],[RoleDossier]]=\"Responsable\",Collaborateur_Dossier[[#This Row],[Defaut]]),Collaborateur_Dossier[[#This Row],[DossierCode]],\"\")","v":""},{"$f":"IF(Collaborateur_Dossier[[#This Row],[Collaborateur dossier]]<>\"\",Collaborateur_Dossier[[#This Row],[Trigramme]],\"\")","v":""}]
[null,null,null,null,null,null,null,null,null,null,null,null,null,null,null,null,null,null,{"$f":"IF(AND(Collaborateur_Dossier[[#This Row],[RoleDossier]]=\"Responsable\",Collaborateur_Dossier[[#This Row],[Defaut]]),Collaborateur_Dossier[[#This Row],[DossierCode]],\"\")","v":""},{"$f":"IF(Collaborateur_Dossier[[#This Row],[Collaborateur dossier]]<>\"\",Collaborateur_Dossier[[#This Row],[Trigramme]],\"\")","v":""}]
[null,null,null,null,null,null,null,null,null,null,null,null,null,null,null,null,null,null,{"$f":"IF(AND(Collaborateur_Dossier[[#This Row],[RoleDossier]]=\"Responsable\",Collaborateur_Dossier[[#This Row],[Defaut]]),Collaborateur_Dossier[[#This Row],[DossierCode]],\"\")","v":""},{"$f":"IF(Collaborateur_Dossier[[#This Row],[Collaborateur dossier]]<>\"\",Collaborateur_Dossier[[#This Row],[Trigramme]],\"\")","v":""}]
[null,null,null,null,null,null,null,null,null,null,null,null,null,null,null,null,null,null,{"$f":"IF(AND(Collaborateur_Dossier[[#This Row],[RoleDossier]]=\"Responsable\",Collaborateur_Dossier[[#This Row],[Defaut]]),Collaborateur_Dossier[[#This Row],[DossierCode]],\"\")","v":""},{"$f":"IF(Collaborateur_Dossier[[#This Row],[Collaborateur dossier]]<>\"\",Collaborateur_Dossier[[#This Row],[Trigramme]],\"\")","v":""}]
[null,null,null,null,null,null,null,null,null,null,null,null,null,null,null,null,null,null,{"$f":"IF(AND(Collaborateur_Dossier[[#This Row],[RoleDossier]]=\"Responsable\",Collaborateur_Dossier[[#This Row],[Defaut]]),Collaborateur_Dossier[[#This Row],[DossierCode]],\"\")","v":""},{"$f":"IF(Collaborateur_Dossier[[#This Row],[Collaborateur dossier]]<>\"\",Collaborateur_Dossier[[#This Row],[Trigramme]],\"\")","v":""}]
[null,null,null,null,null,null,null,null,null,null,null,null,null,null,null,null,null,null,{"$f":"IF(AND(Collaborateur_Dossier[[#This Row],[RoleDossier]]=\"Responsable\",Collaborateur_Dossier[[#This Row],[Defaut]]),Collaborateur_Dossier[[#This Row],[DossierCode]],\"\")","v":""},{"$f":"IF(Collaborateur_Dossier[[#This Row],[Collaborateur dossier]]<>\"\",Collaborateur_Dossier[[#This Row],[Trigramme]],\"\")","v":""}]
[null,null,null,null,null,null,null,null,null,null,null,null,null,null,null,null,null,null,{"$f":"IF(AND(Collaborateur_Dossier[[#This Row],[RoleDossier]]=\"Responsable\",Collaborateur_Dossier[[#This Row],[Defaut]]),Collaborateur_Dossier[[#This Row],[DossierCode]],\"\")","v":""},{"$f":"IF(Collaborateur_Dossier[[#This Row],[Collaborateur dossier]]<>\"\",Collaborateur_Dossier[[#This Row],[Trigramme]],\"\")","v":""}]
[null,null,null,null,null,null,null,null,null,null,null,null,null,null,null,null,null,null,{"$f":"IF(AND(Collaborateur_Dossier[[#This Row],[RoleDossier]]=\"Responsable\",Collaborateur_Dossier[[#This Row],[Defaut]]),Collaborateur_Dossier[[#This Row],[DossierCode]],\"\")","v":""},{"$f":"IF(Collaborateur_Dossier[[#This Row],[Collaborateur dossier]]<>\"\",Collaborateur_Dossier[[#This Row],[Trigramme]],\"\")","v":""}]
[null,null,null,null,null,null,null,null,null,null,null,null,null,null,null,null,null,null,{"$f":"IF(AND(Collaborateur_Dossier[[#This Row],[RoleDossier]]=\"Responsable\",Collaborateur_Dossier[[#This Row],[Defaut]]),Collaborateur_Dossier[[#This Row],[DossierCode]],\"\")","v":""},{"$f":"IF(Collaborateur_Dossier[[#This Row],[Collaborateur dossier]]<>\"\",Collaborateur_Dossier[[#This Row],[Trigramme]],\"\")","v":""}]
[null,null,null,null,null,null,null,null,null,null,null,null,null,null,null,null,null,null,{"$f":"IF(AND(Collaborateur_Dossier[[#This Row],[RoleDossier]]=\"Responsable\",Collaborateur_Dossier[[#This Row],[Defaut]]),Collaborateur_Dossier[[#This Row],[DossierCode]],\"\")","v":""},{"$f":"IF(Collaborateur_Dossier[[#This Row],[Collaborateur dossier]]<>\"\",Collaborateur_Dossier[[#This Row],[Trigramme]],\"\")","v":""}]
[null,null,null,null,null,null,null,null,null,null,null,null,null,null,null,null,null,null,{"$f":"IF(AND(Collaborateur_Dossier[[#This Row],[RoleDossier]]=\"Responsable\",Collaborateur_Dossier[[#This Row],[Defaut]]),Collaborateur_Dossier[[#This Row],[DossierCode]],\"\")","v":""},{"$f":"IF(Collaborateur_Dossier[[#This Row],[Collaborateur dossier]]<>\"\",Collaborateur_Dossier[[#This Row],[Trigramme]],\"\")","v":""}]
[null,null,null,null,null,null,null,null,null,null,null,null,null,null,null,null,null,null,{"$f":"IF(AND(Collaborateur_Dossier[[#This Row],[RoleDossier]]=\"Responsable\",Collaborateur_Dossier[[#This Row],[Defaut]]),Collaborateur_Dossier[[#This Row],[DossierCode]],\"\")","v":""},{"$f":"IF(Collaborateur_Dossier[[#This Row],[Collaborateur dossier]]<>\"\",Collaborateur_Dossier[[#This Row],[Trigramme]],\"\")","v":""}]
[null,null,null,null,null,null,null,null,null,null,null,null,null,null,null,null,null,null,{"$f":"IF(AND(Collaborateur_Dossier[[#This Row],[RoleDossier]]=\"Responsable\",Collaborateur_Dossier[[#This Row],[Defaut]]),Collaborateur_Dossier[[#This Row],[DossierCode]],\"\")","v":""},{"$f":"IF(Collaborateur_Dossier[[#This Row],[Collaborateur dossier]]<>\"\",Collaborateur_Dossier[[#This Row],[Trigramme]],\"\")","v":""}]
[null,null,null,null,null,null,null,null,null,null,null,null,null,null,null,null,null,null,{"$f":"IF(AND(Collaborateur_Dossier[[#This Row],[RoleDossier]]=\"Responsable\",Collaborateur_Dossier[[#This Row],[Defaut]]),Collaborateur_Dossier[[#This Row],[DossierCode]],\"\")","v":""},{"$f":"IF(Collaborateur_Dossier[[#This Row],[Collaborateur dossier]]<>\"\",Collaborateur_Dossier[[#This Row],[Trigramme]],\"\")","v":""}]
[null,null,null,null,null,null,null,null,null,null,null,null,null,null,null,null,null,null,{"$f":"IF(AND(Collaborateur_Dossier[[#This Row],[RoleDossier]]=\"Responsable\",Collaborateur_Dossier[[#This Row],[Defaut]]),Collaborateur_Dossier[[#This Row],[DossierCode]],\"\")","v":""},{"$f":"IF(Collaborateur_Dossier[[#This Row],[Collaborateur dossier]]<>\"\",Collaborateur_Dossier[[#This Row],[Trigramme]],\"\")","v":""}]
[null,null,null,null,null,null,null,null,null,null,null,null,null,null,null,null,null,null,{"$f":"IF(AND(Collaborateur_Dossier[[#This Row],[RoleDossier]]=\"Responsable\",Collaborateur_Dossier[[#This Row],[Defaut]]),Collaborateur_Dossier[[#This Row],[DossierCode]],\"\")","v":""},{"$f":"IF(Collaborateur_Dossier[[#This Row],[Collaborateur dossier]]<>\"\",Collaborateur_Dossier[[#This Row],[Trigramme]],\"\")","v":""}]
[null,null,null,null,null,null,null,null,null,null,null,null,null,null,null,null,null,null,{"$f":"IF(AND(Collaborateur_Dossier[[#This Row],[RoleDossier]]=\"Responsable\",Collaborateur_Dossier[[#This Row],[Defaut]]),Collaborateur_Dossier[[#This Row],[DossierCode]],\"\")","v":""},{"$f":"IF(Collaborateur_Dossier[[#This Row],[Collaborateur dossier]]<>\"\",Collaborateur_Dossier[[#This Row],[Trigramme]],\"\")","v":""}]
[null,null,null,null,null,null,null,null,null,null,null,null,null,null,null,null,null,null,{"$f":"IF(AND(Collaborateur_Dossier[[#This Row],[RoleDossier]]=\"Responsable\",Collaborateur_Dossier[[#This Row],[Defaut]]),Collaborateur_Dossier[[#This Row],[DossierCode]],\"\")","v":""},{"$f":"IF(Collaborateur_Dossier[[#This Row],[Collaborateur dossier]]<>\"\",Collaborateur_Dossier[[#This Row],[Trigramme]],\"\")","v":""}]
[null,null,null,null,null,null,null,null,null,null,null,null,null,null,null,null,null,null,{"$f":"IF(AND(Collaborateur_Dossier[[#This Row],[RoleDossier]]=\"Responsable\",Collaborateur_Dossier[[#This Row],[Defaut]]),Collaborateur_Dossier[[#This Row],[DossierCode]],\"\")","v":""},{"$f":"IF(Collaborateur_Dossier[[#This Row],[Collaborateur dossier]]<>\"\",Collaborateur_Dossier[[#This Row],[Trigramme]],\"\")","v":""}]
[null,null,null,null,null,null,null,null,null,null,null,null,null,null,null,null,null,null,{"$f":"IF(AND(Collaborateur_Dossier[[#This Row],[RoleDossier]]=\"Responsable\",Collaborateur_Dossier[[#This Row],[Defaut]]),Collaborateur_Dossier[[#This Row],[DossierCode]],\"\")","v":""},{"$f":"IF(Collaborateur_Dossier[[#This Row],[Collaborateur dossier]]<>\"\",Collaborateur_Dossier[[#This Row],[Trigramme]],\"\")","v":""}]
[null,null,null,null,null,null,null,null,null,null,null,null,null,null,null,null,null,null,{"$f":"IF(AND(Collaborateur_Dossier[[#This Row],[RoleDossier]]=\"Responsable\",Collaborateur_Dossier[[#This Row],[Defaut]]),Collaborateur_Dossier[[#This Row],[DossierCode]],\"\")","v":""},{"$f":"IF(Collaborateur_Dossier[[#This Row],[Collaborateur dossier]]<>\"\",Collaborateur_Dossier[[#This Row],[Trigramme]],\"\")","v":""}]
[null,null,null,null,null,null,null,null,null,null,null,null,null,null,null,null,null,null,{"$f":"IF(AND(Collaborateur_Dossier[[#This Row],[RoleDossier]]=\"Responsable\",Collaborateur_Dossier[[#This Row],[Defaut]]),Collaborateur_Dossier[[#This Row],[DossierCode]],\"\")","v":""},{"$f":"IF(Collaborateur_Dossier[[#This Row],[Collaborateur dossier]]<>\"\",Collaborateur_Dossier[[#This Row],[Trigramme]],\"\")","v":""}]
[null,null,null,null,null,null,null,null,null,null,null,null,null,null,null,null,null,null,{"$f":"IF(AND(Collaborateur_Dossier[[#This Row],[RoleDossier]]=\"Responsable\",Collaborateur_Dossier[[#This Row],[Defaut]]),Collaborateur_Dossier[[#This Row],[DossierCode]],\"\")","v":""},{"$f":"IF(Collaborateur_Dossier[[#This Row],[Collaborateur dossier]]<>\"\",Collaborateur_Dossier[[#This Row],[Trigramme]],\"\")","v":""}]
[null,null,null,null,null,null,null,null,null,null,null,null,null,null,null,null,null,null,{"$f":"IF(AND(Collaborateur_Dossier[[#This Row],[RoleDossier]]=\"Responsable\",Collaborateur_Dossier[[#This Row],[Defaut]]),Collaborateur_Dossier[[#This Row],[DossierCode]],\"\")","v":""},{"$f":"IF(Collaborateur_Dossier[[#This Row],[Collaborateur dossier]]<>\"\",Collaborateur_Dossier[[#This Row],[Trigramme]],\"\")","v":""}]
[null,null,null,null,null,null,null,null,null,null,null,null,null,null,null,null,null,null,{"$f":"IF(AND(Collaborateur_Dossier[[#This Row],[RoleDossier]]=\"Responsable\",Collaborateur_Dossier[[#This Row],[Defaut]]),Collaborateur_Dossier[[#This Row],[DossierCode]],\"\")","v":""},{"$f":"IF(Collaborateur_Dossier[[#This Row],[Collaborateur dossier]]<>\"\",Collaborateur_Dossier[[#This Row],[Trigramme]],\"\")","v":""}]
[null,null,null,null,null,null,null,null,null,null,null,null,null,null,null,null,null,null,{"$f":"IF(AND(Collaborateur_Dossier[[#This Row],[RoleDossier]]=\"Responsable\",Collaborateur_Dossier[[#This Row],[Defaut]]),Collaborateur_Dossier[[#This Row],[DossierCode]],\"\")","v":""},{"$f":"IF(Collaborateur_Dossier[[#This Row],[Collaborateur dossier]]<>\"\",Collaborateur_Dossier[[#This Row],[Trigramme]],\"\")","v":""}]
[null,null,null,null,null,null,null,null,null,null,null,null,null,null,null,null,null,null,{"$f":"IF(AND(Collaborateur_Dossier[[#This Row],[RoleDossier]]=\"Responsable\",Collaborateur_Dossier[[#This Row],[Defaut]]),Collaborateur_Dossier[[#This Row],[DossierCode]],\"\")","v":""},{"$f":"IF(Collaborateur_Dossier[[#This Row],[Collaborateur dossier]]<>\"\",Collaborateur_Dossier[[#This Row],[Trigramme]],\"\")","v":""}]
[null,null,null,null,null,null,null,null,null,null,null,null,null,null,null,null,null,null,{"$f":"IF(AND(Collaborateur_Dossier[[#This Row],[RoleDossier]]=\"Responsable\",Collaborateur_Dossier[[#This Row],[Defaut]]),Collaborateur_Dossier[[#This Row],[DossierCode]],\"\")","v":""},{"$f":"IF(Collaborateur_Dossier[[#This Row],[Collaborateur dossier]]<>\"\",Collaborateur_Dossier[[#This Row],[Trigramme]],\"\")","v":""}]
[null,null,null,null,null,null,null,null,null,null,null,null,null,null,null,null,null,null,{"$f":"IF(AND(Collaborateur_Dossier[[#This Row],[RoleDossier]]=\"Responsable\",Collaborateur_Dossier[[#This Row],[Defaut]]),Collaborateur_Dossier[[#This Row],[DossierCode]],\"\")","v":""},{"$f":"IF(Collaborateur_Dossier[[#This Row],[Collaborateur dossier]]<>\"\",Collaborateur_Dossier[[#This Row],[Trigramme]],\"\")","v":""}]
[null,null,null,null,null,null,null,null,null,null,null,null,null,null,null,null,null,null,{"$f":"IF(AND(Collaborateur_Dossier[[#This Row],[RoleDossier]]=\"Responsable\",Collaborateur_Dossier[[#This Row],[Defaut]]),Collaborateur_Dossier[[#This Row],[DossierCode]],\"\")","v":""},{"$f":"IF(Collaborateur_Dossier[[#This Row],[Collaborateur dossier]]<>\"\",Collaborateur_Dossier[[#This Row],[Trigramme]],\"\")","v":""}]
[null,null,null,null,null,null,null,null,null,null,null,null,null,null,null,null,null,null,{"$f":"IF(AND(Collaborateur_Dossier[[#This Row],[RoleDossier]]=\"Responsable\",Collaborateur_Dossier[[#This Row],[Defaut]]),Collaborateur_Dossier[[#This Row],[DossierCode]],\"\")","v":""},{"$f":"IF(Collaborateur_Dossier[[#This Row],[Collaborateur dossier]]<>\"\",Collaborateur_Dossier[[#This Row],[Trigramme]],\"\")","v":""}]
[null,null,null,null,null,null,null,null,null,null,null,null,null,null,null,null,null,null,{"$f":"IF(AND(Collaborateur_Dossier[[#This Row],[RoleDossier]]=\"Responsable\",Collaborateur_Dossier[[#This Row],[Defaut]]),Collaborateur_Dossier[[#This Row],[DossierCode]],\"\")","v":""},{"$f":"IF(Collaborateur_Dossier[[#This Row],[Collaborateur dossier]]<>\"\",Collaborateur_Dossier[[#This Row],[Trigramme]],\"\")","v":""}]
[null,null,null,null,null,null,null,null,null,null,null,null,null,null,null,null,null,null,{"$f":"IF(AND(Collaborateur_Dossier[[#This Row],[RoleDossier]]=\"Responsable\",Collaborateur_Dossier[[#This Row],[Defaut]]),Collaborateur_Dossier[[#This Row],[DossierCode]],\"\")","v":""},{"$f":"IF(Collaborateur_Dossier[[#This Row],[Collaborateur dossier]]<>\"\",Collaborateur_Dossier[[#This Row],[Trigramme]],\"\")","v":""}]
[null,null,null,null,null,null,null,null,null,null,null,null,null,null,null,null,null,null,{"$f":"IF(AND(Collaborateur_Dossier[[#This Row],[RoleDossier]]=\"Responsable\",Collaborateur_Dossier[[#This Row],[Defaut]]),Collaborateur_Dossier[[#This Row],[DossierCode]],\"\")","v":""},{"$f":"IF(Collaborateur_Dossier[[#This Row],[Collaborateur dossier]]<>\"\",Collaborateur_Dossier[[#This Row],[Trigramme]],\"\")","v":""}]
[null,null,null,null,null,null,null,null,null,null,null,null,null,null,null,null,null,null,{"$f":"IF(AND(Collaborateur_Dossier[[#This Row],[RoleDossier]]=\"Responsable\",Collaborateur_Dossier[[#This Row],[Defaut]]),Collaborateur_Dossier[[#This Row],[DossierCode]],\"\")","v":""},{"$f":"IF(Collaborateur_Dossier[[#This Row],[Collaborateur dossier]]<>\"\",Collaborateur_Dossier[[#This Row],[Trigramme]],\"\")","v":""}]
[null,null,null,null,null,null,null,null,null,null,null,null,null,null,null,null,null,null,{"$f":"IF(AND(Collaborateur_Dossier[[#This Row],[RoleDossier]]=\"Responsable\",Collaborateur_Dossier[[#This Row],[Defaut]]),Collaborateur_Dossier[[#This Row],[DossierCode]],\"\")","v":""},{"$f":"IF(Collaborateur_Dossier[[#This Row],[Collaborateur dossier]]<>\"\",Collaborateur_Dossier[[#This Row],[Trigramme]],\"\")","v":""}]
[null,null,null,null,null,null,null,null,null,null,null,null,null,null,null,null,null,null,{"$f":"IF(AND(Collaborateur_Dossier[[#This Row],[RoleDossier]]=\"Responsable\",Collaborateur_Dossier[[#This Row],[Defaut]]),Collaborateur_Dossier[[#This Row],[DossierCode]],\"\")","v":""},{"$f":"IF(Collaborateur_Dossier[[#This Row],[Collaborateur dossier]]<>\"\",Collaborateur_Dossier[[#This Row],[Trigramme]],\"\")","v":""}]
[null,null,null,null,null,null,null,null,null,null,null,null,null,null,null,null,null,null,{"$f":"IF(AND(Collaborateur_Dossier[[#This Row],[RoleDossier]]=\"Responsable\",Collaborateur_Dossier[[#This Row],[Defaut]]),Collaborateur_Dossier[[#This Row],[DossierCode]],\"\")","v":""},{"$f":"IF(Collaborateur_Dossier[[#This Row],[Collaborateur dossier]]<>\"\",Collaborateur_Dossier[[#This Row],[Trigramme]],\"\")","v":""}]
[null,null,null,null,null,null,null,null,null,null,null,null,null,null,null,null,null,null,{"$f":"IF(AND(Collaborateur_Dossier[[#This Row],[RoleDossier]]=\"Responsable\",Collaborateur_Dossier[[#This Row],[Defaut]]),Collaborateur_Dossier[[#This Row],[DossierCode]],\"\")","v":""},{"$f":"IF(Collaborateur_Dossier[[#This Row],[Collaborateur dossier]]<>\"\",Collaborateur_Dossier[[#This Row],[Trigramme]],\"\")","v":""}]
[null,null,null,null,null,null,null,null,null,null,null,null,null,null,null,null,null,null,{"$f":"IF(AND(Collaborateur_Dossier[[#This Row],[RoleDossier]]=\"Responsable\",Collaborateur_Dossier[[#This Row],[Defaut]]),Collaborateur_Dossier[[#This Row],[DossierCode]],\"\")","v":""},{"$f":"IF(Collaborateur_Dossier[[#This Row],[Collaborateur dossier]]<>\"\",Collaborateur_Dossier[[#This Row],[Trigramme]],\"\")","v":""}]
[null,null,null,null,null,null,null,null,null,null,null,null,null,null,null,null,null,null,{"$f":"IF(AND(Collaborateur_Dossier[[#This Row],[RoleDossier]]=\"Responsable\",Collaborateur_Dossier[[#This Row],[Defaut]]),Collaborateur_Dossier[[#This Row],[DossierCode]],\"\")","v":""},{"$f":"IF(Collaborateur_Dossier[[#This Row],[Collaborateur dossier]]<>\"\",Collaborateur_Dossier[[#This Row],[Trigramme]],\"\")","v":""}]
[null,null,null,null,null,null,null,null,null,null,null,null,null,null,null,null,null,null,{"$f":"IF(AND(Collaborateur_Dossier[[#This Row],[RoleDossier]]=\"Responsable\",Collaborateur_Dossier[[#This Row],[Defaut]]),Collaborateur_Dossier[[#This Row],[DossierCode]],\"\")","v":""},{"$f":"IF(Collaborateur_Dossier[[#This Row],[Collaborateur dossier]]<>\"\",Collaborateur_Dossier[[#This Row],[Trigramme]],\"\")","v":""}]
[null,null,null,null,null,null,null,null,null,null,null,null,null,null,null,null,null,null,{"$f":"IF(AND(Collaborateur_Dossier[[#This Row],[RoleDossier]]=\"Responsable\",Collaborateur_Dossier[[#This Row],[Defaut]]),Collaborateur_Dossier[[#This Row],[DossierCode]],\"\")","v":""},{"$f":"IF(Collaborateur_Dossier[[#This Row],[Collaborateur dossier]]<>\"\",Collaborateur_Dossier[[#This Row],[Trigramme]],\"\")","v":""}]
[null,null,null,null,null,null,null,null,null,null,null,null,null,null,null,null,null,null,{"$f":"IF(AND(Collaborateur_Dossier[[#This Row],[RoleDossier]]=\"Responsable\",Collaborateur_Dossier[[#This Row],[Defaut]]),Collaborateur_Dossier[[#This Row],[DossierCode]],\"\")","v":""},{"$f":"IF(Collaborateur_Dossier[[#This Row],[Collaborateur dossier]]<>\"\",Collaborateur_Dossier[[#This Row],[Trigramme]],\"\")","v":""}]
[null,null,null,null,null,null,null,null,null,null,null,null,null,null,null,null,null,null,{"$f":"IF(AND(Collaborateur_Dossier[[#This Row],[RoleDossier]]=\"Responsable\",Collaborateur_Dossier[[#This Row],[Defaut]]),Collaborateur_Dossier[[#This Row],[DossierCode]],\"\")","v":""},{"$f":"IF(Collaborateur_Dossier[[#This Row],[Collaborateur dossier]]<>\"\",Collaborateur_Dossier[[#This Row],[Trigramme]],\"\")","v":""}]
[null,null,null,null,null,null,null,null,null,null,null,null,null,null,null,null,null,null,{"$f":"IF(AND(Collaborateur_Dossier[[#This Row],[RoleDossier]]=\"Responsable\",Collaborateur_Dossier[[#This Row],[Defaut]]),Collaborateur_Dossier[[#This Row],[DossierCode]],\"\")","v":""},{"$f":"IF(Collaborateur_Dossier[[#This Row],[Collaborateur dossier]]<>\"\",Collaborateur_Dossier[[#This Row],[Trigramme]],\"\")","v":""}]
[null,null,null,null,null,null,null,null,null,null,null,null,null,null,null,null,null,null,{"$f":"IF(AND(Collaborateur_Dossier[[#This Row],[RoleDossier]]=\"Responsable\",Collaborateur_Dossier[[#This Row],[Defaut]]),Collaborateur_Dossier[[#This Row],[DossierCode]],\"\")","v":""},{"$f":"IF(Collaborateur_Dossier[[#This Row],[Collaborateur dossier]]<>\"\",Collaborateur_Dossier[[#This Row],[Trigramme]],\"\")","v":""}]
[null,null,null,null,null,null,null,null,null,null,null,null,null,null,null,null,null,null,{"$f":"IF(AND(Collaborateur_Dossier[[#This Row],[RoleDossier]]=\"Responsable\",Collaborateur_Dossier[[#This Row],[Defaut]]),Collaborateur_Dossier[[#This Row],[DossierCode]],\"\")","v":""},{"$f":"IF(Collaborateur_Dossier[[#This Row],[Collaborateur dossier]]<>\"\",Collaborateur_Dossier[[#This Row],[Trigramme]],\"\")","v":""}]
[null,null,null,null,null,null,null,null,null,null,null,null,null,null,null,null,null,null,{"$f":"IF(AND(Collaborateur_Dossier[[#This Row],[RoleDossier]]=\"Responsable\",Collaborateur_Dossier[[#This Row],[Defaut]]),Collaborateur_Dossier[[#This Row],[DossierCode]],\"\")","v":""},{"$f":"IF(Collaborateur_Dossier[[#This Row],[Collaborateur dossier]]<>\"\",Collaborateur_Dossier[[#This Row],[Trigramme]],\"\")","v":""}]
[null,null,null,null,null,null,null,null,null,null,null,null,null,null,null,null,null,null,{"$f":"IF(AND(Collaborateur_Dossier[[#This Row],[RoleDossier]]=\"Responsable\",Collaborateur_Dossier[[#This Row],[Defaut]]),Collaborateur_Dossier[[#This Row],[DossierCode]],\"\")","v":""},{"$f":"IF(Collaborateur_Dossier[[#This Row],[Collaborateur dossier]]<>\"\",Collaborateur_Dossier[[#This Row],[Trigramme]],\"\")","v":""}]
[null,null,null,null,null,null,null,null,null,null,null,null,null,null,null,null,null,null,{"$f":"IF(AND(Collaborateur_Dossier[[#This Row],[RoleDossier]]=\"Responsable\",Collaborateur_Dossier[[#This Row],[Defaut]]),Collaborateur_Dossier[[#This Row],[DossierCode]],\"\")","v":""},{"$f":"IF(Collaborateur_Dossier[[#This Row],[Collaborateur dossier]]<>\"\",Collaborateur_Dossier[[#This Row],[Trigramme]],\"\")","v":""}]
[null,null,null,null,null,null,null,null,null,null,null,null,null,null,null,null,null,null,{"$f":"IF(AND(Collaborateur_Dossier[[#This Row],[RoleDossier]]=\"Responsable\",Collaborateur_Dossier[[#This Row],[Defaut]]),Collaborateur_Dossier[[#This Row],[DossierCode]],\"\")","v":""},{"$f":"IF(Collaborateur_Dossier[[#This Row],[Collaborateur dossier]]<>\"\",Collaborateur_Dossier[[#This Row],[Trigramme]],\"\")","v":""}]
[null,null,null,null,null,null,null,null,null,null,null,null,null,null,null,null,null,null,{"$f":"IF(AND(Collaborateur_Dossier[[#This Row],[RoleDossier]]=\"Responsable\",Collaborateur_Dossier[[#This Row],[Defaut]]),Collaborateur_Dossier[[#This Row],[DossierCode]],\"\")","v":""},{"$f":"IF(Collaborateur_Dossier[[#This Row],[Collaborateur dossier]]<>\"\",Collaborateur_Dossier[[#This Row],[Trigramme]],\"\")","v":""}]
[null,null,null,null,null,null,null,null,null,null,null,null,null,null,null,null,null,null,{"$f":"IF(AND(Collaborateur_Dossier[[#This Row],[RoleDossier]]=\"Responsable\",Collaborateur_Dossier[[#This Row],[Defaut]]),Collaborateur_Dossier[[#This Row],[DossierCode]],\"\")","v":""},{"$f":"IF(Collaborateur_Dossier[[#This Row],[Collaborateur dossier]]<>\"\",Collaborateur_Dossier[[#This Row],[Trigramme]],\"\")","v":""}]
[null,null,null,null,null,null,null,null,null,null,null,null,null,null,null,null,null,null,{"$f":"IF(AND(Collaborateur_Dossier[[#This Row],[RoleDossier]]=\"Responsable\",Collaborateur_Dossier[[#This Row],[Defaut]]),Collaborateur_Dossier[[#This Row],[DossierCode]],\"\")","v":""},{"$f":"IF(Collaborateur_Dossier[[#This Row],[Collaborateur dossier]]<>\"\",Collaborateur_Dossier[[#This Row],[Trigramme]],\"\")","v":""}]
[null,null,null,null,null,null,null,null,null,null,null,null,null,null,null,null,null,null,{"$f":"IF(AND(Collaborateur_Dossier[[#This Row],[RoleDossier]]=\"Responsable\",Collaborateur_Dossier[[#This Row],[Defaut]]),Collaborateur_Dossier[[#This Row],[DossierCode]],\"\")","v":""},{"$f":"IF(Collaborateur_Dossier[[#This Row],[Collaborateur dossier]]<>\"\",Collaborateur_Dossier[[#This Row],[Trigramme]],\"\")","v":""}]
[null,null,null,null,null,null,null,null,null,null,null,null,null,null,null,null,null,null,{"$f":"IF(AND(Collaborateur_Dossier[[#This Row],[RoleDossier]]=\"Responsable\",Collaborateur_Dossier[[#This Row],[Defaut]]),Collaborateur_Dossier[[#This Row],[DossierCode]],\"\")","v":""},{"$f":"IF(Collaborateur_Dossier[[#This Row],[Collaborateur dossier]]<>\"\",Collaborateur_Dossier[[#This Row],[Trigramme]],\"\")","v":""}]
[null,null,null,null,null,null,null,null,null,null,null,null,null,null,null,null,null,null,{"$f":"IF(AND(Collaborateur_Dossier[[#This Row],[RoleDossier]]=\"Responsable\",Collaborateur_Dossier[[#This Row],[Defaut]]),Collaborateur_Dossier[[#This Row],[DossierCode]],\"\")","v":""},{"$f":"IF(Collaborateur_Dossier[[#This Row],[Collaborateur dossier]]<>\"\",Collaborateur_Dossier[[#This Row],[Trigramme]],\"\")","v":""}]
[null,null,null,null,null,null,null,null,null,null,null,null,null,null,null,null,null,null,{"$f":"IF(AND(Collaborateur_Dossier[[#This Row],[RoleDossier]]=\"Responsable\",Collaborateur_Dossier[[#This Row],[Defaut]]),Collaborateur_Dossier[[#This Row],[DossierCode]],\"\")","v":""},{"$f":"IF(Collaborateur_Dossier[[#This Row],[Collaborateur dossier]]<>\"\",Collaborateur_Dossier[[#This Row],[Trigramme]],\"\")","v":""}]
[null,null,null,null,null,null,null,null,null,null,null,null,null,null,null,null,null,null,{"$f":"IF(AND(Collaborateur_Dossier[[#This Row],[RoleDossier]]=\"Responsable\",Collaborateur_Dossier[[#This Row],[Defaut]]),Collaborateur_Dossier[[#This Row],[DossierCode]],\"\")","v":""},{"$f":"IF(Collaborateur_Dossier[[#This Row],[Collaborateur dossier]]<>\"\",Collaborateur_Dossier[[#This Row],[Trigramme]],\"\")","v":""}]
[null,null,null,null,null,null,null,null,null,null,null,null,null,null,null,null,null,null,{"$f":"IF(AND(Collaborateur_Dossier[[#This Row],[RoleDossier]]=\"Responsable\",Collaborateur_Dossier[[#This Row],[Defaut]]),Collaborateur_Dossier[[#This Row],[DossierCode]],\"\")","v":""},{"$f":"IF(Collaborateur_Dossier[[#This Row],[Collaborateur dossier]]<>\"\",Collaborateur_Dossier[[#This Row],[Trigramme]],\"\")","v":""}]
[null,null,null,null,null,null,null,null,null,null,null,null,null,null,null,null,null,null,{"$f":"IF(AND(Collaborateur_Dossier[[#This Row],[RoleDossier]]=\"Responsable\",Collaborateur_Dossier[[#This Row],[Defaut]]),Collaborateur_Dossier[[#This Row],[DossierCode]],\"\")","v":""},{"$f":"IF(Collaborateur_Dossier[[#This Row],[Collaborateur dossier]]<>\"\",Collaborateur_Dossier[[#This Row],[Trigramme]],\"\")","v":""}]
[null,null,null,null,null,null,null,null,null,null,null,null,null,null,null,null,null,null,{"$f":"IF(AND(Collaborateur_Dossier[[#This Row],[RoleDossier]]=\"Responsable\",Collaborateur_Dossier[[#This Row],[Defaut]]),Collaborateur_Dossier[[#This Row],[DossierCode]],\"\")","v":""},{"$f":"IF(Collaborateur_Dossier[[#This Row],[Collaborateur dossier]]<>\"\",Collaborateur_Dossier[[#This Row],[Trigramme]],\"\")","v":""}]
[null,null,null,null,null,null,null,null,null,null,null,null,null,null,null,null,null,null,{"$f":"IF(AND(Collaborateur_Dossier[[#This Row],[RoleDossier]]=\"Responsable\",Collaborateur_Dossier[[#This Row],[Defaut]]),Collaborateur_Dossier[[#This Row],[DossierCode]],\"\")","v":""},{"$f":"IF(Collaborateur_Dossier[[#This Row],[Collaborateur dossier]]<>\"\",Collaborateur_Dossier[[#This Row],[Trigramme]],\"\")","v":""}]
[null,null,null,null,null,null,null,null,null,null,null,null,null,null,null,null,null,null,{"$f":"IF(AND(Collaborateur_Dossier[[#This Row],[RoleDossier]]=\"Responsable\",Collaborateur_Dossier[[#This Row],[Defaut]]),Collaborateur_Dossier[[#This Row],[DossierCode]],\"\")","v":""},{"$f":"IF(Collaborateur_Dossier[[#This Row],[Collaborateur dossier]]<>\"\",Collaborateur_Dossier[[#This Row],[Trigramme]],\"\")","v":""}]
[null,null,null,null,null,null,null,null,null,null,null,null,null,null,null,null,null,null,{"$f":"IF(AND(Collaborateur_Dossier[[#This Row],[RoleDossier]]=\"Responsable\",Collaborateur_Dossier[[#This Row],[Defaut]]),Collaborateur_Dossier[[#This Row],[DossierCode]],\"\")","v":""},{"$f":"IF(Collaborateur_Dossier[[#This Row],[Collaborateur dossier]]<>\"\",Collaborateur_Dossier[[#This Row],[Trigramme]],\"\")","v":""}]
[null,null,null,null,null,null,null,null,null,null,null,null,null,null,null,null,null,null,{"$f":"IF(AND(Collaborateur_Dossier[[#This Row],[RoleDossier]]=\"Responsable\",Collaborateur_Dossier[[#This Row],[Defaut]]),Collaborateur_Dossier[[#This Row],[DossierCode]],\"\")","v":""},{"$f":"IF(Collaborateur_Dossier[[#This Row],[Collaborateur dossier]]<>\"\",Collaborateur_Dossier[[#This Row],[Trigramme]],\"\")","v":""}]
[null,null,null,null,null,null,null,null,null,null,null,null,null,null,null,null,null,null,{"$f":"IF(AND(Collaborateur_Dossier[[#This Row],[RoleDossier]]=\"Responsable\",Collaborateur_Dossier[[#This Row],[Defaut]]),Collaborateur_Dossier[[#This Row],[DossierCode]],\"\")","v":""},{"$f":"IF(Collaborateur_Dossier[[#This Row],[Collaborateur dossier]]<>\"\",Collaborateur_Dossier[[#This Row],[Trigramme]],\"\")","v":""}]
[null,null,null,null,null,null,null,null,null,null,null,null,null,null,null,null,null,null,{"$f":"IF(AND(Collaborateur_Dossier[[#This Row],[RoleDossier]]=\"Responsable\",Collaborateur_Dossier[[#This Row],[Defaut]]),Collaborateur_Dossier[[#This Row],[DossierCode]],\"\")","v":""},{"$f":"IF(Collaborateur_Dossier[[#This Row],[Collaborateur dossier]]<>\"\",Collaborateur_Dossier[[#This Row],[Trigramme]],\"\")","v":""}]
[null,null,null,null,null,null,null,null,null,null,null,null,null,null,null,null,null,null,{"$f":"IF(AND(Collaborateur_Dossier[[#This Row],[RoleDossier]]=\"Responsable\",Collaborateur_Dossier[[#This Row],[Defaut]]),Collaborateur_Dossier[[#This Row],[DossierCode]],\"\")","v":""},{"$f":"IF(Collaborateur_Dossier[[#This Row],[Collaborateur dossier]]<>\"\",Collaborateur_Dossier[[#This Row],[Trigramme]],\"\")","v":""}]
[null,null,null,null,null,null,null,null,null,null,null,null,null,null,null,null,null,null,{"$f":"IF(AND(Collaborateur_Dossier[[#This Row],[RoleDossier]]=\"Responsable\",Collaborateur_Dossier[[#This Row],[Defaut]]),Collaborateur_Dossier[[#This Row],[DossierCode]],\"\")","v":""},{"$f":"IF(Collaborateur_Dossier[[#This Row],[Collaborateur dossier]]<>\"\",Collaborateur_Dossier[[#This Row],[Trigramme]],\"\")","v":""}]
[null,null,null,null,null,null,null,null,null,null,null,null,null,null,null,null,null,null,{"$f":"IF(AND(Collaborateur_Dossier[[#This Row],[RoleDossier]]=\"Responsable\",Collaborateur_Dossier[[#This Row],[Defaut]]),Collaborateur_Dossier[[#This Row],[DossierCode]],\"\")","v":""},{"$f":"IF(Collaborateur_Dossier[[#This Row],[Collaborateur dossier]]<>\"\",Collaborateur_Dossier[[#This Row],[Trigramme]],\"\")","v":""}]
[null,null,null,null,null,null,null,null,null,null,null,null,null,null,null,null,null,null,{"$f":"IF(AND(Collaborateur_Dossier[[#This Row],[RoleDossier]]=\"Responsable\",Collaborateur_Dossier[[#This Row],[Defaut]]),Collaborateur_Dossier[[#This Row],[DossierCode]],\"\")","v":""},{"$f":"IF(Collaborateur_Dossier[[#This Row],[Collaborateur dossier]]<>\"\",Collaborateur_Dossier[[#This Row],[Trigramme]],\"\")","v":""}]
[null,null,null,null,null,null,null,null,null,null,null,null,null,null,null,null,null,null,{"$f":"IF(AND(Collaborateur_Dossier[[#This Row],[RoleDossier]]=\"Responsable\",Collaborateur_Dossier[[#This Row],[Defaut]]),Collaborateur_Dossier[[#This Row],[DossierCode]],\"\")","v":""},{"$f":"IF(Collaborateur_Dossier[[#This Row],[Collaborateur dossier]]<>\"\",Collaborateur_Dossier[[#This Row],[Trigramme]],\"\")","v":""}]
[null,null,null,null,null,null,null,null,null,null,null,null,null,null,null,null,null,null,{"$f":"IF(AND(Collaborateur_Dossier[[#This Row],[RoleDossier]]=\"Responsable\",Collaborateur_Dossier[[#This Row],[Defaut]]),Collaborateur_Dossier[[#This Row],[DossierCode]],\"\")","v":""},{"$f":"IF(Collaborateur_Dossier[[#This Row],[Collaborateur dossier]]<>\"\",Collaborateur_Dossier[[#This Row],[Trigramme]],\"\")","v":""}]
[null,null,null,null,null,null,null,null,null,null,null,null,null,null,null,null,null,null,{"$f":"IF(AND(Collaborateur_Dossier[[#This Row],[RoleDossier]]=\"Responsable\",Collaborateur_Dossier[[#This Row],[Defaut]]),Collaborateur_Dossier[[#This Row],[DossierCode]],\"\")","v":""},{"$f":"IF(Collaborateur_Dossier[[#This Row],[Collaborateur dossier]]<>\"\",Collaborateur_Dossier[[#This Row],[Trigramme]],\"\")","v":""}]
[null,null,null,null,null,null,null,null,null,null,null,null,null,null,null,null,null,null,{"$f":"IF(AND(Collaborateur_Dossier[[#This Row],[RoleDossier]]=\"Responsable\",Collaborateur_Dossier[[#This Row],[Defaut]]),Collaborateur_Dossier[[#This Row],[DossierCode]],\"\")","v":""},{"$f":"IF(Collaborateur_Dossier[[#This Row],[Collaborateur dossier]]<>\"\",Collaborateur_Dossier[[#This Row],[Trigramme]],\"\")","v":""}]
[null,null,null,null,null,null,null,null,null,null,null,null,null,null,null,null,null,null,{"$f":"IF(AND(Collaborateur_Dossier[[#This Row],[RoleDossier]]=\"Responsable\",Collaborateur_Dossier[[#This Row],[Defaut]]),Collaborateur_Dossier[[#This Row],[DossierCode]],\"\")","v":""},{"$f":"IF(Collaborateur_Dossier[[#This Row],[Collaborateur dossier]]<>\"\",Collaborateur_Dossier[[#This Row],[Trigramme]],\"\")","v":""}]
[null,null,null,null,null,null,null,null,null,null,null,null,null,null,null,null,null,null,{"$f":"IF(AND(Collaborateur_Dossier[[#This Row],[RoleDossier]]=\"Responsable\",Collaborateur_Dossier[[#This Row],[Defaut]]),Collaborateur_Dossier[[#This Row],[DossierCode]],\"\")","v":""},{"$f":"IF(Collaborateur_Dossier[[#This Row],[Collaborateur dossier]]<>\"\",Collaborateur_Dossier[[#This Row],[Trigramme]],\"\")","v":""}]
[null,null,null,null,null,null,null,null,null,null,null,null,null,null,null,null,null,null,{"$f":"IF(AND(Collaborateur_Dossier[[#This Row],[RoleDossier]]=\"Responsable\",Collaborateur_Dossier[[#This Row],[Defaut]]),Collaborateur_Dossier[[#This Row],[DossierCode]],\"\")","v":""},{"$f":"IF(Collaborateur_Dossier[[#This Row],[Collaborateur dossier]]<>\"\",Collaborateur_Dossier[[#This Row],[Trigramme]],\"\")","v":""}]
[null,null,null,null,null,null,null,null,null,null,null,null,null,null,null,null,null,null,{"$f":"IF(AND(Collaborateur_Dossier[[#This Row],[RoleDossier]]=\"Responsable\",Collaborateur_Dossier[[#This Row],[Defaut]]),Collaborateur_Dossier[[#This Row],[DossierCode]],\"\")","v":""},{"$f":"IF(Collaborateur_Dossier[[#This Row],[Collaborateur dossier]]<>\"\",Collaborateur_Dossier[[#This Row],[Trigramme]],\"\")","v":""}]
[null,null,null,null,null,null,null,null,null,null,null,null,null,null,null,null,null,null,{"$f":"IF(AND(Collaborateur_Dossier[[#This Row],[RoleDossier]]=\"Responsable\",Collaborateur_Dossier[[#This Row],[Defaut]]),Collaborateur_Dossier[[#This Row],[DossierCode]],\"\")","v":""},{"$f":"IF(Collaborateur_Dossier[[#This Row],[Collaborateur dossier]]<>\"\",Collaborateur_Dossier[[#This Row],[Trigramme]],\"\")","v":""}]
[null,null,null,null,null,null,null,null,null,null,null,null,null,null,null,null,null,null,{"$f":"IF(AND(Collaborateur_Dossier[[#This Row],[RoleDossier]]=\"Responsable\",Collaborateur_Dossier[[#This Row],[Defaut]]),Collaborateur_Dossier[[#This Row],[DossierCode]],\"\")","v":""},{"$f":"IF(Collaborateur_Dossier[[#This Row],[Collaborateur dossier]]<>\"\",Collaborateur_Dossier[[#This Row],[Trigramme]],\"\")","v":""}]
[null,null,null,null,null,null,null,null,null,null,null,null,null,null,null,null,null,null,{"$f":"IF(AND(Collaborateur_Dossier[[#This Row],[RoleDossier]]=\"Responsable\",Collaborateur_Dossier[[#This Row],[Defaut]]),Collaborateur_Dossier[[#This Row],[DossierCode]],\"\")","v":""},{"$f":"IF(Collaborateur_Dossier[[#This Row],[Collaborateur dossier]]<>\"\",Collaborateur_Dossier[[#This Row],[Trigramme]],\"\")","v":""}]
[null,null,null,null,null,null,null,null,null,null,null,null,null,null,null,null,null,null,{"$f":"IF(AND(Collaborateur_Dossier[[#This Row],[RoleDossier]]=\"Responsable\",Collaborateur_Dossier[[#This Row],[Defaut]]),Collaborateur_Dossier[[#This Row],[DossierCode]],\"\")","v":""},{"$f":"IF(Collaborateur_Dossier[[#This Row],[Collaborateur dossier]]<>\"\",Collaborateur_Dossier[[#This Row],[Trigramme]],\"\")","v":""}]
[null,null,null,null,null,null,null,null,null,null,null,null,null,null,null,null,null,null,{"$f":"IF(AND(Collaborateur_Dossier[[#This Row],[RoleDossier]]=\"Responsable\",Collaborateur_Dossier[[#This Row],[Defaut]]),Collaborateur_Dossier[[#This Row],[DossierCode]],\"\")","v":""},{"$f":"IF(Collaborateur_Dossier[[#This Row],[Collaborateur dossier]]<>\"\",Collaborateur_Dossier[[#This Row],[Trigramme]],\"\")","v":""}]
[null,null,null,null,null,null,null,null,null,null,null,null,null,null,null,null,null,null,{"$f":"IF(AND(Collaborateur_Dossier[[#This Row],[RoleDossier]]=\"Responsable\",Collaborateur_Dossier[[#This Row],[Defaut]]),Collaborateur_Dossier[[#This Row],[DossierCode]],\"\")","v":""},{"$f":"IF(Collaborateur_Dossier[[#This Row],[Collaborateur dossier]]<>\"\",Collaborateur_Dossier[[#This Row],[Trigramme]],\"\")","v":""}]
[null,null,null,null,null,null,null,null,null,null,null,null,null,null,null,null,null,null,{"$f":"IF(AND(Collaborateur_Dossier[[#This Row],[RoleDossier]]=\"Responsable\",Collaborateur_Dossier[[#This Row],[Defaut]]),Collaborateur_Dossier[[#This Row],[DossierCode]],\"\")","v":""},{"$f":"IF(Collaborateur_Dossier[[#This Row],[Collaborateur dossier]]<>\"\",Collaborateur_Dossier[[#This Row],[Trigramme]],\"\")","v":""}]
[null,null,null,null,null,null,null,null,null,null,null,null,null,null,null,null,null,null,{"$f":"IF(AND(Collaborateur_Dossier[[#This Row],[RoleDossier]]=\"Responsable\",Collaborateur_Dossier[[#This Row],[Defaut]]),Collaborateur_Dossier[[#This Row],[DossierCode]],\"\")","v":""},{"$f":"IF(Collaborateur_Dossier[[#This Row],[Collaborateur dossier]]<>\"\",Collaborateur_Dossier[[#This Row],[Trigramme]],\"\")","v":""}]
[null,null,null,null,null,null,null,null,null,null,null,null,null,null,null,null,null,null,{"$f":"IF(AND(Collaborateur_Dossier[[#This Row],[RoleDossier]]=\"Responsable\",Collaborateur_Dossier[[#This Row],[Defaut]]),Collaborateur_Dossier[[#This Row],[DossierCode]],\"\")","v":""},{"$f":"IF(Collaborateur_Dossier[[#This Row],[Collaborateur dossier]]<>\"\",Collaborateur_Dossier[[#This Row],[Trigramme]],\"\")","v":""}]
[null,null,null,null,null,null,null,null,null,null,null,null,null,null,null,null,null,null,{"$f":"IF(AND(Collaborateur_Dossier[[#This Row],[RoleDossier]]=\"Responsable\",Collaborateur_Dossier[[#This Row],[Defaut]]),Collaborateur_Dossier[[#This Row],[DossierCode]],\"\")","v":""},{"$f":"IF(Collaborateur_Dossier[[#This Row],[Collaborateur dossier]]<>\"\",Collaborateur_Dossier[[#This Row],[Trigramme]],\"\")","v":""}]
[null,null,null,null,null,null,null,null,null,null,null,null,null,null,null,null,null,null,{"$f":"IF(AND(Collaborateur_Dossier[[#This Row],[RoleDossier]]=\"Responsable\",Collaborateur_Dossier[[#This Row],[Defaut]]),Collaborateur_Dossier[[#This Row],[DossierCode]],\"\")","v":""},{"$f":"IF(Collaborateur_Dossier[[#This Row],[Collaborateur dossier]]<>\"\",Collaborateur_Dossier[[#This Row],[Trigramme]],\"\")","v":""}]
[null,null,null,null,null,null,null,null,null,null,null,null,null,null,null,null,null,null,{"$f":"IF(AND(Collaborateur_Dossier[[#This Row],[RoleDossier]]=\"Responsable\",Collaborateur_Dossier[[#This Row],[Defaut]]),Collaborateur_Dossier[[#This Row],[DossierCode]],\"\")","v":""},{"$f":"IF(Collaborateur_Dossier[[#This Row],[Collaborateur dossier]]<>\"\",Collaborateur_Dossier[[#This Row],[Trigramme]],\"\")","v":""}]
[null,null,null,null,null,null,null,null,null,null,null,null,null,null,null,null,null,null,{"$f":"IF(AND(Collaborateur_Dossier[[#This Row],[RoleDossier]]=\"Responsable\",Collaborateur_Dossier[[#This Row],[Defaut]]),Collaborateur_Dossier[[#This Row],[DossierCode]],\"\")","v":""},{"$f":"IF(Collaborateur_Dossier[[#This Row],[Collaborateur dossier]]<>\"\",Collaborateur_Dossier[[#This Row],[Trigramme]],\"\")","v":""}]
[null,null,null,null,null,null,null,null,null,null,null,null,null,null,null,null,null,null,{"$f":"IF(AND(Collaborateur_Dossier[[#This Row],[RoleDossier]]=\"Responsable\",Collaborateur_Dossier[[#This Row],[Defaut]]),Collaborateur_Dossier[[#This Row],[DossierCode]],\"\")","v":""},{"$f":"IF(Collaborateur_Dossier[[#This Row],[Collaborateur dossier]]<>\"\",Collaborateur_Dossier[[#This Row],[Trigramme]],\"\")","v":""}]
[null,null,null,null,null,null,null,null,null,null,null,null,null,null,null,null,null,null,{"$f":"IF(AND(Collaborateur_Dossier[[#This Row],[RoleDossier]]=\"Responsable\",Collaborateur_Dossier[[#This Row],[Defaut]]),Collaborateur_Dossier[[#This Row],[DossierCode]],\"\")","v":""},{"$f":"IF(Collaborateur_Dossier[[#This Row],[Collaborateur dossier]]<>\"\",Collaborateur_Dossier[[#This Row],[Trigramme]],\"\")","v":""}]
[null,null,null,null,null,null,null,null,null,null,null,null,null,null,null,null,null,null,{"$f":"IF(AND(Collaborateur_Dossier[[#This Row],[RoleDossier]]=\"Responsable\",Collaborateur_Dossier[[#This Row],[Defaut]]),Collaborateur_Dossier[[#This Row],[DossierCode]],\"\")","v":""},{"$f":"IF(Collaborateur_Dossier[[#This Row],[Collaborateur dossier]]<>\"\",Collaborateur_Dossier[[#This Row],[Trigramme]],\"\")","v":""}]
[null,null,null,null,null,null,null,null,null,null,null,null,null,null,null,null,null,null,{"$f":"IF(AND(Collaborateur_Dossier[[#This Row],[RoleDossier]]=\"Responsable\",Collaborateur_Dossier[[#This Row],[Defaut]]),Collaborateur_Dossier[[#This Row],[DossierCode]],\"\")","v":""},{"$f":"IF(Collaborateur_Dossier[[#This Row],[Collaborateur dossier]]<>\"\",Collaborateur_Dossier[[#This Row],[Trigramme]],\"\")","v":""}]
[null,null,null,null,null,null,null,null,null,null,null,null,null,null,null,null,null,null,{"$f":"IF(AND(Collaborateur_Dossier[[#This Row],[RoleDossier]]=\"Responsable\",Collaborateur_Dossier[[#This Row],[Defaut]]),Collaborateur_Dossier[[#This Row],[DossierCode]],\"\")","v":""},{"$f":"IF(Collaborateur_Dossier[[#This Row],[Collaborateur dossier]]<>\"\",Collaborateur_Dossier[[#This Row],[Trigramme]],\"\")","v":""}]
[null,null,null,null,null,null,null,null,null,null,null,null,null,null,null,null,null,null,{"$f":"IF(AND(Collaborateur_Dossier[[#This Row],[RoleDossier]]=\"Responsable\",Collaborateur_Dossier[[#This Row],[Defaut]]),Collaborateur_Dossier[[#This Row],[DossierCode]],\"\")","v":""},{"$f":"IF(Collaborateur_Dossier[[#This Row],[Collaborateur dossier]]<>\"\",Collaborateur_Dossier[[#This Row],[Trigramme]],\"\")","v":""}]
[null,null,null,null,null,null,null,null,null,null,null,null,null,null,null,null,null,null,{"$f":"IF(AND(Collaborateur_Dossier[[#This Row],[RoleDossier]]=\"Responsable\",Collaborateur_Dossier[[#This Row],[Defaut]]),Collaborateur_Dossier[[#This Row],[DossierCode]],\"\")","v":""},{"$f":"IF(Collaborateur_Dossier[[#This Row],[Collaborateur dossier]]<>\"\",Collaborateur_Dossier[[#This Row],[Trigramme]],\"\")","v":""}]
[null,null,null,null,null,null,null,null,null,null,null,null,null,null,null,null,null,null,{"$f":"IF(AND(Collaborateur_Dossier[[#This Row],[RoleDossier]]=\"Responsable\",Collaborateur_Dossier[[#This Row],[Defaut]]),Collaborateur_Dossier[[#This Row],[DossierCode]],\"\")","v":""},{"$f":"IF(Collaborateur_Dossier[[#This Row],[Collaborateur dossier]]<>\"\",Collaborateur_Dossier[[#This Row],[Trigramme]],\"\")","v":""}]
[null,null,null,null,null,null,null,null,null,null,null,null,null,null,null,null,null,null,{"$f":"IF(AND(Collaborateur_Dossier[[#This Row],[RoleDossier]]=\"Responsable\",Collaborateur_Dossier[[#This Row],[Defaut]]),Collaborateur_Dossier[[#This Row],[DossierCode]],\"\")","v":""},{"$f":"IF(Collaborateur_Dossier[[#This Row],[Collaborateur dossier]]<>\"\",Collaborateur_Dossier[[#This Row],[Trigramme]],\"\")","v":""}]
[null,null,null,null,null,null,null,null,null,null,null,null,null,null,null,null,null,null,{"$f":"IF(AND(Collaborateur_Dossier[[#This Row],[RoleDossier]]=\"Responsable\",Collaborateur_Dossier[[#This Row],[Defaut]]),Collaborateur_Dossier[[#This Row],[DossierCode]],\"\")","v":""},{"$f":"IF(Collaborateur_Dossier[[#This Row],[Collaborateur dossier]]<>\"\",Collaborateur_Dossier[[#This Row],[Trigramme]],\"\")","v":""}]
[null,null,null,null,null,null,null,null,null,null,null,null,null,null,null,null,null,null,{"$f":"IF(AND(Collaborateur_Dossier[[#This Row],[RoleDossier]]=\"Responsable\",Collaborateur_Dossier[[#This Row],[Defaut]]),Collaborateur_Dossier[[#This Row],[DossierCode]],\"\")","v":""},{"$f":"IF(Collaborateur_Dossier[[#This Row],[Collaborateur dossier]]<>\"\",Collaborateur_Dossier[[#This Row],[Trigramme]],\"\")","v":""}]
[null,null,null,null,null,null,null,null,null,null,null,null,null,null,null,null,null,null,{"$f":"IF(AND(Collaborateur_Dossier[[#This Row],[RoleDossier]]=\"Responsable\",Collaborateur_Dossier[[#This Row],[Defaut]]),Collaborateur_Dossier[[#This Row],[DossierCode]],\"\")","v":""},{"$f":"IF(Collaborateur_Dossier[[#This Row],[Collaborateur dossier]]<>\"\",Collaborateur_Dossier[[#This Row],[Trigramme]],\"\")","v":""}]
[null,null,null,null,null,null,null,null,null,null,null,null,null,null,null,null,null,null,{"$f":"IF(AND(Collaborateur_Dossier[[#This Row],[RoleDossier]]=\"Responsable\",Collaborateur_Dossier[[#This Row],[Defaut]]),Collaborateur_Dossier[[#This Row],[DossierCode]],\"\")","v":""},{"$f":"IF(Collaborateur_Dossier[[#This Row],[Collaborateur dossier]]<>\"\",Collaborateur_Dossier[[#This Row],[Trigramme]],\"\")","v":""}]
[null,null,null,null,null,null,null,null,null,null,null,null,null,null,null,null,null,null,{"$f":"IF(AND(Collaborateur_Dossier[[#This Row],[RoleDossier]]=\"Responsable\",Collaborateur_Dossier[[#This Row],[Defaut]]),Collaborateur_Dossier[[#This Row],[DossierCode]],\"\")","v":""},{"$f":"IF(Collaborateur_Dossier[[#This Row],[Collaborateur dossier]]<>\"\",Collaborateur_Dossier[[#This Row],[Trigramme]],\"\")","v":""}]
[null,null,null,null,null,null,null,null,null,null,null,null,null,null,null,null,null,null,{"$f":"IF(AND(Collaborateur_Dossier[[#This Row],[RoleDossier]]=\"Responsable\",Collaborateur_Dossier[[#This Row],[Defaut]]),Collaborateur_Dossier[[#This Row],[DossierCode]],\"\")","v":""},{"$f":"IF(Collaborateur_Dossier[[#This Row],[Collaborateur dossier]]<>\"\",Collaborateur_Dossier[[#This Row],[Trigramme]],\"\")","v":""}]
[null,null,null,null,null,null,null,null,null,null,null,null,null,null,null,null,null,null,{"$f":"IF(AND(Collaborateur_Dossier[[#This Row],[RoleDossier]]=\"Responsable\",Collaborateur_Dossier[[#This Row],[Defaut]]),Collaborateur_Dossier[[#This Row],[DossierCode]],\"\")","v":""},{"$f":"IF(Collaborateur_Dossier[[#This Row],[Collaborateur dossier]]<>\"\",Collaborateur_Dossier[[#This Row],[Trigramme]],\"\")","v":""}]
[null,null,null,null,null,null,null,null,null,null,null,null,null,null,null,null,null,null,{"$f":"IF(AND(Collaborateur_Dossier[[#This Row],[RoleDossier]]=\"Responsable\",Collaborateur_Dossier[[#This Row],[Defaut]]),Collaborateur_Dossier[[#This Row],[DossierCode]],\"\")","v":""},{"$f":"IF(Collaborateur_Dossier[[#This Row],[Collaborateur dossier]]<>\"\",Collaborateur_Dossier[[#This Row],[Trigramme]],\"\")","v":""}]
[null,null,null,null,null,null,null,null,null,null,null,null,null,null,null,null,null,null,{"$f":"IF(AND(Collaborateur_Dossier[[#This Row],[RoleDossier]]=\"Responsable\",Collaborateur_Dossier[[#This Row],[Defaut]]),Collaborateur_Dossier[[#This Row],[DossierCode]],\"\")","v":""},{"$f":"IF(Collaborateur_Dossier[[#This Row],[Collaborateur dossier]]<>\"\",Collaborateur_Dossier[[#This Row],[Trigramme]],\"\")","v":""}]
[null,null,null,null,null,null,null,null,null,null,null,null,null,null,null,null,null,null,{"$f":"IF(AND(Collaborateur_Dossier[[#This Row],[RoleDossier]]=\"Responsable\",Collaborateur_Dossier[[#This Row],[Defaut]]),Collaborateur_Dossier[[#This Row],[DossierCode]],\"\")","v":""},{"$f":"IF(Collaborateur_Dossier[[#This Row],[Collaborateur dossier]]<>\"\",Collaborateur_Dossier[[#This Row],[Trigramme]],\"\")","v":""}]
[null,null,null,null,null,null,null,null,null,null,null,null,null,null,null,null,null,null,{"$f":"IF(AND(Collaborateur_Dossier[[#This Row],[RoleDossier]]=\"Responsable\",Collaborateur_Dossier[[#This Row],[Defaut]]),Collaborateur_Dossier[[#This Row],[DossierCode]],\"\")","v":""},{"$f":"IF(Collaborateur_Dossier[[#This Row],[Collaborateur dossier]]<>\"\",Collaborateur_Dossier[[#This Row],[Trigramme]],\"\")","v":""}]
[null,null,null,null,null,null,null,null,null,null,null,null,null,null,null,null,null,null,{"$f":"IF(AND(Collaborateur_Dossier[[#This Row],[RoleDossier]]=\"Responsable\",Collaborateur_Dossier[[#This Row],[Defaut]]),Collaborateur_Dossier[[#This Row],[DossierCode]],\"\")","v":""},{"$f":"IF(Collaborateur_Dossier[[#This Row],[Collaborateur dossier]]<>\"\",Collaborateur_Dossier[[#This Row],[Trigramme]],\"\")","v":""}]
[null,null,null,null,null,null,null,null,null,null,null,null,null,null,null,null,null,null,{"$f":"IF(AND(Collaborateur_Dossier[[#This Row],[RoleDossier]]=\"Responsable\",Collaborateur_Dossier[[#This Row],[Defaut]]),Collaborateur_Dossier[[#This Row],[DossierCode]],\"\")","v":""},{"$f":"IF(Collaborateur_Dossier[[#This Row],[Collaborateur dossier]]<>\"\",Collaborateur_Dossier[[#This Row],[Trigramme]],\"\")","v":""}]
[null,null,null,null,null,null,null,null,null,null,null,null,null,null,null,null,null,null,{"$f":"IF(AND(Collaborateur_Dossier[[#This Row],[RoleDossier]]=\"Responsable\",Collaborateur_Dossier[[#This Row],[Defaut]]),Collaborateur_Dossier[[#This Row],[DossierCode]],\"\")","v":""},{"$f":"IF(Collaborateur_Dossier[[#This Row],[Collaborateur dossier]]<>\"\",Collaborateur_Dossier[[#This Row],[Trigramme]],\"\")","v":""}]
[null,null,null,null,null,null,null,null,null,null,null,null,null,null,null,null,null,null,{"$f":"IF(AND(Collaborateur_Dossier[[#This Row],[RoleDossier]]=\"Responsable\",Collaborateur_Dossier[[#This Row],[Defaut]]),Collaborateur_Dossier[[#This Row],[DossierCode]],\"\")","v":""},{"$f":"IF(Collaborateur_Dossier[[#This Row],[Collaborateur dossier]]<>\"\",Collaborateur_Dossier[[#This Row],[Trigramme]],\"\")","v":""}]
[null,null,null,null,null,null,null,null,null,null,null,null,null,null,null,null,null,null,{"$f":"IF(AND(Collaborateur_Dossier[[#This Row],[RoleDossier]]=\"Responsable\",Collaborateur_Dossier[[#This Row],[Defaut]]),Collaborateur_Dossier[[#This Row],[DossierCode]],\"\")","v":""},{"$f":"IF(Collaborateur_Dossier[[#This Row],[Collaborateur dossier]]<>\"\",Collaborateur_Dossier[[#This Row],[Trigramme]],\"\")","v":""}]
[null,null,null,null,null,null,null,null,null,null,null,null,null,null,null,null,null,null,{"$f":"IF(AND(Collaborateur_Dossier[[#This Row],[RoleDossier]]=\"Responsable\",Collaborateur_Dossier[[#This Row],[Defaut]]),Collaborateur_Dossier[[#This Row],[DossierCode]],\"\")","v":""},{"$f":"IF(Collaborateur_Dossier[[#This Row],[Collaborateur dossier]]<>\"\",Collaborateur_Dossier[[#This Row],[Trigramme]],\"\")","v":""}]
[null,null,null,null,null,null,null,null,null,null,null,null,null,null,null,null,null,null,{"$f":"IF(AND(Collaborateur_Dossier[[#This Row],[RoleDossier]]=\"Responsable\",Collaborateur_Dossier[[#This Row],[Defaut]]),Collaborateur_Dossier[[#This Row],[DossierCode]],\"\")","v":""},{"$f":"IF(Collaborateur_Dossier[[#This Row],[Collaborateur dossier]]<>\"\",Collaborateur_Dossier[[#This Row],[Trigramme]],\"\")","v":""}]
[null,null,null,null,null,null,null,null,null,null,null,null,null,null,null,null,null,null,{"$f":"IF(AND(Collaborateur_Dossier[[#This Row],[RoleDossier]]=\"Responsable\",Collaborateur_Dossier[[#This Row],[Defaut]]),Collaborateur_Dossier[[#This Row],[DossierCode]],\"\")","v":""},{"$f":"IF(Collaborateur_Dossier[[#This Row],[Collaborateur dossier]]<>\"\",Collaborateur_Dossier[[#This Row],[Trigramme]],\"\")","v":""}]
[null,null,null,null,null,null,null,null,null,null,null,null,null,null,null,null,null,null,{"$f":"IF(AND(Collaborateur_Dossier[[#This Row],[RoleDossier]]=\"Responsable\",Collaborateur_Dossier[[#This Row],[Defaut]]),Collaborateur_Dossier[[#This Row],[DossierCode]],\"\")","v":""},{"$f":"IF(Collaborateur_Dossier[[#This Row],[Collaborateur dossier]]<>\"\",Collaborateur_Dossier[[#This Row],[Trigramme]],\"\")","v":""}]
[null,null,null,null,null,null,null,null,null,null,null,null,null,null,null,null,null,null,{"$f":"IF(AND(Collaborateur_Dossier[[#This Row],[RoleDossier]]=\"Responsable\",Collaborateur_Dossier[[#This Row],[Defaut]]),Collaborateur_Dossier[[#This Row],[DossierCode]],\"\")","v":""},{"$f":"IF(Collaborateur_Dossier[[#This Row],[Collaborateur dossier]]<>\"\",Collaborateur_Dossier[[#This Row],[Trigramme]],\"\")","v":""}]
[null,null,null,null,null,null,null,null,null,null,null,null,null,null,null,null,null,null,{"$f":"IF(AND(Collaborateur_Dossier[[#This Row],[RoleDossier]]=\"Responsable\",Collaborateur_Dossier[[#This Row],[Defaut]]),Collaborateur_Dossier[[#This Row],[DossierCode]],\"\")","v":""},{"$f":"IF(Collaborateur_Dossier[[#This Row],[Collaborateur dossier]]<>\"\",Collaborateur_Dossier[[#This Row],[Trigramme]],\"\")","v":""}]
[null,null,null,null,null,null,null,null,null,null,null,null,null,null,null,null,null,null,{"$f":"IF(AND(Collaborateur_Dossier[[#This Row],[RoleDossier]]=\"Responsable\",Collaborateur_Dossier[[#This Row],[Defaut]]),Collaborateur_Dossier[[#This Row],[DossierCode]],\"\")","v":""},{"$f":"IF(Collaborateur_Dossier[[#This Row],[Collaborateur dossier]]<>\"\",Collaborateur_Dossier[[#This Row],[Trigramme]],\"\")","v":""}]
[null,null,null,null,null,null,null,null,null,null,null,null,null,null,null,null,null,null,{"$f":"IF(AND(Collaborateur_Dossier[[#This Row],[RoleDossier]]=\"Responsable\",Collaborateur_Dossier[[#This Row],[Defaut]]),Collaborateur_Dossier[[#This Row],[DossierCode]],\"\")","v":""},{"$f":"IF(Collaborateur_Dossier[[#This Row],[Collaborateur dossier]]<>\"\",Collaborateur_Dossier[[#This Row],[Trigramme]],\"\")","v":""}]
[null,null,null,null,null,null,null,null,null,null,null,null,null,null,null,null,null,null,{"$f":"IF(AND(Collaborateur_Dossier[[#This Row],[RoleDossier]]=\"Responsable\",Collaborateur_Dossier[[#This Row],[Defaut]]),Collaborateur_Dossier[[#This Row],[DossierCode]],\"\")","v":""},{"$f":"IF(Collaborateur_Dossier[[#This Row],[Collaborateur dossier]]<>\"\",Collaborateur_Dossier[[#This Row],[Trigramme]],\"\")","v":""}]
[null,null,null,null,null,null,null,null,null,null,null,null,null,null,null,null,null,null,{"$f":"IF(AND(Collaborateur_Dossier[[#This Row],[RoleDossier]]=\"Responsable\",Collaborateur_Dossier[[#This Row],[Defaut]]),Collaborateur_Dossier[[#This Row],[DossierCode]],\"\")","v":""},{"$f":"IF(Collaborateur_Dossier[[#This Row],[Collaborateur dossier]]<>\"\",Collaborateur_Dossier[[#This Row],[Trigramme]],\"\")","v":""}]

{"sheet":"BI - PER","index":5,"n_rows":5,"n_cols":30,"rows_kept":5,"cut":false,"hidden":false,"merged":[]}
[]
[null,"FICHES PERSONNES"]
[null,"EXPORT DE DONNEES"]
[]
[null,"PersonneId","Actif","TypePersonne","ClientFacture","Territoire","Juridiction","TypeJuridiction","NumeroCompteComptable","NomComplet","Civilite","Nom","Prenom","Capital","Adresse","CodePostal","Ville","VilleRCS","CodePays","Pays","CodeNAF","Siren","Siret","GroupeId","GroupeNom","Forme","SituationFamiliale","RegimeMatrimonial","DateModification","DateFraicheur"]

{"sheet":"BI - ABO","index":6,"n_rows":5,"n_cols":14,"rows_kept":5,"cut":false,"hidden":false,"merged":[]}
[]
[null,"ABONNEMENTS"]
[null,"EXPORT DE DONNEES"]
[]
[null,"DossierId","DossierCode","DossierDateCreation","PersonneId","Nomcomplet","Civilite","Nom","Prenom","MontantEcheanceHT","MontantAnnuelHT","DateRenouvellment","NbIterationAn","DateFraicheur"]

{"sheet":"BI - HON","index":7,"n_rows":11,"n_cols":80,"rows_kept":11,"cut":false,"hidden":false,"merged":[]}
[]
[null,"HONORAIRES"]
[null,"EXPORT DE DONNEES",null,null,null,null,null,null,null,null,null,null,null,null,null,null,null,null,null,null,null,null,null,null,null,"TOTAL REEL FACTURE HT","TOTAL REEL FACTURE TTC","REGLEMENT HT",null,"AVOIR HT",null,"IMPAYE HT",null,null,null,"HONORAIRE REEL FACTURE HT","FRAIS FACTURE HT","DEBOURS FACTURE HT",null,null,null,null,null,null,null,null,null,null,null,null,null,null,null,null,"Total facturable au moment de l'export"]
[null,1,2,3,4,5,6,7,8,9,10,11,12,13,14,15,16,17,18,19,20,21,22,23,24,25,26,27,28,29,30,31,32,33,34,35,36,37,38,39,40,41,42,43,44,45,46,47,48,49,50,51,52,53,54,55,56,57,58,59,60,61,62,63,64,65,66,67,68,69,70,71,72,73,74,75,76,77,78,79]
[null,"HonoraireId","DateFacture","FactureNumero","FactureLibelle","NumeroPiece","LienFactureId","ClientId","ClientType","ClientNom","ClientPays","CodeTVA","LibelleTVA","TauxTVA","CodeTVAExo","LibelleTVAExo","TauxTVAExo","Territoire","GroupeId","GroupeNom","CollaborateurId","CollaborateurNomComplet","CollaborateurCivilite","CollaborateurNom","CollaborateurPrenom","CollaborateurTrigramme","Site","DossierId","DossierCode","DossierNom","DossierDateCreation","TypedePiece","Abonnement","Forfait","TotalHT","TotalTTC","TotalReglementHT","TotalReglementTTC","TotalAvoirHT","TotalAvoirTTC","TotalImpayeHT","TotalImpayeTTC","TotalAnnulationFactureHT","TotalAnnulationFactureTTC","TotalHonoraireHT","TotalFraisHT","TotalDeboursHT","TotalReglementHonoraireHT","TotalReglementFraisHT","TotalReglementDeboursHT","TotalAvoirHonoraireHT","TotalAvoirFraisHT","TotalAvoirDeboursHT","TotalImpayeHonoraireHT","TotalImpayeFraisHT","TotalImpayeDeboursHT","TotalAnnulationFactureHonoraireHT","TotalAnnulationFactureFraisHT","TotalAnnulationFactureDeboursHT","SoldeDuHT","SoldeDuTTC","RemiseHT","MajorationHT","TotalPrestationFacturableHT","Partiel","Lettree","Annulee","LettrageId","DateFraicheur","Rappel numéro de facture","Rappel date de facture","Numéro de facture présente dans le board","Rappel collaborateur ID","Rappel client ID","Rappel dossier code","Rappel dossier nom","Rappel total TTC","Rappel solde TTC","Auteur de prestation","Solde non nul"]
[null,null,null,null,null,null,null,null,null,null,null,null,null,null,null,null,null,null,null,null,null,null,null,null,null,null,null,null,null,null,null,null,null,null,null,null,null,null,null,null,null,null,null,null,null,null,null,null,null,null,null,null,null,null,null,null,null,null,null,null,null,null,null,null,null,null,null,null,null,{"$f":"Honoraire[[#This Row],[FactureNumero]]","v":0},{"$f":"Honoraire[[#This Row],[DateFacture]]","v":"00:00:00"},{"$f":"IFERROR(VLOOKUP(Honoraire[[#This Row],[Rappel numéro de facture]],Tableau1[FACTURE],1,FALSE),\"\")","v":""},{"$f":"Honoraire[[#This Row],[CollaborateurId]]","v":0},{"$f":"Honoraire[[#This Row],[ClientId]]","v":0},{"$f":"Honoraire[[#This Row],[DossierCode]]","v":0},{"$f":"Honoraire[[#This Row],[DossierNom]]","v":0},{"$f":"Honoraire[[#This Row],[TotalTTC]]","v":0},{"$f":"Honoraire[[#This Row],[SoldeDuTTC]]","v":0},{"$f":"VLOOKUP(Honoraire[[#This Row],[HonoraireId]],Prestation[[HonoraireId]:[Rappel collaborateur]],35,FALSE)","v":{"$error":"#N/A"}},{"$f":"IF(Honoraire[[#This Row],[Rappel solde TTC]]>0,TRUE,FALSE)","v":false}]
[null,null,null,null,null,null,null,null,null,null,null,null,null,null,null,null,null,null,null,null,null,null,null,null,null,null,null,null,null,null,null,null,null,null,null,null,null,null,null,null,null,null,null,null,null,null,null,null,null,null,null,null,null,null,null,null,null,null,null,null,null,null,null,null,null,null,null,null,null,{"$f":"Honoraire[[#This Row],[FactureNumero]]","v":0},{"$f":"Honoraire[[#This Row],[DateFacture]]","v":"00:00:00"},{"$f":"IFERROR(VLOOKUP(Honoraire[[#This Row],[Rappel numéro de facture]],Tableau1[FACTURE],1,FALSE),\"\")","v":""},{"$f":"Honoraire[[#This Row],[CollaborateurId]]","v":0},{"$f":"Honoraire[[#This Row],[ClientId]]","v":0},{"$f":"Honoraire[[#This Row],[DossierCode]]","v":0},{"$f":"Honoraire[[#This Row],[DossierNom]]","v":0},{"$f":"Honoraire[[#This Row],[TotalTTC]]","v":0},{"$f":"Honoraire[[#This Row],[SoldeDuTTC]]","v":0},{"$f":"VLOOKUP(Honoraire[[#This Row],[HonoraireId]],Prestation[[HonoraireId]:[Rappel collaborateur]],35,FALSE)","v":{"$error":"#N/A"}},{"$f":"IF(Honoraire[[#This Row],[Rappel solde TTC]]>0,TRUE,FALSE)","v":false}]
[null,null,null,null,null,null,null,null,null,null,null,null,null,null,null,null,null,null,null,null,null,null,null,null,null,null,null,null,null,null,null,null,null,null,null,null,null,null,null,null,null,null,null,null,null,null,null,null,null,null,null,null,null,null,null,null,null,null,null,null,null,null,null,null,null,null,null,null,null,{"$f":"Honoraire[[#This Row],[FactureNumero]]","v":0},{"$f":"Honoraire[[#This Row],[DateFacture]]","v":"00:00:00"},{"$f":"IFERROR(VLOOKUP(Honoraire[[#This Row],[Rappel numéro de facture]],Tableau1[FACTURE],1,FALSE),\"\")","v":""},{"$f":"Honoraire[[#This Row],[CollaborateurId]]","v":0},{"$f":"Honoraire[[#This Row],[ClientId]]","v":0},{"$f":"Honoraire[[#This Row],[DossierCode]]","v":0},{"$f":"Honoraire[[#This Row],[DossierNom]]","v":0},{"$f":"Honoraire[[#This Row],[TotalTTC]]","v":0},{"$f":"Honoraire[[#This Row],[SoldeDuTTC]]","v":0},{"$f":"VLOOKUP(Honoraire[[#This Row],[HonoraireId]],Prestation[[HonoraireId]:[Rappel collaborateur]],35,FALSE)","v":{"$error":"#N/A"}},{"$f":"IF(Honoraire[[#This Row],[Rappel solde TTC]]>0,TRUE,FALSE)","v":false}]
[null,null,null,null,null,null,null,null,null,null,null,null,null,null,null,null,null,null,null,null,null,null,null,null,null,null,null,null,null,null,null,null,null,null,null,null,null,null,null,null,null,null,null,null,null,null,null,null,null,null,null,null,null,null,null,null,null,null,null,null,null,null,null,null,null,null,null,null,null,{"$f":"Honoraire[[#This Row],[FactureNumero]]","v":0},{"$f":"Honoraire[[#This Row],[DateFacture]]","v":"00:00:00"},{"$f":"IFERROR(VLOOKUP(Honoraire[[#This Row],[Rappel numéro de facture]],Tableau1[FACTURE],1,FALSE),\"\")","v":""},{"$f":"Honoraire[[#This Row],[CollaborateurId]]","v":0},{"$f":"Honoraire[[#This Row],[ClientId]]","v":0},{"$f":"Honoraire[[#This Row],[DossierCode]]","v":0},{"$f":"Honoraire[[#This Row],[DossierNom]]","v":0},{"$f":"Honoraire[[#This Row],[TotalTTC]]","v":0},{"$f":"Honoraire[[#This Row],[SoldeDuTTC]]","v":0},{"$f":"VLOOKUP(Honoraire[[#This Row],[HonoraireId]],Prestation[[HonoraireId]:[Rappel collaborateur]],35,FALSE)","v":{"$error":"#N/A"}},{"$f":"IF(Honoraire[[#This Row],[Rappel solde TTC]]>0,TRUE,FALSE)","v":false}]
[null,null,null,null,null,null,null,null,null,null,null,null,null,null,null,null,null,null,null,null,null,null,null,null,null,null,null,null,null,null,null,null,null,null,null,null,null,null,null,null,null,null,null,null,null,null,null,null,null,null,null,null,null,null,null,null,null,null,null,null,null,null,null,null,null,null,null,null,null,{"$f":"Honoraire[[#This Row],[FactureNumero]]","v":0},{"$f":"Honoraire[[#This Row],[DateFacture]]","v":"00:00:00"},{"$f":"IFERROR(VLOOKUP(Honoraire[[#This Row],[Rappel numéro de facture]],Tableau1[FACTURE],1,FALSE),\"\")","v":""},{"$f":"Honoraire[[#This Row],[CollaborateurId]]","v":0},{"$f":"Honoraire[[#This Row],[ClientId]]","v":0},{"$f":"Honoraire[[#This Row],[DossierCode]]","v":0},{"$f":"Honoraire[[#This Row],[DossierNom]]","v":0},{"$f":"Honoraire[[#This Row],[TotalTTC]]","v":0},{"$f":"Honoraire[[#This Row],[SoldeDuTTC]]","v":0},{"$f":"VLOOKUP(Honoraire[[#This Row],[HonoraireId]],Prestation[[HonoraireId]:[Rappel collaborateur]],35,FALSE)","v":{"$error":"#N/A"}},{"$f":"IF(Honoraire[[#This Row],[Rappel solde TTC]]>0,TRUE,FALSE)","v":false}]
[null,null,null,null,null,null,null,null,null,null,null,null,null,null,null,null,null,null,null,null,null,null,null,null,null,null,null,null,null,null,null,null,null,null,null,null,null,null,null,null,null,null,null,null,null,null,null,null,null,null,null,null,null,null,null,null,null,null,null,null,null,null,null,null,null,null,null,null,null,{"$f":"Honoraire[[#This Row],[FactureNumero]]","v":0},{"$f":"Honoraire[[#This Row],[DateFacture]]","v":"00:00:00"},{"$f":"IFERROR(VLOOKUP(Honoraire[[#This Row],[Rappel numéro de facture]],Tableau1[FACTURE],1,FALSE),\"\")","v":""},{"$f":"Honoraire[[#This Row],[CollaborateurId]]","v":0},{"$f":"Honoraire[[#This Row],[ClientId]]","v":0},{"$f":"Honoraire[[#This Row],[DossierCode]]","v":0},{"$f":"Honoraire[[#This Row],[DossierNom]]","v":0},{"$f":"Honoraire[[#This Row],[TotalTTC]]","v":0},{"$f":"Honoraire[[#This Row],[SoldeDuTTC]]","v":0},{"$f":"VLOOKUP(Honoraire[[#This Row],[HonoraireId]],Prestation[[HonoraireId]:[Rappel collaborateur]],35,FALSE)","v":{"$error":"#N/A"}},{"$f":"IF(Honoraire[[#This Row],[Rappel solde TTC]]>0,TRUE,FALSE)","v":false}]

{"sheet":"BI - PRE","index":8,"n_rows":130,"n_cols":75,"rows_kept":130,"cut":false,"hidden":false,"merged":[]}
[]
[null,"PRESTATIONS"]
[null,"EXPORT DE DONNEES",null,null,null,null,null,null,null,null,null,null,null,null,null,null,null,null,null,null,null,null,null,null,null,null,null,null,null,null,null,null,null,null,"TH CODE OU THM COLLABORATEUR SINON"]
[]
[null,"PrestationId","DossierId","DossierCode","DossierDateCreation","PrestationDate","CollaborateurId","CollaborateurNomComplet","CollaborateurCivilite","CollaborateurNom","CollaborateurPrenom","CollaborateurTrigramme","Site","Categorie","Type","Code","CodeType","CodeLibelle","Forfait","ForfaitLibelleCourt","ForfaitMontantHT","ForfaitMontantEngageHT","PrestationEtat","PrestationEtape","HonoraireId","DateFacture","FactureNumero","FournisseurId","FournisseurType","FournisseurNom","ClientId","ClientNom","ClientPays","CodeTVA","LibelleTVA","TauxTVA","CodeTVAExo","LibelleTVAExo","TauxTVAExo","Territoire","GroupeId","GroupeNom","LienFactureId","DeductionHonoraireId","DateDeduction","MontantHT","Duree","TarifHoraire","MontantFacturableHT_TotalPrestation","DureeFacturable_TotalPrestation","MontantFacturableHT","DureeFacturable","TarifHoraireFacturable","MontantFactureHT_TotalPrestation","DureeFacture_TotalPrestation","MontantFactureHT","DureeFacture","TarifHoraireFacture","MontantDeductibleHT","MontantDeduitHT","MontantRemiseHT","MontantMajorationHT","MontantRemiseVentileeHT","MontantMajorationVentileeHT","MontantAboHT","MontantForfaitHT","ExportCompta","DateFraicheur","Rappel collaborateur","Rappel dossier","Clés dossier et collaborateur","Numéro de ligne","Numéro min de ligne pour la clé","Collaborateur unique","Liste des collaborateurs"]
[null,null,null,null,null,null,null,null,null,null,null,null,null,null,null,null,null,null,null,null,null,null,null,null,null,null,null,null,null,null,null,null,null,null,null,null,null,null,null,null,null,null,null,null,null,null,null,null,null,null,null,null,null,null,null,null,null,null,null,null,null,null,null,null,null,null,null,null,{"$f":"Prestation[[#This Row],[CollaborateurTrigramme]]","v":0},{"$f":"Prestation[[#This Row],[DossierCode]]","v":0},{"$f":"_xlfn.CONCAT(Prestation[[#This Row],[DossierCode]],\"-\",Prestation[[#This Row],[CollaborateurTrigramme]])","v":"-"},{"$f":"ROW(Prestation[[#This Row],[Clés dossier et collaborateur]])","v":6},{"$f":"_xlfn.MINIFS(Prestation[Numéro de ligne],Prestation[Clés dossier et collaborateur],Prestation[[#This Row],[Clés dossier et collaborateur]])","v":6},{"$f":"IF(Prestation[[#This Row],[Numéro min de ligne pour la clé]]=Prestation[[#This Row],[Numéro de ligne]],Prestation[[#This Row],[Rappel collaborateur]],\"\")","v":0},{"$f":"_xlfn.TEXTJOIN(\",\",TRUE,IF(Prestation[DossierCode]=Prestation[[#This Row],[DossierCode]],Prestation[Collaborateur unique],\"\"))","v":"0"}]
[null,null,null,null,null,null,null,null,null,null,null,null,null,null,null,null,null,null,null,null,null,null,null,null,null,null,null,null,null,null,null,null,null,null,null,null,null,null,null,null,null,null,null,null,null,null,null,null,null,null,null,null,null,null,null,null,null,null,null,null,null,null,null,null,null,null,null,null,{"$f":"Prestation[[#This Row],[CollaborateurTrigramme]]","v":0},{"$f":"Prestation[[#This Row],[DossierCode]]","v":0},{"$f":"_xlfn.CONCAT(Prestation[[#This Row],[DossierCode]],\"-\",Prestation[[#This Row],[CollaborateurTrigramme]])","v":"-"},{"$f":"ROW(Prestation[[#This Row],[Clés dossier et collaborateur]])","v":7},{"$f":"_xlfn.MINIFS(Prestation[Numéro de ligne],Prestation[Clés dossier et collaborateur],Prestation[[#This Row],[Clés dossier et collaborateur]])","v":6},{"$f":"IF(Prestation[[#This Row],[Numéro min de ligne pour la clé]]=Prestation[[#This Row],[Numéro de ligne]],Prestation[[#This Row],[Rappel collaborateur]],\"\")","v":""},{"$f":"_xlfn.TEXTJOIN(\",\",TRUE,IF(Prestation[DossierCode]=Prestation[[#This Row],[DossierCode]],Prestation[Collaborateur unique],\"\"))","v":"0"}]
[null,null,null,null,null,null,null,null,null,null,null,null,null,null,null,null,null,null,null,null,null,null,null,null,null,null,null,null,null,null,null,null,null,null,null,null,null,null,null,null,null,null,null,null,null,null,null,null,null,null,null,null,null,null,null,null,null,null,null,null,null,null,null,null,null,null,null,null,{"$f":"Prestation[[#This Row],[CollaborateurTrigramme]]","v":0},{"$f":"Prestation[[#This Row],[DossierCode]]","v":0},{"$f":"_xlfn.CONCAT(Prestation[[#This Row],[DossierCode]],\"-\",Prestation[[#This Row],[CollaborateurTrigramme]])","v":"-"},{"$f":"ROW(Prestation[[#This Row],[Clés dossier et collaborateur]])","v":8},{"$f":"_xlfn.MINIFS(Prestation[Numéro de ligne],Prestation[Clés dossier et collaborateur],Prestation[[#This Row],[Clés dossier et collaborateur]])","v":6},{"$f":"IF(Prestation[[#This Row],[Numéro min de ligne pour la clé]]=Prestation[[#This Row],[Numéro de ligne]],Prestation[[#This Row],[Rappel collaborateur]],\"\")","v":""},{"$f":"_xlfn.TEXTJOIN(\",\",TRUE,IF(Prestation[DossierCode]=Prestation[[#This Row],[DossierCode]],Prestation[Collaborateur unique],\"\"))","v":"0"}]
[null,null,null,null,null,null,null,null,null,null,null,null,null,null,null,null,null,null,null,null,null,null,null,null,null,null,null,null,null,null,null,null,null,null,null,null,null,null,null,null,null,null,null,null,null,null,null,null,null,null,null,null,null,null,null,null,null,null,null,null,null,null,null,null,null,null,null,null,{"$f":"Prestation[[#This Row],[CollaborateurTrigramme]]","v":0},{"$f":"Prestation[[#This Row],[DossierCode]]","v":0},{"$f":"_xlfn.CONCAT(Prestation[[#This Row],[DossierCode]],\"-\",Prestation[[#This Row],[CollaborateurTrigramme]])","v":"-"},{"$f":"ROW(Prestation[[#This Row],[Clés dossier et collaborateur]])","v":9},{"$f":"_xlfn.MINIFS(Prestation[Numéro de ligne],Prestation[Clés dossier et collaborateur],Prestation[[#This Row],[Clés dossier et collaborateur]])","v":6},{"$f":"IF(Prestation[[#This Row],[Numéro min de ligne pour la clé]]=Prestation[[#This Row],[Numéro de ligne]],Prestation[[#This Row],[Rappel collaborateur]],\"\")","v":""},{"$f":"_xlfn.TEXTJOIN(\",\",TRUE,IF(Prestation[DossierCode]=Prestation[[#This Row],[DossierCode]],Prestation[Collaborateur unique],\"\"))","v":"0"}]
[null,null,null,null,null,null,null,null,null,null,null,null,null,null,null,null,null,null,null,null,null,null,null,null,null,null,null,null,null,null,null,null,null,null,null,null,null,null,null,null,null,null,null,null,null,null,null,null,null,null,null,null,null,null,null,null,null,null,null,null,null,null,null,null,null,null,null,null,{"$f":"Prestation[[#This Row],[CollaborateurTrigramme]]","v":0},{"$f":"Prestation[[#This Row],[DossierCode]]","v":0},{"$f":"_xlfn.CONCAT(Prestation[[#This Row],[DossierCode]],\"-\",Prestation[[#This Row],[CollaborateurTrigramme]])","v":"-"},{"$f":"ROW(Prestation[[#This Row],[Clés dossier et collaborateur]])","v":10},{"$f":"_xlfn.MINIFS(Prestation[Numéro de ligne],Prestation[Clés dossier et collaborateur],Prestation[[#This Row],[Clés dossier et collaborateur]])","v":6},{"$f":"IF(Prestation[[#This Row],[Numéro min de ligne pour la clé]]=Prestation[[#This Row],[Numéro de ligne]],Prestation[[#This Row],[Rappel collaborateur]],\"\")","v":""},{"$f":"_xlfn.TEXTJOIN(\",\",TRUE,IF(Prestation[DossierCode]=Prestation[[#This Row],[DossierCode]],Prestation[Collaborateur unique],\"\"))","v":"0"}]
[null,null,null,null,null,null,null,null,null,null,null,null,null,null,null,null,null,null,null,null,null,null,null,null,null,null,null,null,null,null,null,null,null,null,null,null,null,null,null,null,null,null,null,null,null,null,null,null,null,null,null,null,null,null,null,null,null,null,null,null,null,null,null,null,null,null,null,null,{"$f":"Prestation[[#This Row],[CollaborateurTrigramme]]","v":0},{"$f":"Prestation[[#This Row],[DossierCode]]","v":0},{"$f":"_xlfn.CONCAT(Prestation[[#This Row],[DossierCode]],\"-\",Prestation[[#This Row],[CollaborateurTrigramme]])","v":"-"},{"$f":"ROW(Prestation[[#This Row],[Clés dossier et collaborateur]])","v":11},{"$f":"_xlfn.MINIFS(Prestation[Numéro de ligne],Prestation[Clés dossier et collaborateur],Prestation[[#This Row],[Clés dossier et collaborateur]])","v":6},{"$f":"IF(Prestation[[#This Row],[Numéro min de ligne pour la clé]]=Prestation[[#This Row],[Numéro de ligne]],Prestation[[#This Row],[Rappel collaborateur]],\"\")","v":""},{"$f":"_xlfn.TEXTJOIN(\",\",TRUE,IF(Prestation[DossierCode]=Prestation[[#This Row],[DossierCode]],Prestation[Collaborateur unique],\"\"))","v":"0"}]
[null,null,null,null,null,null,null,null,null,null,null,null,null,null,null,null,null,null,null,null,null,null,null,null,null,null,null,null,null,null,null,null,null,null,null,null,null,null,null,null,null,null,null,null,null,null,null,null,null,null,null,null,null,null,null,null,null,null,null,null,null,null,null,null,null,null,null,null,{"$f":"Prestation[[#This Row],[CollaborateurTrigramme]]","v":0},{"$f":"Prestation[[#This Row],[DossierCode]]","v":0},{"$f":"_xlfn.CONCAT(Prestation[[#This Row],[DossierCode]],\"-\",Prestation[[#This Row],[CollaborateurTrigramme]])","v":"-"},{"$f":"ROW(Prestation[[#This Row],[Clés dossier et collaborateur]])","v":12},{"$f":"_xlfn.MINIFS(Prestation[Numéro de ligne],Prestation[Clés dossier et collaborateur],Prestation[[#This Row],[Clés dossier et collaborateur]])","v":6},{"$f":"IF(Prestation[[#This Row],[Numéro min de ligne pour la clé]]=Prestation[[#This Row],[Numéro de ligne]],Prestation[[#This Row],[Rappel collaborateur]],\"\")","v":""},{"$f":"_xlfn.TEXTJOIN(\",\",TRUE,IF(Prestation[DossierCode]=Prestation[[#This Row],[DossierCode]],Prestation[Collaborateur unique],\"\"))","v":"0"}]
[null,null,null,null,null,null,null,null,null,null,null,null,null,null,null,null,null,null,null,null,null,null,null,null,null,null,null,null,null,null,null,null,null,null,null,null,null,null,null,null,null,null,null,null,null,null,null,null,null,null,null,null,null,null,null,null,null,null,null,null,null,null,null,null,null,null,null,null,{"$f":"Prestation[[#This Row],[CollaborateurTrigramme]]","v":0},{"$f":"Prestation[[#This Row],[DossierCode]]","v":0},{"$f":"_xlfn.CONCAT(Prestation[[#This Row],[DossierCode]],\"-\",Prestation[[#This Row],[CollaborateurTrigramme]])","v":"-"},{"$f":"ROW(Prestation[[#This Row],[Clés dossier et collaborateur]])","v":13},{"$f":"_xlfn.MINIFS(Prestation[Numéro de ligne],Prestation[Clés dossier et collaborateur],Prestation[[#This Row],[Clés dossier et collaborateur]])","v":6},{"$f":"IF(Prestation[[#This Row],[Numéro min de ligne pour la clé]]=Prestation[[#This Row],[Numéro de ligne]],Prestation[[#This Row],[Rappel collaborateur]],\"\")","v":""},{"$f":"_xlfn.TEXTJOIN(\",\",TRUE,IF(Prestation[DossierCode]=Prestation[[#This Row],[DossierCode]],Prestation[Collaborateur unique],\"\"))","v":"0"}]
[null,null,null,null,null,null,null,null,null,null,null,null,null,null,null,null,null,null,null,null,null,null,null,null,null,null,null,null,null,null,null,null,null,null,null,null,null,null,null,null,null,null,null,null,null,null,null,null,null,null,null,null,null,null,null,null,null,null,null,null,null,null,null,null,null,null,null,null,{"$f":"Prestation[[#This Row],[CollaborateurTrigramme]]","v":0},{"$f":"Prestation[[#This Row],[DossierCode]]","v":0},{"$f":"_xlfn.CONCAT(Prestation[[#This Row],[DossierCode]],\"-\",Prestation[[#This Row],[CollaborateurTrigramme]])","v":"-"},{"$f":"ROW(Prestation[[#This Row],[Clés dossier et collaborateur]])","v":14},{"$f":"_xlfn.MINIFS(Prestation[Numéro de ligne],Prestation[Clés dossier et collaborateur],Prestation[[#This Row],[Clés dossier et collaborateur]])","v":6},{"$f":"IF(Prestation[[#This Row],[Numéro min de ligne pour la clé]]=Prestation[[#This Row],[Numéro de ligne]],Prestation[[#This Row],[Rappel collaborateur]],\"\")","v":""},{"$f":"_xlfn.TEXTJOIN(\",\",TRUE,IF(Prestation[DossierCode]=Prestation[[#This Row],[DossierCode]],Prestation[Collaborateur unique],\"\"))","v":"0"}]
[null,null,null,null,null,null,null,null,null,null,null,null,null,null,null,null,null,null,null,null,null,null,null,null,null,null,null,null,null,null,null,null,null,null,null,null,null,null,null,null,null,null,null,null,null,null,null,null,null,null,null,null,null,null,null,null,null,null,null,null,null,null,null,null,null,null,null,null,{"$f":"Prestation[[#This Row],[CollaborateurTrigramme]]","v":0},{"$f":"Prestation[[#This Row],[DossierCode]]","v":0},{"$f":"_xlfn.CONCAT(Prestation[[#This Row],[DossierCode]],\"-\",Prestation[[#This Row],[CollaborateurTrigramme]])","v":"-"},{"$f":"ROW(Prestation[[#This Row],[Clés dossier et collaborateur]])","v":15},{"$f":"_xlfn.MINIFS(Prestation[Numéro de ligne],Prestation[Clés dossier et collaborateur],Prestation[[#This Row],[Clés dossier et collaborateur]])","v":6},{"$f":"IF(Prestation[[#This Row],[Numéro min de ligne pour la clé]]=Prestation[[#This Row],[Numéro de ligne]],Prestation[[#This Row],[Rappel collaborateur]],\"\")","v":""},{"$f":"_xlfn.TEXTJOIN(\",\",TRUE,IF(Prestation[DossierCode]=Prestation[[#This Row],[DossierCode]],Prestation[Collaborateur unique],\"\"))","v":"0"}]
[null,null,null,null,null,null,null,null,null,null,null,null,null,null,null,null,null,null,null,null,null,null,null,null,null,null,null,null,null,null,null,null,null,null,null,null,null,null,null,null,null,null,null,null,null,null,null,null,null,null,null,null,null,null,null,null,null,null,null,null,null,null,null,null,null,null,null,null,{"$f":"Prestation[[#This Row],[CollaborateurTrigramme]]","v":0},{"$f":"Prestation[[#This Row],[DossierCode]]","v":0},{"$f":"_xlfn.CONCAT(Prestation[[#This Row],[DossierCode]],\"-\",Prestation[[#This Row],[CollaborateurTrigramme]])","v":"-"},{"$f":"ROW(Prestation[[#This Row],[Clés dossier et collaborateur]])","v":16},{"$f":"_xlfn.MINIFS(Prestation[Numéro de ligne],Prestation[Clés dossier et collaborateur],Prestation[[#This Row],[Clés dossier et collaborateur]])","v":6},{"$f":"IF(Prestation[[#This Row],[Numéro min de ligne pour la clé]]=Prestation[[#This Row],[Numéro de ligne]],Prestation[[#This Row],[Rappel collaborateur]],\"\")","v":""},{"$f":"_xlfn.TEXTJOIN(\",\",TRUE,IF(Prestation[DossierCode]=Prestation[[#This Row],[DossierCode]],Prestation[Collaborateur unique],\"\"))","v":"0"}]
[null,null,null,null,null,null,null,null,null,null,null,null,null,null,null,null,null,null,null,null,null,null,null,null,null,null,null,null,null,null,null,null,null,null,null,null,null,null,null,null,null,null,null,null,null,null,null,null,null,null,null,null,null,null,null,null,null,null,null,null,null,null,null,null,null,null,null,null,{"$f":"Prestation[[#This Row],[CollaborateurTrigramme]]","v":0},{"$f":"Prestation[[#This Row],[DossierCode]]","v":0},{"$f":"_xlfn.CONCAT(Prestation[[#This Row],[DossierCode]],\"-\",Prestation[[#This Row],[CollaborateurTrigramme]])","v":"-"},{"$f":"ROW(Prestation[[#This Row],[Clés dossier et collaborateur]])","v":17},{"$f":"_xlfn.MINIFS(Prestation[Numéro de ligne],Prestation[Clés dossier et collaborateur],Prestation[[#This Row],[Clés dossier et collaborateur]])","v":6},{"$f":"IF(Prestation[[#This Row],[Numéro min de ligne pour la clé]]=Prestation[[#This Row],[Numéro de ligne]],Prestation[[#This Row],[Rappel collaborateur]],\"\")","v":""},{"$f":"_xlfn.TEXTJOIN(\",\",TRUE,IF(Prestation[DossierCode]=Prestation[[#This Row],[DossierCode]],Prestation[Collaborateur unique],\"\"))","v":"0"}]
[null,null,null,null,null,null,null,null,null,null,null,null,null,null,null,null,null,null,null,null,null,null,null,null,null,null,null,null,null,null,null,null,null,null,null,null,null,null,null,null,null,null,null,null,null,null,null,null,null,null,null,null,null,null,null,null,null,null,null,null,null,null,null,null,null,null,null,null,{"$f":"Prestation[[#This Row],[CollaborateurTrigramme]]","v":0},{"$f":"Prestation[[#This Row],[DossierCode]]","v":0},{"$f":"_xlfn.CONCAT(Prestation[[#This Row],[DossierCode]],\"-\",Prestation[[#This Row],[CollaborateurTrigramme]])","v":"-"},{"$f":"ROW(Prestation[[#This Row],[Clés dossier et collaborateur]])","v":18},{"$f":"_xlfn.MINIFS(Prestation[Numéro de ligne],Prestation[Clés dossier et collaborateur],Prestation[[#This Row],[Clés dossier et collaborateur]])","v":6},{"$f":"IF(Prestation[[#This Row],[Numéro min de ligne pour la clé]]=Prestation[[#This Row],[Numéro de ligne]],Prestation[[#This Row],[Rappel collaborateur]],\"\")","v":""},{"$f":"_xlfn.TEXTJOIN(\",\",TRUE,IF(Prestation[DossierCode]=Prestation[[#This Row],[DossierCode]],Prestation[Collaborateur unique],\"\"))","v":"0"}]
[null,null,null,null,null,null,null,null,null,null,null,null,null,null,null,null,null,null,null,null,null,null,null,null,null,null,null,null,null,null,null,null,null,null,null,null,null,null,null,null,null,null,null,null,null,null,null,null,null,null,null,null,null,null,null,null,null,null,null,null,null,null,null,null,null,null,null,null,{"$f":"Prestation[[#This Row],[CollaborateurTrigramme]]","v":0},{"$f":"Prestation[[#This Row],[DossierCode]]","v":0},{"$f":"_xlfn.CONCAT(Prestation[[#This Row],[DossierCode]],\"-\",Prestation[[#This Row],[CollaborateurTrigramme]])","v":"-"},{"$f":"ROW(Prestation[[#This Row],[Clés dossier et collaborateur]])","v":19},{"$f":"_xlfn.MINIFS(Prestation[Numéro de ligne],Prestation[Clés dossier et collaborateur],Prestation[[#This Row],[Clés dossier et collaborateur]])","v":6},{"$f":"IF(Prestation[[#This Row],[Numéro min de ligne pour la clé]]=Prestation[[#This Row],[Numéro de ligne]],Prestation[[#This Row],[Rappel collaborateur]],\"\")","v":""},{"$f":"_xlfn.TEXTJOIN(\",\",TRUE,IF(Prestation[DossierCode]=Prestation[[#This Row],[DossierCode]],Prestation[Collaborateur unique],\"\"))","v":"0"}]
[null,null,null,null,null,null,null,null,null,null,null,null,null,null,null,null,null,null,null,null,null,null,null,null,null,null,null,null,null,null,null,null,null,null,null,null,null,null,null,null,null,null,null,null,null,null,null,null,null,null,null,null,null,null,null,null,null,null,null,null,null,null,null,null,null,null,null,null,{"$f":"Prestation[[#This Row],[CollaborateurTrigramme]]","v":0},{"$f":"Prestation[[#This Row],[DossierCode]]","v":0},{"$f":"_xlfn.CONCAT(Prestation[[#This Row],[DossierCode]],\"-\",Prestation[[#This Row],[CollaborateurTrigramme]])","v":"-"},{"$f":"ROW(Prestation[[#This Row],[Clés dossier et collaborateur]])","v":20},{"$f":"_xlfn.MINIFS(Prestation[Numéro de ligne],Prestation[Clés dossier et collaborateur],Prestation[[#This Row],[Clés dossier et collaborateur]])","v":6},{"$f":"IF(Prestation[[#This Row],[Numéro min de ligne pour la clé]]=Prestation[[#This Row],[Numéro de ligne]],Prestation[[#This Row],[Rappel collaborateur]],\"\")","v":""},{"$f":"_xlfn.TEXTJOIN(\",\",TRUE,IF(Prestation[DossierCode]=Prestation[[#This Row],[DossierCode]],Prestation[Collaborateur unique],\"\"))","v":"0"}]
[null,null,null,null,null,null,null,null,null,null,null,null,null,null,null,null,null,null,null,null,null,null,null,null,null,null,null,null,null,null,null,null,null,null,null,null,null,null,null,null,null,null,null,null,null,null,null,null,null,null,null,null,null,null,null,null,null,null,null,null,null,null,null,null,null,null,null,null,{"$f":"Prestation[[#This Row],[CollaborateurTrigramme]]","v":0},{"$f":"Prestation[[#This Row],[DossierCode]]","v":0},{"$f":"_xlfn.CONCAT(Prestation[[#This Row],[DossierCode]],\"-\",Prestation[[#This Row],[CollaborateurTrigramme]])","v":"-"},{"$f":"ROW(Prestation[[#This Row],[Clés dossier et collaborateur]])","v":21},{"$f":"_xlfn.MINIFS(Prestation[Numéro de ligne],Prestation[Clés dossier et collaborateur],Prestation[[#This Row],[Clés dossier et collaborateur]])","v":6},{"$f":"IF(Prestation[[#This Row],[Numéro min de ligne pour la clé]]=Prestation[[#This Row],[Numéro de ligne]],Prestation[[#This Row],[Rappel collaborateur]],\"\")","v":""},{"$f":"_xlfn.TEXTJOIN(\",\",TRUE,IF(Prestation[DossierCode]=Prestation[[#This Row],[DossierCode]],Prestation[Collaborateur unique],\"\"))","v":"0"}]
[null,null,null,null,null,null,null,null,null,null,null,null,null,null,null,null,null,null,null,null,null,null,null,null,null,null,null,null,null,null,null,null,null,null,null,null,null,null,null,null,null,null,null,null,null,null,null,null,null,null,null,null,null,null,null,null,null,null,null,null,null,null,null,null,null,null,null,null,{"$f":"Prestation[[#This Row],[CollaborateurTrigramme]]","v":0},{"$f":"Prestation[[#This Row],[DossierCode]]","v":0},{"$f":"_xlfn.CONCAT(Prestation[[#This Row],[DossierCode]],\"-\",Prestation[[#This Row],[CollaborateurTrigramme]])","v":"-"},{"$f":"ROW(Prestation[[#This Row],[Clés dossier et collaborateur]])","v":22},{"$f":"_xlfn.MINIFS(Prestation[Numéro de ligne],Prestation[Clés dossier et collaborateur],Prestation[[#This Row],[Clés dossier et collaborateur]])","v":6},{"$f":"IF(Prestation[[#This Row],[Numéro min de ligne pour la clé]]=Prestation[[#This Row],[Numéro de ligne]],Prestation[[#This Row],[Rappel collaborateur]],\"\")","v":""},{"$f":"_xlfn.TEXTJOIN(\",\",TRUE,IF(Prestation[DossierCode]=Prestation[[#This Row],[DossierCode]],Prestation[Collaborateur unique],\"\"))","v":"0"}]
[null,null,null,null,null,null,null,null,null,null,null,null,null,null,null,null,null,null,null,null,null,null,null,null,null,null,null,null,null,null,null,null,null,null,null,null,null,null,null,null,null,null,null,null,null,null,null,null,null,null,null,null,null,null,null,null,null,null,null,null,null,null,null,null,null,null,null,null,{"$f":"Prestation[[#This Row],[CollaborateurTrigramme]]","v":0},{"$f":"Prestation[[#This Row],[DossierCode]]","v":0},{"$f":"_xlfn.CONCAT(Prestation[[#This Row],[DossierCode]],\"-\",Prestation[[#This Row],[CollaborateurTrigramme]])","v":"-"},{"$f":"ROW(Prestation[[#This Row],[Clés dossier et collaborateur]])","v":23},{"$f":"_xlfn.MINIFS(Prestation[Numéro de ligne],Prestation[Clés dossier et collaborateur],Prestation[[#This Row],[Clés dossier et collaborateur]])","v":6},{"$f":"IF(Prestation[[#This Row],[Numéro min de ligne pour la clé]]=Prestation[[#This Row],[Numéro de ligne]],Prestation[[#This Row],[Rappel collaborateur]],\"\")","v":""},{"$f":"_xlfn.TEXTJOIN(\",\",TRUE,IF(Prestation[DossierCode]=Prestation[[#This Row],[DossierCode]],Prestation[Collaborateur unique],\"\"))","v":"0"}]
[null,null,null,null,null,null,null,null,null,null,null,null,null,null,null,null,null,null,null,null,null,null,null,null,null,null,null,null,null,null,null,null,null,null,null,null,null,null,null,null,null,null,null,null,null,null,null,null,null,null,null,null,null,null,null,null,null,null,null,null,null,null,null,null,null,null,null,null,{"$f":"Prestation[[#This Row],[CollaborateurTrigramme]]","v":0},{"$f":"Prestation[[#This Row],[DossierCode]]","v":0},{"$f":"_xlfn.CONCAT(Prestation[[#This Row],[DossierCode]],\"-\",Prestation[[#This Row],[CollaborateurTrigramme]])","v":"-"},{"$f":"ROW(Prestation[[#This Row],[Clés dossier et collaborateur]])","v":24},{"$f":"_xlfn.MINIFS(Prestation[Numéro de ligne],Prestation[Clés dossier et collaborateur],Prestation[[#This Row],[Clés dossier et collaborateur]])","v":6},{"$f":"IF(Prestation[[#This Row],[Numéro min de ligne pour la clé]]=Prestation[[#This Row],[Numéro de ligne]],Prestation[[#This Row],[Rappel collaborateur]],\"\")","v":""},{"$f":"_xlfn.TEXTJOIN(\",\",TRUE,IF(Prestation[DossierCode]=Prestation[[#This Row],[DossierCode]],Prestation[Collaborateur unique],\"\"))","v":"0"}]
[null,null,null,null,null,null,null,null,null,null,null,null,null,null,null,null,null,null,null,null,null,null,null,null,null,null,null,null,null,null,null,null,null,null,null,null,null,null,null,null,null,null,null,null,null,null,null,null,null,null,null,null,null,null,null,null,null,null,null,null,null,null,null,null,null,null,null,null,{"$f":"Prestation[[#This Row],[CollaborateurTrigramme]]","v":0},{"$f":"Prestation[[#This Row],[DossierCode]]","v":0},{"$f":"_xlfn.CONCAT(Prestation[[#This Row],[DossierCode]],\"-\",Prestation[[#This Row],[CollaborateurTrigramme]])","v":"-"},{"$f":"ROW(Prestation[[#This Row],[Clés dossier et collaborateur]])","v":25},{"$f":"_xlfn.MINIFS(Prestation[Numéro de ligne],Prestation[Clés dossier et collaborateur],Prestation[[#This Row],[Clés dossier et collaborateur]])","v":6},{"$f":"IF(Prestation[[#This Row],[Numéro min de ligne pour la clé]]=Prestation[[#This Row],[Numéro de ligne]],Prestation[[#This Row],[Rappel collaborateur]],\"\")","v":""},{"$f":"_xlfn.TEXTJOIN(\",\",TRUE,IF(Prestation[DossierCode]=Prestation[[#This Row],[DossierCode]],Prestation[Collaborateur unique],\"\"))","v":"0"}]
[null,null,null,null,null,null,null,null,null,null,null,null,null,null,null,null,null,null,null,null,null,null,null,null,null,null,null,null,null,null,null,null,null,null,null,null,null,null,null,null,null,null,null,null,null,null,null,null,null,null,null,null,null,null,null,null,null,null,null,null,null,null,null,null,null,null,null,null,{"$f":"Prestation[[#This Row],[CollaborateurTrigramme]]","v":0},{"$f":"Prestation[[#This Row],[DossierCode]]","v":0},{"$f":"_xlfn.CONCAT(Prestation[[#This Row],[DossierCode]],\"-\",Prestation[[#This Row],[CollaborateurTrigramme]])","v":"-"},{"$f":"ROW(Prestation[[#This Row],[Clés dossier et collaborateur]])","v":26},{"$f":"_xlfn.MINIFS(Prestation[Numéro de ligne],Prestation[Clés dossier et collaborateur],Prestation[[#This Row],[Clés dossier et collaborateur]])","v":6},{"$f":"IF(Prestation[[#This Row],[Numéro min de ligne pour la clé]]=Prestation[[#This Row],[Numéro de ligne]],Prestation[[#This Row],[Rappel collaborateur]],\"\")","v":""},{"$f":"_xlfn.TEXTJOIN(\",\",TRUE,IF(Prestation[DossierCode]=Prestation[[#This Row],[DossierCode]],Prestation[Collaborateur unique],\"\"))","v":"0"}]
[null,null,null,null,null,null,null,null,null,null,null,null,null,null,null,null,null,null,null,null,null,null,null,null,null,null,null,null,null,null,null,null,null,null,null,null,null,null,null,null,null,null,null,null,null,null,null,null,null,null,null,null,null,null,null,null,null,null,null,null,null,null,null,null,null,null,null,null,{"$f":"Prestation[[#This Row],[CollaborateurTrigramme]]","v":0},{"$f":"Prestation[[#This Row],[DossierCode]]","v":0},{"$f":"_xlfn.CONCAT(Prestation[[#This Row],[DossierCode]],\"-\",Prestation[[#This Row],[CollaborateurTrigramme]])","v":"-"},{"$f":"ROW(Prestation[[#This Row],[Clés dossier et collaborateur]])","v":27},{"$f":"_xlfn.MINIFS(Prestation[Numéro de ligne],Prestation[Clés dossier et collaborateur],Prestation[[#This Row],[Clés dossier et collaborateur]])","v":6},{"$f":"IF(Prestation[[#This Row],[Numéro min de ligne pour la clé]]=Prestation[[#This Row],[Numéro de ligne]],Prestation[[#This Row],[Rappel collaborateur]],\"\")","v":""},{"$f":"_xlfn.TEXTJOIN(\",\",TRUE,IF(Prestation[DossierCode]=Prestation[[#This Row],[DossierCode]],Prestation[Collaborateur unique],\"\"))","v":"0"}]
[null,null,null,null,null,null,null,null,null,null,null,null,null,null,null,null,null,null,null,null,null,null,null,null,null,null,null,null,null,null,null,null,null,null,null,null,null,null,null,null,null,null,null,null,null,null,null,null,null,null,null,null,null,null,null,null,null,null,null,null,null,null,null,null,null,null,null,null,{"$f":"Prestation[[#This Row],[CollaborateurTrigramme]]","v":0},{"$f":"Prestation[[#This Row],[DossierCode]]","v":0},{"$f":"_xlfn.CONCAT(Prestation[[#This Row],[DossierCode]],\"-\",Prestation[[#This Row],[CollaborateurTrigramme]])","v":"-"},{"$f":"ROW(Prestation[[#This Row],[Clés dossier et collaborateur]])","v":28},{"$f":"_xlfn.MINIFS(Prestation[Numéro de ligne],Prestation[Clés dossier et collaborateur],Prestation[[#This Row],[Clés dossier et collaborateur]])","v":6},{"$f":"IF(Prestation[[#This Row],[Numéro min de ligne pour la clé]]=Prestation[[#This Row],[Numéro de ligne]],Prestation[[#This Row],[Rappel collaborateur]],\"\")","v":""},{"$f":"_xlfn.TEXTJOIN(\",\",TRUE,IF(Prestation[DossierCode]=Prestation[[#This Row],[DossierCode]],Prestation[Collaborateur unique],\"\"))","v":"0"}]
[null,null,null,null,null,null,null,null,null,null,null,null,null,null,null,null,null,null,null,null,null,null,null,null,null,null,null,null,null,null,null,null,null,null,null,null,null,null,null,null,null,null,null,null,null,null,null,null,null,null,null,null,null,null,null,null,null,null,null,null,null,null,null,null,null,null,null,null,{"$f":"Prestation[[#This Row],[CollaborateurTrigramme]]","v":0},{"$f":"Prestation[[#This Row],[DossierCode]]","v":0},{"$f":"_xlfn.CONCAT(Prestation[[#This Row],[DossierCode]],\"-\",Prestation[[#This Row],[CollaborateurTrigramme]])","v":"-"},{"$f":"ROW(Prestation[[#This Row],[Clés dossier et collaborateur]])","v":29},{"$f":"_xlfn.MINIFS(Prestation[Numéro de ligne],Prestation[Clés dossier et collaborateur],Prestation[[#This Row],[Clés dossier et collaborateur]])","v":6},{"$f":"IF(Prestation[[#This Row],[Numéro min de ligne pour la clé]]=Prestation[[#This Row],[Numéro de ligne]],Prestation[[#This Row],[Rappel collaborateur]],\"\")","v":""},{"$f":"_xlfn.TEXTJOIN(\",\",TRUE,IF(Prestation[DossierCode]=Prestation[[#This Row],[DossierCode]],Prestation[Collaborateur unique],\"\"))","v":"0"}]
[null,null,null,null,null,null,null,null,null,null,null,null,null,null,null,null,null,null,null,null,null,null,null,null,null,null,null,null,null,null,null,null,null,null,null,null,null,null,null,null,null,null,null,null,null,null,null,null,null,null,null,null,null,null,null,null,null,null,null,null,null,null,null,null,null,null,null,null,{"$f":"Prestation[[#This Row],[CollaborateurTrigramme]]","v":0},{"$f":"Prestation[[#This Row],[DossierCode]]","v":0},{"$f":"_xlfn.CONCAT(Prestation[[#This Row],[DossierCode]],\"-\",Prestation[[#This Row],[CollaborateurTrigramme]])","v":"-"},{"$f":"ROW(Prestation[[#This Row],[Clés dossier et collaborateur]])","v":30},{"$f":"_xlfn.MINIFS(Prestation[Numéro de ligne],Prestation[Clés dossier et collaborateur],Prestation[[#This Row],[Clés dossier et collaborateur]])","v":6},{"$f":"IF(Prestation[[#This Row],[Numéro min de ligne pour la clé]]=Prestation[[#This Row],[Numéro de ligne]],Prestation[[#This Row],[Rappel collaborateur]],\"\")","v":""},{"$f":"_xlfn.TEXTJOIN(\",\",TRUE,IF(Prestation[DossierCode]=Prestation[[#This Row],[DossierCode]],Prestation[Collaborateur unique],\"\"))","v":"0"}]
[null,null,null,null,null,null,null,null,null,null,null,null,null,null,null,null,null,null,null,null,null,null,null,null,null,null,null,null,null,null,null,null,null,null,null,null,null,null,null,null,null,null,null,null,null,null,null,null,null,null,null,null,null,null,null,null,null,null,null,null,null,null,null,null,null,null,null,null,{"$f":"Prestation[[#This Row],[CollaborateurTrigramme]]","v":0},{"$f":"Prestation[[#This Row],[DossierCode]]","v":0},{"$f":"_xlfn.CONCAT(Prestation[[#This Row],[DossierCode]],\"-\",Prestation[[#This Row],[CollaborateurTrigramme]])","v":"-"},{"$f":"ROW(Prestation[[#This Row],[Clés dossier et collaborateur]])","v":31},{"$f":"_xlfn.MINIFS(Prestation[Numéro de ligne],Prestation[Clés dossier et collaborateur],Prestation[[#This Row],[Clés dossier et collaborateur]])","v":6},{"$f":"IF(Prestation[[#This Row],[Numéro min de ligne pour la clé]]=Prestation[[#This Row],[Numéro de ligne]],Prestation[[#This Row],[Rappel collaborateur]],\"\")","v":""},{"$f":"_xlfn.TEXTJOIN(\",\",TRUE,IF(Prestation[DossierCode]=Prestation[[#This Row],[DossierCode]],Prestation[Collaborateur unique],\"\"))","v":"0"}]
[null,null,null,null,null,null,null,null,null,null,null,null,null,null,null,null,null,null,null,null,null,null,null,null,null,null,null,null,null,null,null,null,null,null,null,null,null,null,null,null,null,null,null,null,null,null,null,null,null,null,null,null,null,null,null,null,null,null,null,null,null,null,null,null,null,null,null,null,{"$f":"Prestation[[#This Row],[CollaborateurTrigramme]]","v":0},{"$f":"Prestation[[#This Row],[DossierCode]]","v":0},{"$f":"_xlfn.CONCAT(Prestation[[#This Row],[DossierCode]],\"-\",Prestation[[#This Row],[CollaborateurTrigramme]])","v":"-"},{"$f":"ROW(Prestation[[#This Row],[Clés dossier et collaborateur]])","v":32},{"$f":"_xlfn.MINIFS(Prestation[Numéro de ligne],Prestation[Clés dossier et collaborateur],Prestation[[#This Row],[Clés dossier et collaborateur]])","v":6},{"$f":"IF(Prestation[[#This Row],[Numéro min de ligne pour la clé]]=Prestation[[#This Row],[Numéro de ligne]],Prestation[[#This Row],[Rappel collaborateur]],\"\")","v":""},{"$f":"_xlfn.TEXTJOIN(\",\",TRUE,IF(Prestation[DossierCode]=Prestation[[#This Row],[DossierCode]],Prestation[Collaborateur unique],\"\"))","v":"0"}]
[null,null,null,null,null,null,null,null,null,null,null,null,null,null,null,null,null,null,null,null,null,null,null,null,null,null,null,null,null,null,null,null,null,null,null,null,null,null,null,null,null,null,null,null,null,null,null,null,null,null,null,null,null,null,null,null,null,null,null,null,null,null,null,null,null,null,null,null,{"$f":"Prestation[[#This Row],[CollaborateurTrigramme]]","v":0},{"$f":"Prestation[[#This Row],[DossierCode]]","v":0},{"$f":"_xlfn.CONCAT(Prestation[[#This Row],[DossierCode]],\"-\",Prestation[[#This Row],[CollaborateurTrigramme]])","v":"-"},{"$f":"ROW(Prestation[[#This Row],[Clés dossier et collaborateur]])","v":33},{"$f":"_xlfn.MINIFS(Prestation[Numéro de ligne],Prestation[Clés dossier et collaborateur],Prestation[[#This Row],[Clés dossier et collaborateur]])","v":6},{"$f":"IF(Prestation[[#This Row],[Numéro min de ligne pour la clé]]=Prestation[[#This Row],[Numéro de ligne]],Prestation[[#This Row],[Rappel collaborateur]],\"\")","v":""},{"$f":"_xlfn.TEXTJOIN(\",\",TRUE,IF(Prestation[DossierCode]=Prestation[[#This Row],[DossierCode]],Prestation[Collaborateur unique],\"\"))","v":"0"}]
[null,null,null,null,null,null,null,null,null,null,null,null,null,null,null,null,null,null,null,null,null,null,null,null,null,null,null,null,null,null,null,null,null,null,null,null,null,null,null,null,null,null,null,null,null,null,null,null,null,null,null,null,null,null,null,null,null,null,null,null,null,null,null,null,null,null,null,null,{"$f":"Prestation[[#This Row],[CollaborateurTrigramme]]","v":0},{"$f":"Prestation[[#This Row],[DossierCode]]","v":0},{"$f":"_xlfn.CONCAT(Prestation[[#This Row],[DossierCode]],\"-\",Prestation[[#This Row],[CollaborateurTrigramme]])","v":"-"},{"$f":"ROW(Prestation[[#This Row],[Clés dossier et collaborateur]])","v":34},{"$f":"_xlfn.MINIFS(Prestation[Numéro de ligne],Prestation[Clés dossier et collaborateur],Prestation[[#This Row],[Clés dossier et collaborateur]])","v":6},{"$f":"IF(Prestation[[#This Row],[Numéro min de ligne pour la clé]]=Prestation[[#This Row],[Numéro de ligne]],Prestation[[#This Row],[Rappel collaborateur]],\"\")","v":""},{"$f":"_xlfn.TEXTJOIN(\",\",TRUE,IF(Prestation[DossierCode]=Prestation[[#This Row],[DossierCode]],Prestation[Collaborateur unique],\"\"))","v":"0"}]
[null,null,null,null,null,null,null,null,null,null,null,null,null,null,null,null,null,null,null,null,null,null,null,null,null,null,null,null,null,null,null,null,null,null,null,null,null,null,null,null,null,null,null,null,null,null,null,null,null,null,null,null,null,null,null,null,null,null,null,null,null,null,null,null,null,null,null,null,{"$f":"Prestation[[#This Row],[CollaborateurTrigramme]]","v":0},{"$f":"Prestation[[#This Row],[DossierCode]]","v":0},{"$f":"_xlfn.CONCAT(Prestation[[#This Row],[DossierCode]],\"-\",Prestation[[#This Row],[CollaborateurTrigramme]])","v":"-"},{"$f":"ROW(Prestation[[#This Row],[Clés dossier et collaborateur]])","v":35},{"$f":"_xlfn.MINIFS(Prestation[Numéro de ligne],Prestation[Clés dossier et collaborateur],Prestation[[#This Row],[Clés dossier et collaborateur]])","v":6},{"$f":"IF(Prestation[[#This Row],[Numéro min de ligne pour la clé]]=Prestation[[#This Row],[Numéro de ligne]],Prestation[[#This Row],[Rappel collaborateur]],\"\")","v":""},{"$f":"_xlfn.TEXTJOIN(\",\",TRUE,IF(Prestation[DossierCode]=Prestation[[#This Row],[DossierCode]],Prestation[Collaborateur unique],\"\"))","v":"0"}]
[null,null,null,null,null,null,null,null,null,null,null,null,null,null,null,null,null,null,null,null,null,null,null,null,null,null,null,null,null,null,null,null,null,null,null,null,null,null,null,null,null,null,null,null,null,null,null,null,null,null,null,null,null,null,null,null,null,null,null,null,null,null,null,null,null,null,null,null,{"$f":"Prestation[[#This Row],[CollaborateurTrigramme]]","v":0},{"$f":"Prestation[[#This Row],[DossierCode]]","v":0},{"$f":"_xlfn.CONCAT(Prestation[[#This Row],[DossierCode]],\"-\",Prestation[[#This Row],[CollaborateurTrigramme]])","v":"-"},{"$f":"ROW(Prestation[[#This Row],[Clés dossier et collaborateur]])","v":36},{"$f":"_xlfn.MINIFS(Prestation[Numéro de ligne],Prestation[Clés dossier et collaborateur],Prestation[[#This Row],[Clés dossier et collaborateur]])","v":6},{"$f":"IF(Prestation[[#This Row],[Numéro min de ligne pour la clé]]=Prestation[[#This Row],[Numéro de ligne]],Prestation[[#This Row],[Rappel collaborateur]],\"\")","v":""},{"$f":"_xlfn.TEXTJOIN(\",\",TRUE,IF(Prestation[DossierCode]=Prestation[[#This Row],[DossierCode]],Prestation[Collaborateur unique],\"\"))","v":"0"}]
[null,null,null,null,null,null,null,null,null,null,null,null,null,null,null,null,null,null,null,null,null,null,null,null,null,null,null,null,null,null,null,null,null,null,null,null,null,null,null,null,null,null,null,null,null,null,null,null,null,null,null,null,null,null,null,null,null,null,null,null,null,null,null,null,null,null,null,null,{"$f":"Prestation[[#This Row],[CollaborateurTrigramme]]","v":0},{"$f":"Prestation[[#This Row],[DossierCode]]","v":0},{"$f":"_xlfn.CONCAT(Prestation[[#This Row],[DossierCode]],\"-\",Prestation[[#This Row],[CollaborateurTrigramme]])","v":"-"},{"$f":"ROW(Prestation[[#This Row],[Clés dossier et collaborateur]])","v":37},{"$f":"_xlfn.MINIFS(Prestation[Numéro de ligne],Prestation[Clés dossier et collaborateur],Prestation[[#This Row],[Clés dossier et collaborateur]])","v":6},{"$f":"IF(Prestation[[#This Row],[Numéro min de ligne pour la clé]]=Prestation[[#This Row],[Numéro de ligne]],Prestation[[#This Row],[Rappel collaborateur]],\"\")","v":""},{"$f":"_xlfn.TEXTJOIN(\",\",TRUE,IF(Prestation[DossierCode]=Prestation[[#This Row],[DossierCode]],Prestation[Collaborateur unique],\"\"))","v":"0"}]
[null,null,null,null,null,null,null,null,null,null,null,null,null,null,null,null,null,null,null,null,null,null,null,null,null,null,null,null,null,null,null,null,null,null,null,null,null,null,null,null,null,null,null,null,null,null,null,null,null,null,null,null,null,null,null,null,null,null,null,null,null,null,null,null,null,null,null,null,{"$f":"Prestation[[#This Row],[CollaborateurTrigramme]]","v":0},{"$f":"Prestation[[#This Row],[DossierCode]]","v":0},{"$f":"_xlfn.CONCAT(Prestation[[#This Row],[DossierCode]],\"-\",Prestation[[#This Row],[CollaborateurTrigramme]])","v":"-"},{"$f":"ROW(Prestation[[#This Row],[Clés dossier et collaborateur]])","v":38},{"$f":"_xlfn.MINIFS(Prestation[Numéro de ligne],Prestation[Clés dossier et collaborateur],Prestation[[#This Row],[Clés dossier et collaborateur]])","v":6},{"$f":"IF(Prestation[[#This Row],[Numéro min de ligne pour la clé]]=Prestation[[#This Row],[Numéro de ligne]],Prestation[[#This Row],[Rappel collaborateur]],\"\")","v":""},{"$f":"_xlfn.TEXTJOIN(\",\",TRUE,IF(Prestation[DossierCode]=Prestation[[#This Row],[DossierCode]],Prestation[Collaborateur unique],\"\"))","v":"0"}]
[null,null,null,null,null,null,null,null,null,null,null,null,null,null,null,null,null,null,null,null,null,null,null,null,null,null,null,null,null,null,null,null,null,null,null,null,null,null,null,null,null,null,null,null,null,null,null,null,null,null,null,null,null,null,null,null,null,null,null,null,null,null,null,null,null,null,null,null,{"$f":"Prestation[[#This Row],[CollaborateurTrigramme]]","v":0},{"$f":"Prestation[[#This Row],[DossierCode]]","v":0},{"$f":"_xlfn.CONCAT(Prestation[[#This Row],[DossierCode]],\"-\",Prestation[[#This Row],[CollaborateurTrigramme]])","v":"-"},{"$f":"ROW(Prestation[[#This Row],[Clés dossier et collaborateur]])","v":39},{"$f":"_xlfn.MINIFS(Prestation[Numéro de ligne],Prestation[Clés dossier et collaborateur],Prestation[[#This Row],[Clés dossier et collaborateur]])","v":6},{"$f":"IF(Prestation[[#This Row],[Numéro min de ligne pour la clé]]=Prestation[[#This Row],[Numéro de ligne]],Prestation[[#This Row],[Rappel collaborateur]],\"\")","v":""},{"$f":"_xlfn.TEXTJOIN(\",\",TRUE,IF(Prestation[DossierCode]=Prestation[[#This Row],[DossierCode]],Prestation[Collaborateur unique],\"\"))","v":"0"}]
[null,null,null,null,null,null,null,null,null,null,null,null,null,null,null,null,null,null,null,null,null,null,null,null,null,null,null,null,null,null,null,null,null,null,null,null,null,null,null,null,null,null,null,null,null,null,null,null,null,null,null,null,null,null,null,null,null,null,null,null,null,null,null,null,null,null,null,null,{"$f":"Prestation[[#This Row],[CollaborateurTrigramme]]","v":0},{"$f":"Prestation[[#This Row],[DossierCode]]","v":0},{"$f":"_xlfn.CONCAT(Prestation[[#This Row],[DossierCode]],\"-\",Prestation[[#This Row],[CollaborateurTrigramme]])","v":"-"},{"$f":"ROW(Prestation[[#This Row],[Clés dossier et collaborateur]])","v":40},{"$f":"_xlfn.MINIFS(Prestation[Numéro de ligne],Prestation[Clés dossier et collaborateur],Prestation[[#This Row],[Clés dossier et collaborateur]])","v":6},{"$f":"IF(Prestation[[#This Row],[Numéro min de ligne pour la clé]]=Prestation[[#This Row],[Numéro de ligne]],Prestation[[#This Row],[Rappel collaborateur]],\"\")","v":""},{"$f":"_xlfn.TEXTJOIN(\",\",TRUE,IF(Prestation[DossierCode]=Prestation[[#This Row],[DossierCode]],Prestation[Collaborateur unique],\"\"))","v":"0"}]
[null,null,null,null,null,null,null,null,null,null,null,null,null,null,null,null,null,null,null,null,null,null,null,null,null,null,null,null,null,null,null,null,null,null,null,null,null,null,null,null,null,null,null,null,null,null,null,null,null,null,null,null,null,null,null,null,null,null,null,null,null,null,null,null,null,null,null,null,{"$f":"Prestation[[#This Row],[CollaborateurTrigramme]]","v":0},{"$f":"Prestation[[#This Row],[DossierCode]]","v":0},{"$f":"_xlfn.CONCAT(Prestation[[#This Row],[DossierCode]],\"-\",Prestation[[#This Row],[CollaborateurTrigramme]])","v":"-"},{"$f":"ROW(Prestation[[#This Row],[Clés dossier et collaborateur]])","v":41},{"$f":"_xlfn.MINIFS(Prestation[Numéro de ligne],Prestation[Clés dossier et collaborateur],Prestation[[#This Row],[Clés dossier et collaborateur]])","v":6},{"$f":"IF(Prestation[[#This Row],[Numéro min de ligne pour la clé]]=Prestation[[#This Row],[Numéro de ligne]],Prestation[[#This Row],[Rappel collaborateur]],\"\")","v":""},{"$f":"_xlfn.TEXTJOIN(\",\",TRUE,IF(Prestation[DossierCode]=Prestation[[#This Row],[DossierCode]],Prestation[Collaborateur unique],\"\"))","v":"0"}]
[null,null,null,null,null,null,null,null,null,null,null,null,null,null,null,null,null,null,null,null,null,null,null,null,null,null,null,null,null,null,null,null,null,null,null,null,null,null,null,null,null,null,null,null,null,null,null,null,null,null,null,null,null,null,null,null,null,null,null,null,null,null,null,null,null,null,null,null,{"$f":"Prestation[[#This Row],[CollaborateurTrigramme]]","v":0},{"$f":"Prestation[[#This Row],[DossierCode]]","v":0},{"$f":"_xlfn.CONCAT(Prestation[[#This Row],[DossierCode]],\"-\",Prestation[[#This Row],[CollaborateurTrigramme]])","v":"-"},{"$f":"ROW(Prestation[[#This Row],[Clés dossier et collaborateur]])","v":42},{"$f":"_xlfn.MINIFS(Prestation[Numéro de ligne],Prestation[Clés dossier et collaborateur],Prestation[[#This Row],[Clés dossier et collaborateur]])","v":6},{"$f":"IF(Prestation[[#This Row],[Numéro min de ligne pour la clé]]=Prestation[[#This Row],[Numéro de ligne]],Prestation[[#This Row],[Rappel collaborateur]],\"\")","v":""},{"$f":"_xlfn.TEXTJOIN(\",\",TRUE,IF(Prestation[DossierCode]=Prestation[[#This Row],[DossierCode]],Prestation[Collaborateur unique],\"\"))","v":"0"}]
[null,null,null,null,null,null,null,null,null,null,null,null,null,null,null,null,null,null,null,null,null,null,null,null,null,null,null,null,null,null,null,null,null,null,null,null,null,null,null,null,null,null,null,null,null,null,null,null,null,null,null,null,null,null,null,null,null,null,null,null,null,null,null,null,null,null,null,null,{"$f":"Prestation[[#This Row],[CollaborateurTrigramme]]","v":0},{"$f":"Prestation[[#This Row],[DossierCode]]","v":0},{"$f":"_xlfn.CONCAT(Prestation[[#This Row],[DossierCode]],\"-\",Prestation[[#This Row],[CollaborateurTrigramme]])","v":"-"},{"$f":"ROW(Prestation[[#This Row],[Clés dossier et collaborateur]])","v":43},{"$f":"_xlfn.MINIFS(Prestation[Numéro de ligne],Prestation[Clés dossier et collaborateur],Prestation[[#This Row],[Clés dossier et collaborateur]])","v":6},{"$f":"IF(Prestation[[#This Row],[Numéro min de ligne pour la clé]]=Prestation[[#This Row],[Numéro de ligne]],Prestation[[#This Row],[Rappel collaborateur]],\"\")","v":""},{"$f":"_xlfn.TEXTJOIN(\",\",TRUE,IF(Prestation[DossierCode]=Prestation[[#This Row],[DossierCode]],Prestation[Collaborateur unique],\"\"))","v":"0"}]
[null,null,null,null,null,null,null,null,null,null,null,null,null,null,null,null,null,null,null,null,null,null,null,null,null,null,null,null,null,null,null,null,null,null,null,null,null,null,null,null,null,null,null,null,null,null,null,null,null,null,null,null,null,null,null,null,null,null,null,null,null,null,null,null,null,null,null,null,{"$f":"Prestation[[#This Row],[CollaborateurTrigramme]]","v":0},{"$f":"Prestation[[#This Row],[DossierCode]]","v":0},{"$f":"_xlfn.CONCAT(Prestation[[#This Row],[DossierCode]],\"-\",Prestation[[#This Row],[CollaborateurTrigramme]])","v":"-"},{"$f":"ROW(Prestation[[#This Row],[Clés dossier et collaborateur]])","v":44},{"$f":"_xlfn.MINIFS(Prestation[Numéro de ligne],Prestation[Clés dossier et collaborateur],Prestation[[#This Row],[Clés dossier et collaborateur]])","v":6},{"$f":"IF(Prestation[[#This Row],[Numéro min de ligne pour la clé]]=Prestation[[#This Row],[Numéro de ligne]],Prestation[[#This Row],[Rappel collaborateur]],\"\")","v":""},{"$f":"_xlfn.TEXTJOIN(\",\",TRUE,IF(Prestation[DossierCode]=Prestation[[#This Row],[DossierCode]],Prestation[Collaborateur unique],\"\"))","v":"0"}]
[null,null,null,null,null,null,null,null,null,null,null,null,null,null,null,null,null,null,null,null,null,null,null,null,null,null,null,null,null,null,null,null,null,null,null,null,null,null,null,null,null,null,null,null,null,null,null,null,null,null,null,null,null,null,null,null,null,null,null,null,null,null,null,null,null,null,null,null,{"$f":"Prestation[[#This Row],[CollaborateurTrigramme]]","v":0},{"$f":"Prestation[[#This Row],[DossierCode]]","v":0},{"$f":"_xlfn.CONCAT(Prestation[[#This Row],[DossierCode]],\"-\",Prestation[[#This Row],[CollaborateurTrigramme]])","v":"-"},{"$f":"ROW(Prestation[[#This Row],[Clés dossier et collaborateur]])","v":45},{"$f":"_xlfn.MINIFS(Prestation[Numéro de ligne],Prestation[Clés dossier et collaborateur],Prestation[[#This Row],[Clés dossier et collaborateur]])","v":6},{"$f":"IF(Prestation[[#This Row],[Numéro min de ligne pour la clé]]=Prestation[[#This Row],[Numéro de ligne]],Prestation[[#This Row],[Rappel collaborateur]],\"\")","v":""},{"$f":"_xlfn.TEXTJOIN(\",\",TRUE,IF(Prestation[DossierCode]=Prestation[[#This Row],[DossierCode]],Prestation[Collaborateur unique],\"\"))","v":"0"}]
[null,null,null,null,null,null,null,null,null,null,null,null,null,null,null,null,null,null,null,null,null,null,null,null,null,null,null,null,null,null,null,null,null,null,null,null,null,null,null,null,null,null,null,null,null,null,null,null,null,null,null,null,null,null,null,null,null,null,null,null,null,null,null,null,null,null,null,null,{"$f":"Prestation[[#This Row],[CollaborateurTrigramme]]","v":0},{"$f":"Prestation[[#This Row],[DossierCode]]","v":0},{"$f":"_xlfn.CONCAT(Prestation[[#This Row],[DossierCode]],\"-\",Prestation[[#This Row],[CollaborateurTrigramme]])","v":"-"},{"$f":"ROW(Prestation[[#This Row],[Clés dossier et collaborateur]])","v":46},{"$f":"_xlfn.MINIFS(Prestation[Numéro de ligne],Prestation[Clés dossier et collaborateur],Prestation[[#This Row],[Clés dossier et collaborateur]])","v":6},{"$f":"IF(Prestation[[#This Row],[Numéro min de ligne pour la clé]]=Prestation[[#This Row],[Numéro de ligne]],Prestation[[#This Row],[Rappel collaborateur]],\"\")","v":""},{"$f":"_xlfn.TEXTJOIN(\",\",TRUE,IF(Prestation[DossierCode]=Prestation[[#This Row],[DossierCode]],Prestation[Collaborateur unique],\"\"))","v":"0"}]
[null,null,null,null,null,null,null,null,null,null,null,null,null,null,null,null,null,null,null,null,null,null,null,null,null,null,null,null,null,null,null,null,null,null,null,null,null,null,null,null,null,null,null,null,null,null,null,null,null,null,null,null,null,null,null,null,null,null,null,null,null,null,null,null,null,null,null,null,{"$f":"Prestation[[#This Row],[CollaborateurTrigramme]]","v":0},{"$f":"Prestation[[#This Row],[DossierCode]]","v":0},{"$f":"_xlfn.CONCAT(Prestation[[#This Row],[DossierCode]],\"-\",Prestation[[#This Row],[CollaborateurTrigramme]])","v":"-"},{"$f":"ROW(Prestation[[#This Row],[Clés dossier et collaborateur]])","v":47},{"$f":"_xlfn.MINIFS(Prestation[Numéro de ligne],Prestation[Clés dossier et collaborateur],Prestation[[#This Row],[Clés dossier et collaborateur]])","v":6},{"$f":"IF(Prestation[[#This Row],[Numéro min de ligne pour la clé]]=Prestation[[#This Row],[Numéro de ligne]],Prestation[[#This Row],[Rappel collaborateur]],\"\")","v":""},{"$f":"_xlfn.TEXTJOIN(\",\",TRUE,IF(Prestation[DossierCode]=Prestation[[#This Row],[DossierCode]],Prestation[Collaborateur unique],\"\"))","v":"0"}]
[null,null,null,null,null,null,null,null,null,null,null,null,null,null,null,null,null,null,null,null,null,null,null,null,null,null,null,null,null,null,null,null,null,null,null,null,null,null,null,null,null,null,null,null,null,null,null,null,null,null,null,null,null,null,null,null,null,null,null,null,null,null,null,null,null,null,null,null,{"$f":"Prestation[[#This Row],[CollaborateurTrigramme]]","v":0},{"$f":"Prestation[[#This Row],[DossierCode]]","v":0},{"$f":"_xlfn.CONCAT(Prestation[[#This Row],[DossierCode]],\"-\",Prestation[[#This Row],[CollaborateurTrigramme]])","v":"-"},{"$f":"ROW(Prestation[[#This Row],[Clés dossier et collaborateur]])","v":48},{"$f":"_xlfn.MINIFS(Prestation[Numéro de ligne],Prestation[Clés dossier et collaborateur],Prestation[[#This Row],[Clés dossier et collaborateur]])","v":6},{"$f":"IF(Prestation[[#This Row],[Numéro min de ligne pour la clé]]=Prestation[[#This Row],[Numéro de ligne]],Prestation[[#This Row],[Rappel collaborateur]],\"\")","v":""},{"$f":"_xlfn.TEXTJOIN(\",\",TRUE,IF(Prestation[DossierCode]=Prestation[[#This Row],[DossierCode]],Prestation[Collaborateur unique],\"\"))","v":"0"}]
[null,null,null,null,null,null,null,null,null,null,null,null,null,null,null,null,null,null,null,null,null,null,null,null,null,null,null,null,null,null,null,null,null,null,null,null,null,null,null,null,null,null,null,null,null,null,null,null,null,null,null,null,null,null,null,null,null,null,null,null,null,null,null,null,null,null,null,null,{"$f":"Prestation[[#This Row],[CollaborateurTrigramme]]","v":0},{"$f":"Prestation[[#This Row],[DossierCode]]","v":0},{"$f":"_xlfn.CONCAT(Prestation[[#This Row],[DossierCode]],\"-\",Prestation[[#This Row],[CollaborateurTrigramme]])","v":"-"},{"$f":"ROW(Prestation[[#This Row],[Clés dossier et collaborateur]])","v":49},{"$f":"_xlfn.MINIFS(Prestation[Numéro de ligne],Prestation[Clés dossier et collaborateur],Prestation[[#This Row],[Clés dossier et collaborateur]])","v":6},{"$f":"IF(Prestation[[#This Row],[Numéro min de ligne pour la clé]]=Prestation[[#This Row],[Numéro de ligne]],Prestation[[#This Row],[Rappel collaborateur]],\"\")","v":""},{"$f":"_xlfn.TEXTJOIN(\",\",TRUE,IF(Prestation[DossierCode]=Prestation[[#This Row],[DossierCode]],Prestation[Collaborateur unique],\"\"))","v":"0"}]
[null,null,null,null,null,null,null,null,null,null,null,null,null,null,null,null,null,null,null,null,null,null,null,null,null,null,null,null,null,null,null,null,null,null,null,null,null,null,null,null,null,null,null,null,null,null,null,null,null,null,null,null,null,null,null,null,null,null,null,null,null,null,null,null,null,null,null,null,{"$f":"Prestation[[#This Row],[CollaborateurTrigramme]]","v":0},{"$f":"Prestation[[#This Row],[DossierCode]]","v":0},{"$f":"_xlfn.CONCAT(Prestation[[#This Row],[DossierCode]],\"-\",Prestation[[#This Row],[CollaborateurTrigramme]])","v":"-"},{"$f":"ROW(Prestation[[#This Row],[Clés dossier et collaborateur]])","v":50},{"$f":"_xlfn.MINIFS(Prestation[Numéro de ligne],Prestation[Clés dossier et collaborateur],Prestation[[#This Row],[Clés dossier et collaborateur]])","v":6},{"$f":"IF(Prestation[[#This Row],[Numéro min de ligne pour la clé]]=Prestation[[#This Row],[Numéro de ligne]],Prestation[[#This Row],[Rappel collaborateur]],\"\")","v":""},{"$f":"_xlfn.TEXTJOIN(\",\",TRUE,IF(Prestation[DossierCode]=Prestation[[#This Row],[DossierCode]],Prestation[Collaborateur unique],\"\"))","v":"0"}]
[null,null,null,null,null,null,null,null,null,null,null,null,null,null,null,null,null,null,null,null,null,null,null,null,null,null,null,null,null,null,null,null,null,null,null,null,null,null,null,null,null,null,null,null,null,null,null,null,null,null,null,null,null,null,null,null,null,null,null,null,null,null,null,null,null,null,null,null,{"$f":"Prestation[[#This Row],[CollaborateurTrigramme]]","v":0},{"$f":"Prestation[[#This Row],[DossierCode]]","v":0},{"$f":"_xlfn.CONCAT(Prestation[[#This Row],[DossierCode]],\"-\",Prestation[[#This Row],[CollaborateurTrigramme]])","v":"-"},{"$f":"ROW(Prestation[[#This Row],[Clés dossier et collaborateur]])","v":51},{"$f":"_xlfn.MINIFS(Prestation[Numéro de ligne],Prestation[Clés dossier et collaborateur],Prestation[[#This Row],[Clés dossier et collaborateur]])","v":6},{"$f":"IF(Prestation[[#This Row],[Numéro min de ligne pour la clé]]=Prestation[[#This Row],[Numéro de ligne]],Prestation[[#This Row],[Rappel collaborateur]],\"\")","v":""},{"$f":"_xlfn.TEXTJOIN(\",\",TRUE,IF(Prestation[DossierCode]=Prestation[[#This Row],[DossierCode]],Prestation[Collaborateur unique],\"\"))","v":"0"}]
[null,null,null,null,null,null,null,null,null,null,null,null,null,null,null,null,null,null,null,null,null,null,null,null,null,null,null,null,null,null,null,null,null,null,null,null,null,null,null,null,null,null,null,null,null,null,null,null,null,null,null,null,null,null,null,null,null,null,null,null,null,null,null,null,null,null,null,null,{"$f":"Prestation[[#This Row],[CollaborateurTrigramme]]","v":0},{"$f":"Prestation[[#This Row],[DossierCode]]","v":0},{"$f":"_xlfn.CONCAT(Prestation[[#This Row],[DossierCode]],\"-\",Prestation[[#This Row],[CollaborateurTrigramme]])","v":"-"},{"$f":"ROW(Prestation[[#This Row],[Clés dossier et collaborateur]])","v":52},{"$f":"_xlfn.MINIFS(Prestation[Numéro de ligne],Prestation[Clés dossier et collaborateur],Prestation[[#This Row],[Clés dossier et collaborateur]])","v":6},{"$f":"IF(Prestation[[#This Row],[Numéro min de ligne pour la clé]]=Prestation[[#This Row],[Numéro de ligne]],Prestation[[#This Row],[Rappel collaborateur]],\"\")","v":""},{"$f":"_xlfn.TEXTJOIN(\",\",TRUE,IF(Prestation[DossierCode]=Prestation[[#This Row],[DossierCode]],Prestation[Collaborateur unique],\"\"))","v":"0"}]
[null,null,null,null,null,null,null,null,null,null,null,null,null,null,null,null,null,null,null,null,null,null,null,null,null,null,null,null,null,null,null,null,null,null,null,null,null,null,null,null,null,null,null,null,null,null,null,null,null,null,null,null,null,null,null,null,null,null,null,null,null,null,null,null,null,null,null,null,{"$f":"Prestation[[#This Row],[CollaborateurTrigramme]]","v":0},{"$f":"Prestation[[#This Row],[DossierCode]]","v":0},{"$f":"_xlfn.CONCAT(Prestation[[#This Row],[DossierCode]],\"-\",Prestation[[#This Row],[CollaborateurTrigramme]])","v":"-"},{"$f":"ROW(Prestation[[#This Row],[Clés dossier et collaborateur]])","v":53},{"$f":"_xlfn.MINIFS(Prestation[Numéro de ligne],Prestation[Clés dossier et collaborateur],Prestation[[#This Row],[Clés dossier et collaborateur]])","v":6},{"$f":"IF(Prestation[[#This Row],[Numéro min de ligne pour la clé]]=Prestation[[#This Row],[Numéro de ligne]],Prestation[[#This Row],[Rappel collaborateur]],\"\")","v":""},{"$f":"_xlfn.TEXTJOIN(\",\",TRUE,IF(Prestation[DossierCode]=Prestation[[#This Row],[DossierCode]],Prestation[Collaborateur unique],\"\"))","v":"0"}]
[null,null,null,null,null,null,null,null,null,null,null,null,null,null,null,null,null,null,null,null,null,null,null,null,null,null,null,null,null,null,null,null,null,null,null,null,null,null,null,null,null,null,null,null,null,null,null,null,null,null,null,null,null,null,null,null,null,null,null,null,null,null,null,null,null,null,null,null,{"$f":"Prestation[[#This Row],[CollaborateurTrigramme]]","v":0},{"$f":"Prestation[[#This Row],[DossierCode]]","v":0},{"$f":"_xlfn.CONCAT(Prestation[[#This Row],[DossierCode]],\"-\",Prestation[[#This Row],[CollaborateurTrigramme]])","v":"-"},{"$f":"ROW(Prestation[[#This Row],[Clés dossier et collaborateur]])","v":54},{"$f":"_xlfn.MINIFS(Prestation[Numéro de ligne],Prestation[Clés dossier et collaborateur],Prestation[[#This Row],[Clés dossier et collaborateur]])","v":6},{"$f":"IF(Prestation[[#This Row],[Numéro min de ligne pour la clé]]=Prestation[[#This Row],[Numéro de ligne]],Prestation[[#This Row],[Rappel collaborateur]],\"\")","v":""},{"$f":"_xlfn.TEXTJOIN(\",\",TRUE,IF(Prestation[DossierCode]=Prestation[[#This Row],[DossierCode]],Prestation[Collaborateur unique],\"\"))","v":"0"}]
[null,null,null,null,null,null,null,null,null,null,null,null,null,null,null,null,null,null,null,null,null,null,null,null,null,null,null,null,null,null,null,null,null,null,null,null,null,null,null,null,null,null,null,null,null,null,null,null,null,null,null,null,null,null,null,null,null,null,null,null,null,null,null,null,null,null,null,null,{"$f":"Prestation[[#This Row],[CollaborateurTrigramme]]","v":0},{"$f":"Prestation[[#This Row],[DossierCode]]","v":0},{"$f":"_xlfn.CONCAT(Prestation[[#This Row],[DossierCode]],\"-\",Prestation[[#This Row],[CollaborateurTrigramme]])","v":"-"},{"$f":"ROW(Prestation[[#This Row],[Clés dossier et collaborateur]])","v":55},{"$f":"_xlfn.MINIFS(Prestation[Numéro de ligne],Prestation[Clés dossier et collaborateur],Prestation[[#This Row],[Clés dossier et collaborateur]])","v":6},{"$f":"IF(Prestation[[#This Row],[Numéro min de ligne pour la clé]]=Prestation[[#This Row],[Numéro de ligne]],Prestation[[#This Row],[Rappel collaborateur]],\"\")","v":""},{"$f":"_xlfn.TEXTJOIN(\",\",TRUE,IF(Prestation[DossierCode]=Prestation[[#This Row],[DossierCode]],Prestation[Collaborateur unique],\"\"))","v":"0"}]
[null,null,null,null,null,null,null,null,null,null,null,null,null,null,null,null,null,null,null,null,null,null,null,null,null,null,null,null,null,null,null,null,null,null,null,null,null,null,null,null,null,null,null,null,null,null,null,null,null,null,null,null,null,null,null,null,null,null,null,null,null,null,null,null,null,null,null,null,{"$f":"Prestation[[#This Row],[CollaborateurTrigramme]]","v":0},{"$f":"Prestation[[#This Row],[DossierCode]]","v":0},{"$f":"_xlfn.CONCAT(Prestation[[#This Row],[DossierCode]],\"-\",Prestation[[#This Row],[CollaborateurTrigramme]])","v":"-"},{"$f":"ROW(Prestation[[#This Row],[Clés dossier et collaborateur]])","v":56},{"$f":"_xlfn.MINIFS(Prestation[Numéro de ligne],Prestation[Clés dossier et collaborateur],Prestation[[#This Row],[Clés dossier et collaborateur]])","v":6},{"$f":"IF(Prestation[[#This Row],[Numéro min de ligne pour la clé]]=Prestation[[#This Row],[Numéro de ligne]],Prestation[[#This Row],[Rappel collaborateur]],\"\")","v":""},{"$f":"_xlfn.TEXTJOIN(\",\",TRUE,IF(Prestation[DossierCode]=Prestation[[#This Row],[DossierCode]],Prestation[Collaborateur unique],\"\"))","v":"0"}]
[null,null,null,null,null,null,null,null,null,null,null,null,null,null,null,null,null,null,null,null,null,null,null,null,null,null,null,null,null,null,null,null,null,null,null,null,null,null,null,null,null,null,null,null,null,null,null,null,null,null,null,null,null,null,null,null,null,null,null,null,null,null,null,null,null,null,null,null,{"$f":"Prestation[[#This Row],[CollaborateurTrigramme]]","v":0},{"$f":"Prestation[[#This Row],[DossierCode]]","v":0},{"$f":"_xlfn.CONCAT(Prestation[[#This Row],[DossierCode]],\"-\",Prestation[[#This Row],[CollaborateurTrigramme]])","v":"-"},{"$f":"ROW(Prestation[[#This Row],[Clés dossier et collaborateur]])","v":57},{"$f":"_xlfn.MINIFS(Prestation[Numéro de ligne],Prestation[Clés dossier et collaborateur],Prestation[[#This Row],[Clés dossier et collaborateur]])","v":6},{"$f":"IF(Prestation[[#This Row],[Numéro min de ligne pour la clé]]=Prestation[[#This Row],[Numéro de ligne]],Prestation[[#This Row],[Rappel collaborateur]],\"\")","v":""},{"$f":"_xlfn.TEXTJOIN(\",\",TRUE,IF(Prestation[DossierCode]=Prestation[[#This Row],[DossierCode]],Prestation[Collaborateur unique],\"\"))","v":"0"}]
[null,null,null,null,null,null,null,null,null,null,null,null,null,null,null,null,null,null,null,null,null,null,null,null,null,null,null,null,null,null,null,null,null,null,null,null,null,null,null,null,null,null,null,null,null,null,null,null,null,null,null,null,null,null,null,null,null,null,null,null,null,null,null,null,null,null,null,null,{"$f":"Prestation[[#This Row],[CollaborateurTrigramme]]","v":0},{"$f":"Prestation[[#This Row],[DossierCode]]","v":0},{"$f":"_xlfn.CONCAT(Prestation[[#This Row],[DossierCode]],\"-\",Prestation[[#This Row],[CollaborateurTrigramme]])","v":"-"},{"$f":"ROW(Prestation[[#This Row],[Clés dossier et collaborateur]])","v":58},{"$f":"_xlfn.MINIFS(Prestation[Numéro de ligne],Prestation[Clés dossier et collaborateur],Prestation[[#This Row],[Clés dossier et collaborateur]])","v":6},{"$f":"IF(Prestation[[#This Row],[Numéro min de ligne pour la clé]]=Prestation[[#This Row],[Numéro de ligne]],Prestation[[#This Row],[Rappel collaborateur]],\"\")","v":""},{"$f":"_xlfn.TEXTJOIN(\",\",TRUE,IF(Prestation[DossierCode]=Prestation[[#This Row],[DossierCode]],Prestation[Collaborateur unique],\"\"))","v":"0"}]
[null,null,null,null,null,null,null,null,null,null,null,null,null,null,null,null,null,null,null,null,null,null,null,null,null,null,null,null,null,null,null,null,null,null,null,null,null,null,null,null,null,null,null,null,null,null,null,null,null,null,null,null,null,null,null,null,null,null,null,null,null,null,null,null,null,null,null,null,{"$f":"Prestation[[#This Row],[CollaborateurTrigramme]]","v":0},{"$f":"Prestation[[#This Row],[DossierCode]]","v":0},{"$f":"_xlfn.CONCAT(Prestation[[#This Row],[DossierCode]],\"-\",Prestation[[#This Row],[CollaborateurTrigramme]])","v":"-"},{"$f":"ROW(Prestation[[#This Row],[Clés dossier et collaborateur]])","v":59},{"$f":"_xlfn.MINIFS(Prestation[Numéro de ligne],Prestation[Clés dossier et collaborateur],Prestation[[#This Row],[Clés dossier et collaborateur]])","v":6},{"$f":"IF(Prestation[[#This Row],[Numéro min de ligne pour la clé]]=Prestation[[#This Row],[Numéro de ligne]],Prestation[[#This Row],[Rappel collaborateur]],\"\")","v":""},{"$f":"_xlfn.TEXTJOIN(\",\",TRUE,IF(Prestation[DossierCode]=Prestation[[#This Row],[DossierCode]],Prestation[Collaborateur unique],\"\"))","v":"0"}]
[null,null,null,null,null,null,null,null,null,null,null,null,null,null,null,null,null,null,null,null,null,null,null,null,null,null,null,null,null,null,null,null,null,null,null,null,null,null,null,null,null,null,null,null,null,null,null,null,null,null,null,null,null,null,null,null,null,null,null,null,null,null,null,null,null,null,null,null,{"$f":"Prestation[[#This Row],[CollaborateurTrigramme]]","v":0},{"$f":"Prestation[[#This Row],[DossierCode]]","v":0},{"$f":"_xlfn.CONCAT(Prestation[[#This Row],[DossierCode]],\"-\",Prestation[[#This Row],[CollaborateurTrigramme]])","v":"-"},{"$f":"ROW(Prestation[[#This Row],[Clés dossier et collaborateur]])","v":60},{"$f":"_xlfn.MINIFS(Prestation[Numéro de ligne],Prestation[Clés dossier et collaborateur],Prestation[[#This Row],[Clés dossier et collaborateur]])","v":6},{"$f":"IF(Prestation[[#This Row],[Numéro min de ligne pour la clé]]=Prestation[[#This Row],[Numéro de ligne]],Prestation[[#This Row],[Rappel collaborateur]],\"\")","v":""},{"$f":"_xlfn.TEXTJOIN(\",\",TRUE,IF(Prestation[DossierCode]=Prestation[[#This Row],[DossierCode]],Prestation[Collaborateur unique],\"\"))","v":"0"}]
[null,null,null,null,null,null,null,null,null,null,null,null,null,null,null,null,null,null,null,null,null,null,null,null,null,null,null,null,null,null,null,null,null,null,null,null,null,null,null,null,null,null,null,null,null,null,null,null,null,null,null,null,null,null,null,null,null,null,null,null,null,null,null,null,null,null,null,null,{"$f":"Prestation[[#This Row],[CollaborateurTrigramme]]","v":0},{"$f":"Prestation[[#This Row],[DossierCode]]","v":0},{"$f":"_xlfn.CONCAT(Prestation[[#This Row],[DossierCode]],\"-\",Prestation[[#This Row],[CollaborateurTrigramme]])","v":"-"},{"$f":"ROW(Prestation[[#This Row],[Clés dossier et collaborateur]])","v":61},{"$f":"_xlfn.MINIFS(Prestation[Numéro de ligne],Prestation[Clés dossier et collaborateur],Prestation[[#This Row],[Clés dossier et collaborateur]])","v":6},{"$f":"IF(Prestation[[#This Row],[Numéro min de ligne pour la clé]]=Prestation[[#This Row],[Numéro de ligne]],Prestation[[#This Row],[Rappel collaborateur]],\"\")","v":""},{"$f":"_xlfn.TEXTJOIN(\",\",TRUE,IF(Prestation[DossierCode]=Prestation[[#This Row],[DossierCode]],Prestation[Collaborateur unique],\"\"))","v":"0"}]
[null,null,null,null,null,null,null,null,null,null,null,null,null,null,null,null,null,null,null,null,null,null,null,null,null,null,null,null,null,null,null,null,null,null,null,null,null,null,null,null,null,null,null,null,null,null,null,null,null,null,null,null,null,null,null,null,null,null,null,null,null,null,null,null,null,null,null,null,{"$f":"Prestation[[#This Row],[CollaborateurTrigramme]]","v":0},{"$f":"Prestation[[#This Row],[DossierCode]]","v":0},{"$f":"_xlfn.CONCAT(Prestation[[#This Row],[DossierCode]],\"-\",Prestation[[#This Row],[CollaborateurTrigramme]])","v":"-"},{"$f":"ROW(Prestation[[#This Row],[Clés dossier et collaborateur]])","v":62},{"$f":"_xlfn.MINIFS(Prestation[Numéro de ligne],Prestation[Clés dossier et collaborateur],Prestation[[#This Row],[Clés dossier et collaborateur]])","v":6},{"$f":"IF(Prestation[[#This Row],[Numéro min de ligne pour la clé]]=Prestation[[#This Row],[Numéro de ligne]],Prestation[[#This Row],[Rappel collaborateur]],\"\")","v":""},{"$f":"_xlfn.TEXTJOIN(\",\",TRUE,IF(Prestation[DossierCode]=Prestation[[#This Row],[DossierCode]],Prestation[Collaborateur unique],\"\"))","v":"0"}]
[null,null,null,null,null,null,null,null,null,null,null,null,null,null,null,null,null,null,null,null,null,null,null,null,null,null,null,null,null,null,null,null,null,null,null,null,null,null,null,null,null,null,null,null,null,null,null,null,null,null,null,null,null,null,null,null,null,null,null,null,null,null,null,null,null,null,null,null,{"$f":"Prestation[[#This Row],[CollaborateurTrigramme]]","v":0},{"$f":"Prestation[[#This Row],[DossierCode]]","v":0},{"$f":"_xlfn.CONCAT(Prestation[[#This Row],[DossierCode]],\"-\",Prestation[[#This Row],[CollaborateurTrigramme]])","v":"-"},{"$f":"ROW(Prestation[[#This Row],[Clés dossier et collaborateur]])","v":63},{"$f":"_xlfn.MINIFS(Prestation[Numéro de ligne],Prestation[Clés dossier et collaborateur],Prestation[[#This Row],[Clés dossier et collaborateur]])","v":6},{"$f":"IF(Prestation[[#This Row],[Numéro min de ligne pour la clé]]=Prestation[[#This Row],[Numéro de ligne]],Prestation[[#This Row],[Rappel collaborateur]],\"\")","v":""},{"$f":"_xlfn.TEXTJOIN(\",\",TRUE,IF(Prestation[DossierCode]=Prestation[[#This Row],[DossierCode]],Prestation[Collaborateur unique],\"\"))","v":"0"}]
[null,null,null,null,null,null,null,null,null,null,null,null,null,null,null,null,null,null,null,null,null,null,null,null,null,null,null,null,null,null,null,null,null,null,null,null,null,null,null,null,null,null,null,null,null,null,null,null,null,null,null,null,null,null,null,null,null,null,null,null,null,null,null,null,null,null,null,null,{"$f":"Prestation[[#This Row],[CollaborateurTrigramme]]","v":0},{"$f":"Prestation[[#This Row],[DossierCode]]","v":0},{"$f":"_xlfn.CONCAT(Prestation[[#This Row],[DossierCode]],\"-\",Prestation[[#This Row],[CollaborateurTrigramme]])","v":"-"},{"$f":"ROW(Prestation[[#This Row],[Clés dossier et collaborateur]])","v":64},{"$f":"_xlfn.MINIFS(Prestation[Numéro de ligne],Prestation[Clés dossier et collaborateur],Prestation[[#This Row],[Clés dossier et collaborateur]])","v":6},{"$f":"IF(Prestation[[#This Row],[Numéro min de ligne pour la clé]]=Prestation[[#This Row],[Numéro de ligne]],Prestation[[#This Row],[Rappel collaborateur]],\"\")","v":""},{"$f":"_xlfn.TEXTJOIN(\",\",TRUE,IF(Prestation[DossierCode]=Prestation[[#This Row],[DossierCode]],Prestation[Collaborateur unique],\"\"))","v":"0"}]
[null,null,null,null,null,null,null,null,null,null,null,null,null,null,null,null,null,null,null,null,null,null,null,null,null,null,null,null,null,null,null,null,null,null,null,null,null,null,null,null,null,null,null,null,null,null,null,null,null,null,null,null,null,null,null,null,null,null,null,null,null,null,null,null,null,null,null,null,{"$f":"Prestation[[#This Row],[CollaborateurTrigramme]]","v":0},{"$f":"Prestation[[#This Row],[DossierCode]]","v":0},{"$f":"_xlfn.CONCAT(Prestation[[#This Row],[DossierCode]],\"-\",Prestation[[#This Row],[CollaborateurTrigramme]])","v":"-"},{"$f":"ROW(Prestation[[#This Row],[Clés dossier et collaborateur]])","v":65},{"$f":"_xlfn.MINIFS(Prestation[Numéro de ligne],Prestation[Clés dossier et collaborateur],Prestation[[#This Row],[Clés dossier et collaborateur]])","v":6},{"$f":"IF(Prestation[[#This Row],[Numéro min de ligne pour la clé]]=Prestation[[#This Row],[Numéro de ligne]],Prestation[[#This Row],[Rappel collaborateur]],\"\")","v":""},{"$f":"_xlfn.TEXTJOIN(\",\",TRUE,IF(Prestation[DossierCode]=Prestation[[#This Row],[DossierCode]],Prestation[Collaborateur unique],\"\"))","v":"0"}]
[null,null,null,null,null,null,null,null,null,null,null,null,null,null,null,null,null,null,null,null,null,null,null,null,null,null,null,null,null,null,null,null,null,null,null,null,null,null,null,null,null,null,null,null,null,null,null,null,null,null,null,null,null,null,null,null,null,null,null,null,null,null,null,null,null,null,null,null,{"$f":"Prestation[[#This Row],[CollaborateurTrigramme]]","v":0},{"$f":"Prestation[[#This Row],[DossierCode]]","v":0},{"$f":"_xlfn.CONCAT(Prestation[[#This Row],[DossierCode]],\"-\",Prestation[[#This Row],[CollaborateurTrigramme]])","v":"-"},{"$f":"ROW(Prestation[[#This Row],[Clés dossier et collaborateur]])","v":66},{"$f":"_xlfn.MINIFS(Prestation[Numéro de ligne],Prestation[Clés dossier et collaborateur],Prestation[[#This Row],[Clés dossier et collaborateur]])","v":6},{"$f":"IF(Prestation[[#This Row],[Numéro min de ligne pour la clé]]=Prestation[[#This Row],[Numéro de ligne]],Prestation[[#This Row],[Rappel collaborateur]],\"\")","v":""},{"$f":"_xlfn.TEXTJOIN(\",\",TRUE,IF(Prestation[DossierCode]=Prestation[[#This Row],[DossierCode]],Prestation[Collaborateur unique],\"\"))","v":"0"}]
[null,null,null,null,null,null,null,null,null,null,null,null,null,null,null,null,null,null,null,null,null,null,null,null,null,null,null,null,null,null,null,null,null,null,null,null,null,null,null,null,null,null,null,null,null,null,null,null,null,null,null,null,null,null,null,null,null,null,null,null,null,null,null,null,null,null,null,null,{"$f":"Prestation[[#This Row],[CollaborateurTrigramme]]","v":0},{"$f":"Prestation[[#This Row],[DossierCode]]","v":0},{"$f":"_xlfn.CONCAT(Prestation[[#This Row],[DossierCode]],\"-\",Prestation[[#This Row],[CollaborateurTrigramme]])","v":"-"},{"$f":"ROW(Prestation[[#This Row],[Clés dossier et collaborateur]])","v":67},{"$f":"_xlfn.MINIFS(Prestation[Numéro de ligne],Prestation[Clés dossier et collaborateur],Prestation[[#This Row],[Clés dossier et collaborateur]])","v":6},{"$f":"IF(Prestation[[#This Row],[Numéro min de ligne pour la clé]]=Prestation[[#This Row],[Numéro de ligne]],Prestation[[#This Row],[Rappel collaborateur]],\"\")","v":""},{"$f":"_xlfn.TEXTJOIN(\",\",TRUE,IF(Prestation[DossierCode]=Prestation[[#This Row],[DossierCode]],Prestation[Collaborateur unique],\"\"))","v":"0"}]
[null,null,null,null,null,null,null,null,null,null,null,null,null,null,null,null,null,null,null,null,null,null,null,null,null,null,null,null,null,null,null,null,null,null,null,null,null,null,null,null,null,null,null,null,null,null,null,null,null,null,null,null,null,null,null,null,null,null,null,null,null,null,null,null,null,null,null,null,{"$f":"Prestation[[#This Row],[CollaborateurTrigramme]]","v":0},{"$f":"Prestation[[#This Row],[DossierCode]]","v":0},{"$f":"_xlfn.CONCAT(Prestation[[#This Row],[DossierCode]],\"-\",Prestation[[#This Row],[CollaborateurTrigramme]])","v":"-"},{"$f":"ROW(Prestation[[#This Row],[Clés dossier et collaborateur]])","v":68},{"$f":"_xlfn.MINIFS(Prestation[Numéro de ligne],Prestation[Clés dossier et collaborateur],Prestation[[#This Row],[Clés dossier et collaborateur]])","v":6},{"$f":"IF(Prestation[[#This Row],[Numéro min de ligne pour la clé]]=Prestation[[#This Row],[Numéro de ligne]],Prestation[[#This Row],[Rappel collaborateur]],\"\")","v":""},{"$f":"_xlfn.TEXTJOIN(\",\",TRUE,IF(Prestation[DossierCode]=Prestation[[#This Row],[DossierCode]],Prestation[Collaborateur unique],\"\"))","v":"0"}]
[null,null,null,null,null,null,null,null,null,null,null,null,null,null,null,null,null,null,null,null,null,null,null,null,null,null,null,null,null,null,null,null,null,null,null,null,null,null,null,null,null,null,null,null,null,null,null,null,null,null,null,null,null,null,null,null,null,null,null,null,null,null,null,null,null,null,null,null,{"$f":"Prestation[[#This Row],[CollaborateurTrigramme]]","v":0},{"$f":"Prestation[[#This Row],[DossierCode]]","v":0},{"$f":"_xlfn.CONCAT(Prestation[[#This Row],[DossierCode]],\"-\",Prestation[[#This Row],[CollaborateurTrigramme]])","v":"-"},{"$f":"ROW(Prestation[[#This Row],[Clés dossier et collaborateur]])","v":69},{"$f":"_xlfn.MINIFS(Prestation[Numéro de ligne],Prestation[Clés dossier et collaborateur],Prestation[[#This Row],[Clés dossier et collaborateur]])","v":6},{"$f":"IF(Prestation[[#This Row],[Numéro min de ligne pour la clé]]=Prestation[[#This Row],[Numéro de ligne]],Prestation[[#This Row],[Rappel collaborateur]],\"\")","v":""},{"$f":"_xlfn.TEXTJOIN(\",\",TRUE,IF(Prestation[DossierCode]=Prestation[[#This Row],[DossierCode]],Prestation[Collaborateur unique],\"\"))","v":"0"}]
[null,null,null,null,null,null,null,null,null,null,null,null,null,null,null,null,null,null,null,null,null,null,null,null,null,null,null,null,null,null,null,null,null,null,null,null,null,null,null,null,null,null,null,null,null,null,null,null,null,null,null,null,null,null,null,null,null,null,null,null,null,null,null,null,null,null,null,null,{"$f":"Prestation[[#This Row],[CollaborateurTrigramme]]","v":0},{"$f":"Prestation[[#This Row],[DossierCode]]","v":0},{"$f":"_xlfn.CONCAT(Prestation[[#This Row],[DossierCode]],\"-\",Prestation[[#This Row],[CollaborateurTrigramme]])","v":"-"},{"$f":"ROW(Prestation[[#This Row],[Clés dossier et collaborateur]])","v":70},{"$f":"_xlfn.MINIFS(Prestation[Numéro de ligne],Prestation[Clés dossier et collaborateur],Prestation[[#This Row],[Clés dossier et collaborateur]])","v":6},{"$f":"IF(Prestation[[#This Row],[Numéro min de ligne pour la clé]]=Prestation[[#This Row],[Numéro de ligne]],Prestation[[#This Row],[Rappel collaborateur]],\"\")","v":""},{"$f":"_xlfn.TEXTJOIN(\",\",TRUE,IF(Prestation[DossierCode]=Prestation[[#This Row],[DossierCode]],Prestation[Collaborateur unique],\"\"))","v":"0"}]
[null,null,null,null,null,null,null,null,null,null,null,null,null,null,null,null,null,null,null,null,null,null,null,null,null,null,null,null,null,null,null,null,null,null,null,null,null,null,null,null,null,null,null,null,null,null,null,null,null,null,null,null,null,null,null,null,null,null,null,null,null,null,null,null,null,null,null,null,{"$f":"Prestation[[#This Row],[CollaborateurTrigramme]]","v":0},{"$f":"Prestation[[#This Row],[DossierCode]]","v":0},{"$f":"_xlfn.CONCAT(Prestation[[#This Row],[DossierCode]],\"-\",Prestation[[#This Row],[CollaborateurTrigramme]])","v":"-"},{"$f":"ROW(Prestation[[#This Row],[Clés dossier et collaborateur]])","v":71},{"$f":"_xlfn.MINIFS(Prestation[Numéro de ligne],Prestation[Clés dossier et collaborateur],Prestation[[#This Row],[Clés dossier et collaborateur]])","v":6},{"$f":"IF(Prestation[[#This Row],[Numéro min de ligne pour la clé]]=Prestation[[#This Row],[Numéro de ligne]],Prestation[[#This Row],[Rappel collaborateur]],\"\")","v":""},{"$f":"_xlfn.TEXTJOIN(\",\",TRUE,IF(Prestation[DossierCode]=Prestation[[#This Row],[DossierCode]],Prestation[Collaborateur unique],\"\"))","v":"0"}]
[null,null,null,null,null,null,null,null,null,null,null,null,null,null,null,null,null,null,null,null,null,null,null,null,null,null,null,null,null,null,null,null,null,null,null,null,null,null,null,null,null,null,null,null,null,null,null,null,null,null,null,null,null,null,null,null,null,null,null,null,null,null,null,null,null,null,null,null,{"$f":"Prestation[[#This Row],[CollaborateurTrigramme]]","v":0},{"$f":"Prestation[[#This Row],[DossierCode]]","v":0},{"$f":"_xlfn.CONCAT(Prestation[[#This Row],[DossierCode]],\"-\",Prestation[[#This Row],[CollaborateurTrigramme]])","v":"-"},{"$f":"ROW(Prestation[[#This Row],[Clés dossier et collaborateur]])","v":72},{"$f":"_xlfn.MINIFS(Prestation[Numéro de ligne],Prestation[Clés dossier et collaborateur],Prestation[[#This Row],[Clés dossier et collaborateur]])","v":6},{"$f":"IF(Prestation[[#This Row],[Numéro min de ligne pour la clé]]=Prestation[[#This Row],[Numéro de ligne]],Prestation[[#This Row],[Rappel collaborateur]],\"\")","v":""},{"$f":"_xlfn.TEXTJOIN(\",\",TRUE,IF(Prestation[DossierCode]=Prestation[[#This Row],[DossierCode]],Prestation[Collaborateur unique],\"\"))","v":"0"}]
[null,null,null,null,null,null,null,null,null,null,null,null,null,null,null,null,null,null,null,null,null,null,null,null,null,null,null,null,null,null,null,null,null,null,null,null,null,null,null,null,null,null,null,null,null,null,null,null,null,null,null,null,null,null,null,null,null,null,null,null,null,null,null,null,null,null,null,null,{"$f":"Prestation[[#This Row],[CollaborateurTrigramme]]","v":0},{"$f":"Prestation[[#This Row],[DossierCode]]","v":0},{"$f":"_xlfn.CONCAT(Prestation[[#This Row],[DossierCode]],\"-\",Prestation[[#This Row],[CollaborateurTrigramme]])","v":"-"},{"$f":"ROW(Prestation[[#This Row],[Clés dossier et collaborateur]])","v":73},{"$f":"_xlfn.MINIFS(Prestation[Numéro de ligne],Prestation[Clés dossier et collaborateur],Prestation[[#This Row],[Clés dossier et collaborateur]])","v":6},{"$f":"IF(Prestation[[#This Row],[Numéro min de ligne pour la clé]]=Prestation[[#This Row],[Numéro de ligne]],Prestation[[#This Row],[Rappel collaborateur]],\"\")","v":""},{"$f":"_xlfn.TEXTJOIN(\",\",TRUE,IF(Prestation[DossierCode]=Prestation[[#This Row],[DossierCode]],Prestation[Collaborateur unique],\"\"))","v":"0"}]
[null,null,null,null,null,null,null,null,null,null,null,null,null,null,null,null,null,null,null,null,null,null,null,null,null,null,null,null,null,null,null,null,null,null,null,null,null,null,null,null,null,null,null,null,null,null,null,null,null,null,null,null,null,null,null,null,null,null,null,null,null,null,null,null,null,null,null,null,{"$f":"Prestation[[#This Row],[CollaborateurTrigramme]]","v":0},{"$f":"Prestation[[#This Row],[DossierCode]]","v":0},{"$f":"_xlfn.CONCAT(Prestation[[#This Row],[DossierCode]],\"-\",Prestation[[#This Row],[CollaborateurTrigramme]])","v":"-"},{"$f":"ROW(Prestation[[#This Row],[Clés dossier et collaborateur]])","v":74},{"$f":"_xlfn.MINIFS(Prestation[Numéro de ligne],Prestation[Clés dossier et collaborateur],Prestation[[#This Row],[Clés dossier et collaborateur]])","v":6},{"$f":"IF(Prestation[[#This Row],[Numéro min de ligne pour la clé]]=Prestation[[#This Row],[Numéro de ligne]],Prestation[[#This Row],[Rappel collaborateur]],\"\")","v":""},{"$f":"_xlfn.TEXTJOIN(\",\",TRUE,IF(Prestation[DossierCode]=Prestation[[#This Row],[DossierCode]],Prestation[Collaborateur unique],\"\"))","v":"0"}]
[null,null,null,null,null,null,null,null,null,null,null,null,null,null,null,null,null,null,null,null,null,null,null,null,null,null,null,null,null,null,null,null,null,null,null,null,null,null,null,null,null,null,null,null,null,null,null,null,null,null,null,null,null,null,null,null,null,null,null,null,null,null,null,null,null,null,null,null,{"$f":"Prestation[[#This Row],[CollaborateurTrigramme]]","v":0},{"$f":"Prestation[[#This Row],[DossierCode]]","v":0},{"$f":"_xlfn.CONCAT(Prestation[[#This Row],[DossierCode]],\"-\",Prestation[[#This Row],[CollaborateurTrigramme]])","v":"-"},{"$f":"ROW(Prestation[[#This Row],[Clés dossier et collaborateur]])","v":75},{"$f":"_xlfn.MINIFS(Prestation[Numéro de ligne],Prestation[Clés dossier et collaborateur],Prestation[[#This Row],[Clés dossier et collaborateur]])","v":6},{"$f":"IF(Prestation[[#This Row],[Numéro min de ligne pour la clé]]=Prestation[[#This Row],[Numéro de ligne]],Prestation[[#This Row],[Rappel collaborateur]],\"\")","v":""},{"$f":"_xlfn.TEXTJOIN(\",\",TRUE,IF(Prestation[DossierCode]=Prestation[[#This Row],[DossierCode]],Prestation[Collaborateur unique],\"\"))","v":"0"}]
[null,null,null,null,null,null,null,null,null,null,null,null,null,null,null,null,null,null,null,null,null,null,null,null,null,null,null,null,null,null,null,null,null,null,null,null,null,null,null,null,null,null,null,null,null,null,null,null,null,null,null,null,null,null,null,null,null,null,null,null,null,null,null,null,null,null,null,null,{"$f":"Prestation[[#This Row],[CollaborateurTrigramme]]","v":0},{"$f":"Prestation[[#This Row],[DossierCode]]","v":0},{"$f":"_xlfn.CONCAT(Prestation[[#This Row],[DossierCode]],\"-\",Prestation[[#This Row],[CollaborateurTrigramme]])","v":"-"},{"$f":"ROW(Prestation[[#This Row],[Clés dossier et collaborateur]])","v":76},{"$f":"_xlfn.MINIFS(Prestation[Numéro de ligne],Prestation[Clés dossier et collaborateur],Prestation[[#This Row],[Clés dossier et collaborateur]])","v":6},{"$f":"IF(Prestation[[#This Row],[Numéro min de ligne pour la clé]]=Prestation[[#This Row],[Numéro de ligne]],Prestation[[#This Row],[Rappel collaborateur]],\"\")","v":""},{"$f":"_xlfn.TEXTJOIN(\",\",TRUE,IF(Prestation[DossierCode]=Prestation[[#This Row],[DossierCode]],Prestation[Collaborateur unique],\"\"))","v":"0"}]
[null,null,null,null,null,null,null,null,null,null,null,null,null,null,null,null,null,null,null,null,null,null,null,null,null,null,null,null,null,null,null,null,null,null,null,null,null,null,null,null,null,null,null,null,null,null,null,null,null,null,null,null,null,null,null,null,null,null,null,null,null,null,null,null,null,null,null,null,{"$f":"Prestation[[#This Row],[CollaborateurTrigramme]]","v":0},{"$f":"Prestation[[#This Row],[DossierCode]]","v":0},{"$f":"_xlfn.CONCAT(Prestation[[#This Row],[DossierCode]],\"-\",Prestation[[#This Row],[CollaborateurTrigramme]])","v":"-"},{"$f":"ROW(Prestation[[#This Row],[Clés dossier et collaborateur]])","v":77},{"$f":"_xlfn.MINIFS(Prestation[Numéro de ligne],Prestation[Clés dossier et collaborateur],Prestation[[#This Row],[Clés dossier et collaborateur]])","v":6},{"$f":"IF(Prestation[[#This Row],[Numéro min de ligne pour la clé]]=Prestation[[#This Row],[Numéro de ligne]],Prestation[[#This Row],[Rappel collaborateur]],\"\")","v":""},{"$f":"_xlfn.TEXTJOIN(\",\",TRUE,IF(Prestation[DossierCode]=Prestation[[#This Row],[DossierCode]],Prestation[Collaborateur unique],\"\"))","v":"0"}]
[null,null,null,null,null,null,null,null,null,null,null,null,null,null,null,null,null,null,null,null,null,null,null,null,null,null,null,null,null,null,null,null,null,null,null,null,null,null,null,null,null,null,null,null,null,null,null,null,null,null,null,null,null,null,null,null,null,null,null,null,null,null,null,null,null,null,null,null,{"$f":"Prestation[[#This Row],[CollaborateurTrigramme]]","v":0},{"$f":"Prestation[[#This Row],[DossierCode]]","v":0},{"$f":"_xlfn.CONCAT(Prestation[[#This Row],[DossierCode]],\"-\",Prestation[[#This Row],[CollaborateurTrigramme]])","v":"-"},{"$f":"ROW(Prestation[[#This Row],[Clés dossier et collaborateur]])","v":78},{"$f":"_xlfn.MINIFS(Prestation[Numéro de ligne],Prestation[Clés dossier et collaborateur],Prestation[[#This Row],[Clés dossier et collaborateur]])","v":6},{"$f":"IF(Prestation[[#This Row],[Numéro min de ligne pour la clé]]=Prestation[[#This Row],[Numéro de ligne]],Prestation[[#This Row],[Rappel collaborateur]],\"\")","v":""},{"$f":"_xlfn.TEXTJOIN(\",\",TRUE,IF(Prestation[DossierCode]=Prestation[[#This Row],[DossierCode]],Prestation[Collaborateur unique],\"\"))","v":"0"}]
[null,null,null,null,null,null,null,null,null,null,null,null,null,null,null,null,null,null,null,null,null,null,null,null,null,null,null,null,null,null,null,null,null,null,null,null,null,null,null,null,null,null,null,null,null,null,null,null,null,null,null,null,null,null,null,null,null,null,null,null,null,null,null,null,null,null,null,null,{"$f":"Prestation[[#This Row],[CollaborateurTrigramme]]","v":0},{"$f":"Prestation[[#This Row],[DossierCode]]","v":0},{"$f":"_xlfn.CONCAT(Prestation[[#This Row],[DossierCode]],\"-\",Prestation[[#This Row],[CollaborateurTrigramme]])","v":"-"},{"$f":"ROW(Prestation[[#This Row],[Clés dossier et collaborateur]])","v":79},{"$f":"_xlfn.MINIFS(Prestation[Numéro de ligne],Prestation[Clés dossier et collaborateur],Prestation[[#This Row],[Clés dossier et collaborateur]])","v":6},{"$f":"IF(Prestation[[#This Row],[Numéro min de ligne pour la clé]]=Prestation[[#This Row],[Numéro de ligne]],Prestation[[#This Row],[Rappel collaborateur]],\"\")","v":""},{"$f":"_xlfn.TEXTJOIN(\",\",TRUE,IF(Prestation[DossierCode]=Prestation[[#This Row],[DossierCode]],Prestation[Collaborateur unique],\"\"))","v":"0"}]
[null,null,null,null,null,null,null,null,null,null,null,null,null,null,null,null,null,null,null,null,null,null,null,null,null,null,null,null,null,null,null,null,null,null,null,null,null,null,null,null,null,null,null,null,null,null,null,null,null,null,null,null,null,null,null,null,null,null,null,null,null,null,null,null,null,null,null,null,{"$f":"Prestation[[#This Row],[CollaborateurTrigramme]]","v":0},{"$f":"Prestation[[#This Row],[DossierCode]]","v":0},{"$f":"_xlfn.CONCAT(Prestation[[#This Row],[DossierCode]],\"-\",Prestation[[#This Row],[CollaborateurTrigramme]])","v":"-"},{"$f":"ROW(Prestation[[#This Row],[Clés dossier et collaborateur]])","v":80},{"$f":"_xlfn.MINIFS(Prestation[Numéro de ligne],Prestation[Clés dossier et collaborateur],Prestation[[#This Row],[Clés dossier et collaborateur]])","v":6},{"$f":"IF(Prestation[[#This Row],[Numéro min de ligne pour la clé]]=Prestation[[#This Row],[Numéro de ligne]],Prestation[[#This Row],[Rappel collaborateur]],\"\")","v":""},{"$f":"_xlfn.TEXTJOIN(\",\",TRUE,IF(Prestation[DossierCode]=Prestation[[#This Row],[DossierCode]],Prestation[Collaborateur unique],\"\"))","v":"0"}]
[null,null,null,null,null,null,null,null,null,null,null,null,null,null,null,null,null,null,null,null,null,null,null,null,null,null,null,null,null,null,null,null,null,null,null,null,null,null,null,null,null,null,null,null,null,null,null,null,null,null,null,null,null,null,null,null,null,null,null,null,null,null,null,null,null,null,null,null,{"$f":"Prestation[[#This Row],[CollaborateurTrigramme]]","v":0},{"$f":"Prestation[[#This Row],[DossierCode]]","v":0},{"$f":"_xlfn.CONCAT(Prestation[[#This Row],[DossierCode]],\"-\",Prestation[[#This Row],[CollaborateurTrigramme]])","v":"-"},{"$f":"ROW(Prestation[[#This Row],[Clés dossier et collaborateur]])","v":81},{"$f":"_xlfn.MINIFS(Prestation[Numéro de ligne],Prestation[Clés dossier et collaborateur],Prestation[[#This Row],[Clés dossier et collaborateur]])","v":6},{"$f":"IF(Prestation[[#This Row],[Numéro min de ligne pour la clé]]=Prestation[[#This Row],[Numéro de ligne]],Prestation[[#This Row],[Rappel collaborateur]],\"\")","v":""},{"$f":"_xlfn.TEXTJOIN(\",\",TRUE,IF(Prestation[DossierCode]=Prestation[[#This Row],[DossierCode]],Prestation[Collaborateur unique],\"\"))","v":"0"}]
[null,null,null,null,null,null,null,null,null,null,null,null,null,null,null,null,null,null,null,null,null,null,null,null,null,null,null,null,null,null,null,null,null,null,null,null,null,null,null,null,null,null,null,null,null,null,null,null,null,null,null,null,null,null,null,null,null,null,null,null,null,null,null,null,null,null,null,null,{"$f":"Prestation[[#This Row],[CollaborateurTrigramme]]","v":0},{"$f":"Prestation[[#This Row],[DossierCode]]","v":0},{"$f":"_xlfn.CONCAT(Prestation[[#This Row],[DossierCode]],\"-\",Prestation[[#This Row],[CollaborateurTrigramme]])","v":"-"},{"$f":"ROW(Prestation[[#This Row],[Clés dossier et collaborateur]])","v":82},{"$f":"_xlfn.MINIFS(Prestation[Numéro de ligne],Prestation[Clés dossier et collaborateur],Prestation[[#This Row],[Clés dossier et collaborateur]])","v":6},{"$f":"IF(Prestation[[#This Row],[Numéro min de ligne pour la clé]]=Prestation[[#This Row],[Numéro de ligne]],Prestation[[#This Row],[Rappel collaborateur]],\"\")","v":""},{"$f":"_xlfn.TEXTJOIN(\",\",TRUE,IF(Prestation[DossierCode]=Prestation[[#This Row],[DossierCode]],Prestation[Collaborateur unique],\"\"))","v":"0"}]
[null,null,null,null,null,null,null,null,null,null,null,null,null,null,null,null,null,null,null,null,null,null,null,null,null,null,null,null,null,null,null,null,null,null,null,null,null,null,null,null,null,null,null,null,null,null,null,null,null,null,null,null,null,null,null,null,null,null,null,null,null,null,null,null,null,null,null,null,{"$f":"Prestation[[#This Row],[CollaborateurTrigramme]]","v":0},{"$f":"Prestation[[#This Row],[DossierCode]]","v":0},{"$f":"_xlfn.CONCAT(Prestation[[#This Row],[DossierCode]],\"-\",Prestation[[#This Row],[CollaborateurTrigramme]])","v":"-"},{"$f":"ROW(Prestation[[#This Row],[Clés dossier et collaborateur]])","v":83},{"$f":"_xlfn.MINIFS(Prestation[Numéro de ligne],Prestation[Clés dossier et collaborateur],Prestation[[#This Row],[Clés dossier et collaborateur]])","v":6},{"$f":"IF(Prestation[[#This Row],[Numéro min de ligne pour la clé]]=Prestation[[#This Row],[Numéro de ligne]],Prestation[[#This Row],[Rappel collaborateur]],\"\")","v":""},{"$f":"_xlfn.TEXTJOIN(\",\",TRUE,IF(Prestation[DossierCode]=Prestation[[#This Row],[DossierCode]],Prestation[Collaborateur unique],\"\"))","v":"0"}]
[null,null,null,null,null,null,null,null,null,null,null,null,null,null,null,null,null,null,null,null,null,null,null,null,null,null,null,null,null,null,null,null,null,null,null,null,null,null,null,null,null,null,null,null,null,null,null,null,null,null,null,null,null,null,null,null,null,null,null,null,null,null,null,null,null,null,null,null,{"$f":"Prestation[[#This Row],[CollaborateurTrigramme]]","v":0},{"$f":"Prestation[[#This Row],[DossierCode]]","v":0},{"$f":"_xlfn.CONCAT(Prestation[[#This Row],[DossierCode]],\"-\",Prestation[[#This Row],[CollaborateurTrigramme]])","v":"-"},{"$f":"ROW(Prestation[[#This Row],[Clés dossier et collaborateur]])","v":84},{"$f":"_xlfn.MINIFS(Prestation[Numéro de ligne],Prestation[Clés dossier et collaborateur],Prestation[[#This Row],[Clés dossier et collaborateur]])","v":6},{"$f":"IF(Prestation[[#This Row],[Numéro min de ligne pour la clé]]=Prestation[[#This Row],[Numéro de ligne]],Prestation[[#This Row],[Rappel collaborateur]],\"\")","v":""},{"$f":"_xlfn.TEXTJOIN(\",\",TRUE,IF(Prestation[DossierCode]=Prestation[[#This Row],[DossierCode]],Prestation[Collaborateur unique],\"\"))","v":"0"}]
[null,null,null,null,null,null,null,null,null,null,null,null,null,null,null,null,null,null,null,null,null,null,null,null,null,null,null,null,null,null,null,null,null,null,null,null,null,null,null,null,null,null,null,null,null,null,null,null,null,null,null,null,null,null,null,null,null,null,null,null,null,null,null,null,null,null,null,null,{"$f":"Prestation[[#This Row],[CollaborateurTrigramme]]","v":0},{"$f":"Prestation[[#This Row],[DossierCode]]","v":0},{"$f":"_xlfn.CONCAT(Prestation[[#This Row],[DossierCode]],\"-\",Prestation[[#This Row],[CollaborateurTrigramme]])","v":"-"},{"$f":"ROW(Prestation[[#This Row],[Clés dossier et collaborateur]])","v":85},{"$f":"_xlfn.MINIFS(Prestation[Numéro de ligne],Prestation[Clés dossier et collaborateur],Prestation[[#This Row],[Clés dossier et collaborateur]])","v":6},{"$f":"IF(Prestation[[#This Row],[Numéro min de ligne pour la clé]]=Prestation[[#This Row],[Numéro de ligne]],Prestation[[#This Row],[Rappel collaborateur]],\"\")","v":""},{"$f":"_xlfn.TEXTJOIN(\",\",TRUE,IF(Prestation[DossierCode]=Prestation[[#This Row],[DossierCode]],Prestation[Collaborateur unique],\"\"))","v":"0"}]
[null,null,null,null,null,null,null,null,null,null,null,null,null,null,null,null,null,null,null,null,null,null,null,null,null,null,null,null,null,null,null,null,null,null,null,null,null,null,null,null,null,null,null,null,null,null,null,null,null,null,null,null,null,null,null,null,null,null,null,null,null,null,null,null,null,null,null,null,{"$f":"Prestation[[#This Row],[CollaborateurTrigramme]]","v":0},{"$f":"Prestation[[#This Row],[DossierCode]]","v":0},{"$f":"_xlfn.CONCAT(Prestation[[#This Row],[DossierCode]],\"-\",Prestation[[#This Row],[CollaborateurTrigramme]])","v":"-"},{"$f":"ROW(Prestation[[#This Row],[Clés dossier et collaborateur]])","v":86},{"$f":"_xlfn.MINIFS(Prestation[Numéro de ligne],Prestation[Clés dossier et collaborateur],Prestation[[#This Row],[Clés dossier et collaborateur]])","v":6},{"$f":"IF(Prestation[[#This Row],[Numéro min de ligne pour la clé]]=Prestation[[#This Row],[Numéro de ligne]],Prestation[[#This Row],[Rappel collaborateur]],\"\")","v":""},{"$f":"_xlfn.TEXTJOIN(\",\",TRUE,IF(Prestation[DossierCode]=Prestation[[#This Row],[DossierCode]],Prestation[Collaborateur unique],\"\"))","v":"0"}]
[null,null,null,null,null,null,null,null,null,null,null,null,null,null,null,null,null,null,null,null,null,null,null,null,null,null,null,null,null,null,null,null,null,null,null,null,null,null,null,null,null,null,null,null,null,null,null,null,null,null,null,null,null,null,null,null,null,null,null,null,null,null,null,null,null,null,null,null,{"$f":"Prestation[[#This Row],[CollaborateurTrigramme]]","v":0},{"$f":"Prestation[[#This Row],[DossierCode]]","v":0},{"$f":"_xlfn.CONCAT(Prestation[[#This Row],[DossierCode]],\"-\",Prestation[[#This Row],[CollaborateurTrigramme]])","v":"-"},{"$f":"ROW(Prestation[[#This Row],[Clés dossier et collaborateur]])","v":87},{"$f":"_xlfn.MINIFS(Prestation[Numéro de ligne],Prestation[Clés dossier et collaborateur],Prestation[[#This Row],[Clés dossier et collaborateur]])","v":6},{"$f":"IF(Prestation[[#This Row],[Numéro min de ligne pour la clé]]=Prestation[[#This Row],[Numéro de ligne]],Prestation[[#This Row],[Rappel collaborateur]],\"\")","v":""},{"$f":"_xlfn.TEXTJOIN(\",\",TRUE,IF(Prestation[DossierCode]=Prestation[[#This Row],[DossierCode]],Prestation[Collaborateur unique],\"\"))","v":"0"}]
[null,null,null,null,null,null,null,null,null,null,null,null,null,null,null,null,null,null,null,null,null,null,null,null,null,null,null,null,null,null,null,null,null,null,null,null,null,null,null,null,null,null,null,null,null,null,null,null,null,null,null,null,null,null,null,null,null,null,null,null,null,null,null,null,null,null,null,null,{"$f":"Prestation[[#This Row],[CollaborateurTrigramme]]","v":0},{"$f":"Prestation[[#This Row],[DossierCode]]","v":0},{"$f":"_xlfn.CONCAT(Prestation[[#This Row],[DossierCode]],\"-\",Prestation[[#This Row],[CollaborateurTrigramme]])","v":"-"},{"$f":"ROW(Prestation[[#This Row],[Clés dossier et collaborateur]])","v":88},{"$f":"_xlfn.MINIFS(Prestation[Numéro de ligne],Prestation[Clés dossier et collaborateur],Prestation[[#This Row],[Clés dossier et collaborateur]])","v":6},{"$f":"IF(Prestation[[#This Row],[Numéro min de ligne pour la clé]]=Prestation[[#This Row],[Numéro de ligne]],Prestation[[#This Row],[Rappel collaborateur]],\"\")","v":""},{"$f":"_xlfn.TEXTJOIN(\",\",TRUE,IF(Prestation[DossierCode]=Prestation[[#This Row],[DossierCode]],Prestation[Collaborateur unique],\"\"))","v":"0"}]
[null,null,null,null,null,null,null,null,null,null,null,null,null,null,null,null,null,null,null,null,null,null,null,null,null,null,null,null,null,null,null,null,null,null,null,null,null,null,null,null,null,null,null,null,null,null,null,null,null,null,null,null,null,null,null,null,null,null,null,null,null,null,null,null,null,null,null,null,{"$f":"Prestation[[#This Row],[CollaborateurTrigramme]]","v":0},{"$f":"Prestation[[#This Row],[DossierCode]]","v":0},{"$f":"_xlfn.CONCAT(Prestation[[#This Row],[DossierCode]],\"-\",Prestation[[#This Row],[CollaborateurTrigramme]])","v":"-"},{"$f":"ROW(Prestation[[#This Row],[Clés dossier et collaborateur]])","v":89},{"$f":"_xlfn.MINIFS(Prestation[Numéro de ligne],Prestation[Clés dossier et collaborateur],Prestation[[#This Row],[Clés dossier et collaborateur]])","v":6},{"$f":"IF(Prestation[[#This Row],[Numéro min de ligne pour la clé]]=Prestation[[#This Row],[Numéro de ligne]],Prestation[[#This Row],[Rappel collaborateur]],\"\")","v":""},{"$f":"_xlfn.TEXTJOIN(\",\",TRUE,IF(Prestation[DossierCode]=Prestation[[#This Row],[DossierCode]],Prestation[Collaborateur unique],\"\"))","v":"0"}]
[null,null,null,null,null,null,null,null,null,null,null,null,null,null,null,null,null,null,null,null,null,null,null,null,null,null,null,null,null,null,null,null,null,null,null,null,null,null,null,null,null,null,null,null,null,null,null,null,null,null,null,null,null,null,null,null,null,null,null,null,null,null,null,null,null,null,null,null,{"$f":"Prestation[[#This Row],[CollaborateurTrigramme]]","v":0},{"$f":"Prestation[[#This Row],[DossierCode]]","v":0},{"$f":"_xlfn.CONCAT(Prestation[[#This Row],[DossierCode]],\"-\",Prestation[[#This Row],[CollaborateurTrigramme]])","v":"-"},{"$f":"ROW(Prestation[[#This Row],[Clés dossier et collaborateur]])","v":90},{"$f":"_xlfn.MINIFS(Prestation[Numéro de ligne],Prestation[Clés dossier et collaborateur],Prestation[[#This Row],[Clés dossier et collaborateur]])","v":6},{"$f":"IF(Prestation[[#This Row],[Numéro min de ligne pour la clé]]=Prestation[[#This Row],[Numéro de ligne]],Prestation[[#This Row],[Rappel collaborateur]],\"\")","v":""},{"$f":"_xlfn.TEXTJOIN(\",\",TRUE,IF(Prestation[DossierCode]=Prestation[[#This Row],[DossierCode]],Prestation[Collaborateur unique],\"\"))","v":"0"}]
[null,null,null,null,null,null,null,null,null,null,null,null,null,null,null,null,null,null,null,null,null,null,null,null,null,null,null,null,null,null,null,null,null,null,null,null,null,null,null,null,null,null,null,null,null,null,null,null,null,null,null,null,null,null,null,null,null,null,null,null,null,null,null,null,null,null,null,null,{"$f":"Prestation[[#This Row],[CollaborateurTrigramme]]","v":0},{"$f":"Prestation[[#This Row],[DossierCode]]","v":0},{"$f":"_xlfn.CONCAT(Prestation[[#This Row],[DossierCode]],\"-\",Prestation[[#This Row],[CollaborateurTrigramme]])","v":"-"},{"$f":"ROW(Prestation[[#This Row],[Clés dossier et collaborateur]])","v":91},{"$f":"_xlfn.MINIFS(Prestation[Numéro de ligne],Prestation[Clés dossier et collaborateur],Prestation[[#This Row],[Clés dossier et collaborateur]])","v":6},{"$f":"IF(Prestation[[#This Row],[Numéro min de ligne pour la clé]]=Prestation[[#This Row],[Numéro de ligne]],Prestation[[#This Row],[Rappel collaborateur]],\"\")","v":""},{"$f":"_xlfn.TEXTJOIN(\",\",TRUE,IF(Prestation[DossierCode]=Prestation[[#This Row],[DossierCode]],Prestation[Collaborateur unique],\"\"))","v":"0"}]
[null,null,null,null,null,null,null,null,null,null,null,null,null,null,null,null,null,null,null,null,null,null,null,null,null,null,null,null,null,null,null,null,null,null,null,null,null,null,null,null,null,null,null,null,null,null,null,null,null,null,null,null,null,null,null,null,null,null,null,null,null,null,null,null,null,null,null,null,{"$f":"Prestation[[#This Row],[CollaborateurTrigramme]]","v":0},{"$f":"Prestation[[#This Row],[DossierCode]]","v":0},{"$f":"_xlfn.CONCAT(Prestation[[#This Row],[DossierCode]],\"-\",Prestation[[#This Row],[CollaborateurTrigramme]])","v":"-"},{"$f":"ROW(Prestation[[#This Row],[Clés dossier et collaborateur]])","v":92},{"$f":"_xlfn.MINIFS(Prestation[Numéro de ligne],Prestation[Clés dossier et collaborateur],Prestation[[#This Row],[Clés dossier et collaborateur]])","v":6},{"$f":"IF(Prestation[[#This Row],[Numéro min de ligne pour la clé]]=Prestation[[#This Row],[Numéro de ligne]],Prestation[[#This Row],[Rappel collaborateur]],\"\")","v":""},{"$f":"_xlfn.TEXTJOIN(\",\",TRUE,IF(Prestation[DossierCode]=Prestation[[#This Row],[DossierCode]],Prestation[Collaborateur unique],\"\"))","v":"0"}]
[null,null,null,null,null,null,null,null,null,null,null,null,null,null,null,null,null,null,null,null,null,null,null,null,null,null,null,null,null,null,null,null,null,null,null,null,null,null,null,null,null,null,null,null,null,null,null,null,null,null,null,null,null,null,null,null,null,null,null,null,null,null,null,null,null,null,null,null,{"$f":"Prestation[[#This Row],[CollaborateurTrigramme]]","v":0},{"$f":"Prestation[[#This Row],[DossierCode]]","v":0},{"$f":"_xlfn.CONCAT(Prestation[[#This Row],[DossierCode]],\"-\",Prestation[[#This Row],[CollaborateurTrigramme]])","v":"-"},{"$f":"ROW(Prestation[[#This Row],[Clés dossier et collaborateur]])","v":93},{"$f":"_xlfn.MINIFS(Prestation[Numéro de ligne],Prestation[Clés dossier et collaborateur],Prestation[[#This Row],[Clés dossier et collaborateur]])","v":6},{"$f":"IF(Prestation[[#This Row],[Numéro min de ligne pour la clé]]=Prestation[[#This Row],[Numéro de ligne]],Prestation[[#This Row],[Rappel collaborateur]],\"\")","v":""},{"$f":"_xlfn.TEXTJOIN(\",\",TRUE,IF(Prestation[DossierCode]=Prestation[[#This Row],[DossierCode]],Prestation[Collaborateur unique],\"\"))","v":"0"}]
[null,null,null,null,null,null,null,null,null,null,null,null,null,null,null,null,null,null,null,null,null,null,null,null,null,null,null,null,null,null,null,null,null,null,null,null,null,null,null,null,null,null,null,null,null,null,null,null,null,null,null,null,null,null,null,null,null,null,null,null,null,null,null,null,null,null,null,null,{"$f":"Prestation[[#This Row],[CollaborateurTrigramme]]","v":0},{"$f":"Prestation[[#This Row],[DossierCode]]","v":0},{"$f":"_xlfn.CONCAT(Prestation[[#This Row],[DossierCode]],\"-\",Prestation[[#This Row],[CollaborateurTrigramme]])","v":"-"},{"$f":"ROW(Prestation[[#This Row],[Clés dossier et collaborateur]])","v":94},{"$f":"_xlfn.MINIFS(Prestation[Numéro de ligne],Prestation[Clés dossier et collaborateur],Prestation[[#This Row],[Clés dossier et collaborateur]])","v":6},{"$f":"IF(Prestation[[#This Row],[Numéro min de ligne pour la clé]]=Prestation[[#This Row],[Numéro de ligne]],Prestation[[#This Row],[Rappel collaborateur]],\"\")","v":""},{"$f":"_xlfn.TEXTJOIN(\",\",TRUE,IF(Prestation[DossierCode]=Prestation[[#This Row],[DossierCode]],Prestation[Collaborateur unique],\"\"))","v":"0"}]
[null,null,null,null,null,null,null,null,null,null,null,null,null,null,null,null,null,null,null,null,null,null,null,null,null,null,null,null,null,null,null,null,null,null,null,null,null,null,null,null,null,null,null,null,null,null,null,null,null,null,null,null,null,null,null,null,null,null,null,null,null,null,null,null,null,null,null,null,{"$f":"Prestation[[#This Row],[CollaborateurTrigramme]]","v":0},{"$f":"Prestation[[#This Row],[DossierCode]]","v":0},{"$f":"_xlfn.CONCAT(Prestation[[#This Row],[DossierCode]],\"-\",Prestation[[#This Row],[CollaborateurTrigramme]])","v":"-"},{"$f":"ROW(Prestation[[#This Row],[Clés dossier et collaborateur]])","v":95},{"$f":"_xlfn.MINIFS(Prestation[Numéro de ligne],Prestation[Clés dossier et collaborateur],Prestation[[#This Row],[Clés dossier et collaborateur]])","v":6},{"$f":"IF(Prestation[[#This Row],[Numéro min de ligne pour la clé]]=Prestation[[#This Row],[Numéro de ligne]],Prestation[[#This Row],[Rappel collaborateur]],\"\")","v":""},{"$f":"_xlfn.TEXTJOIN(\",\",TRUE,IF(Prestation[DossierCode]=Prestation[[#This Row],[DossierCode]],Prestation[Collaborateur unique],\"\"))","v":"0"}]
[null,null,null,null,null,null,null,null,null,null,null,null,null,null,null,null,null,null,null,null,null,null,null,null,null,null,null,null,null,null,null,null,null,null,null,null,null,null,null,null,null,null,null,null,null,null,null,null,null,null,null,null,null,null,null,null,null,null,null,null,null,null,null,null,null,null,null,null,{"$f":"Prestation[[#This Row],[CollaborateurTrigramme]]","v":0},{"$f":"Prestation[[#This Row],[DossierCode]]","v":0},{"$f":"_xlfn.CONCAT(Prestation[[#This Row],[DossierCode]],\"-\",Prestation[[#This Row],[CollaborateurTrigramme]])","v":"-"},{"$f":"ROW(Prestation[[#This Row],[Clés dossier et collaborateur]])","v":96},{"$f":"_xlfn.MINIFS(Prestation[Numéro de ligne],Prestation[Clés dossier et collaborateur],Prestation[[#This Row],[Clés dossier et collaborateur]])","v":6},{"$f":"IF(Prestation[[#This Row],[Numéro min de ligne pour la clé]]=Prestation[[#This Row],[Numéro de ligne]],Prestation[[#This Row],[Rappel collaborateur]],\"\")","v":""},{"$f":"_xlfn.TEXTJOIN(\",\",TRUE,IF(Prestation[DossierCode]=Prestation[[#This Row],[DossierCode]],Prestation[Collaborateur unique],\"\"))","v":"0"}]
[null,null,null,null,null,null,null,null,null,null,null,null,null,null,null,null,null,null,null,null,null,null,null,null,null,null,null,null,null,null,null,null,null,null,null,null,null,null,null,null,null,null,null,null,null,null,null,null,null,null,null,null,null,null,null,null,null,null,null,null,null,null,null,null,null,null,null,null,{"$f":"Prestation[[#This Row],[CollaborateurTrigramme]]","v":0},{"$f":"Prestation[[#This Row],[DossierCode]]","v":0},{"$f":"_xlfn.CONCAT(Prestation[[#This Row],[DossierCode]],\"-\",Prestation[[#This Row],[CollaborateurTrigramme]])","v":"-"},{"$f":"ROW(Prestation[[#This Row],[Clés dossier et collaborateur]])","v":97},{"$f":"_xlfn.MINIFS(Prestation[Numéro de ligne],Prestation[Clés dossier et collaborateur],Prestation[[#This Row],[Clés dossier et collaborateur]])","v":6},{"$f":"IF(Prestation[[#This Row],[Numéro min de ligne pour la clé]]=Prestation[[#This Row],[Numéro de ligne]],Prestation[[#This Row],[Rappel collaborateur]],\"\")","v":""},{"$f":"_xlfn.TEXTJOIN(\",\",TRUE,IF(Prestation[DossierCode]=Prestation[[#This Row],[DossierCode]],Prestation[Collaborateur unique],\"\"))","v":"0"}]
[null,null,null,null,null,null,null,null,null,null,null,null,null,null,null,null,null,null,null,null,null,null,null,null,null,null,null,null,null,null,null,null,null,null,null,null,null,null,null,null,null,null,null,null,null,null,null,null,null,null,null,null,null,null,null,null,null,null,null,null,null,null,null,null,null,null,null,null,{"$f":"Prestation[[#This Row],[CollaborateurTrigramme]]","v":0},{"$f":"Prestation[[#This Row],[DossierCode]]","v":0},{"$f":"_xlfn.CONCAT(Prestation[[#This Row],[DossierCode]],\"-\",Prestation[[#This Row],[CollaborateurTrigramme]])","v":"-"},{"$f":"ROW(Prestation[[#This Row],[Clés dossier et collaborateur]])","v":98},{"$f":"_xlfn.MINIFS(Prestation[Numéro de ligne],Prestation[Clés dossier et collaborateur],Prestation[[#This Row],[Clés dossier et collaborateur]])","v":6},{"$f":"IF(Prestation[[#This Row],[Numéro min de ligne pour la clé]]=Prestation[[#This Row],[Numéro de ligne]],Prestation[[#This Row],[Rappel collaborateur]],\"\")","v":""},{"$f":"_xlfn.TEXTJOIN(\",\",TRUE,IF(Prestation[DossierCode]=Prestation[[#This Row],[DossierCode]],Prestation[Collaborateur unique],\"\"))","v":"0"}]
[null,null,null,null,null,null,null,null,null,null,null,null,null,null,null,null,null,null,null,null,null,null,null,null,null,null,null,null,null,null,null,null,null,null,null,null,null,null,null,null,null,null,null,null,null,null,null,null,null,null,null,null,null,null,null,null,null,null,null,null,null,null,null,null,null,null,null,null,{"$f":"Prestation[[#This Row],[CollaborateurTrigramme]]","v":0},{"$f":"Prestation[[#This Row],[DossierCode]]","v":0},{"$f":"_xlfn.CONCAT(Prestation[[#This Row],[DossierCode]],\"-\",Prestation[[#This Row],[CollaborateurTrigramme]])","v":"-"},{"$f":"ROW(Prestation[[#This Row],[Clés dossier et collaborateur]])","v":99},{"$f":"_xlfn.MINIFS(Prestation[Numéro de ligne],Prestation[Clés dossier et collaborateur],Prestation[[#This Row],[Clés dossier et collaborateur]])","v":6},{"$f":"IF(Prestation[[#This Row],[Numéro min de ligne pour la clé]]=Prestation[[#This Row],[Numéro de ligne]],Prestation[[#This Row],[Rappel collaborateur]],\"\")","v":""},{"$f":"_xlfn.TEXTJOIN(\",\",TRUE,IF(Prestation[DossierCode]=Prestation[[#This Row],[DossierCode]],Prestation[Collaborateur unique],\"\"))","v":"0"}]
[null,null,null,null,null,null,null,null,null,null,null,null,null,null,null,null,null,null,null,null,null,null,null,null,null,null,null,null,null,null,null,null,null,null,null,null,null,null,null,null,null,null,null,null,null,null,null,null,null,null,null,null,null,null,null,null,null,null,null,null,null,null,null,null,null,null,null,null,{"$f":"Prestation[[#This Row],[CollaborateurTrigramme]]","v":0},{"$f":"Prestation[[#This Row],[DossierCode]]","v":0},{"$f":"_xlfn.CONCAT(Prestation[[#This Row],[DossierCode]],\"-\",Prestation[[#This Row],[CollaborateurTrigramme]])","v":"-"},{"$f":"ROW(Prestation[[#This Row],[Clés dossier et collaborateur]])","v":100},{"$f":"_xlfn.MINIFS(Prestation[Numéro de ligne],Prestation[Clés dossier et collaborateur],Prestation[[#This Row],[Clés dossier et collaborateur]])","v":6},{"$f":"IF(Prestation[[#This Row],[Numéro min de ligne pour la clé]]=Prestation[[#This Row],[Numéro de ligne]],Prestation[[#This Row],[Rappel collaborateur]],\"\")","v":""},{"$f":"_xlfn.TEXTJOIN(\",\",TRUE,IF(Prestation[DossierCode]=Prestation[[#This Row],[DossierCode]],Prestation[Collaborateur unique],\"\"))","v":"0"}]
[null,null,null,null,null,null,null,null,null,null,null,null,null,null,null,null,null,null,null,null,null,null,null,null,null,null,null,null,null,null,null,null,null,null,null,null,null,null,null,null,null,null,null,null,null,null,null,null,null,null,null,null,null,null,null,null,null,null,null,null,null,null,null,null,null,null,null,null,{"$f":"Prestation[[#This Row],[CollaborateurTrigramme]]","v":0},{"$f":"Prestation[[#This Row],[DossierCode]]","v":0},{"$f":"_xlfn.CONCAT(Prestation[[#This Row],[DossierCode]],\"-\",Prestation[[#This Row],[CollaborateurTrigramme]])","v":"-"},{"$f":"ROW(Prestation[[#This Row],[Clés dossier et collaborateur]])","v":101},{"$f":"_xlfn.MINIFS(Prestation[Numéro de ligne],Prestation[Clés dossier et collaborateur],Prestation[[#This Row],[Clés dossier et collaborateur]])","v":6},{"$f":"IF(Prestation[[#This Row],[Numéro min de ligne pour la clé]]=Prestation[[#This Row],[Numéro de ligne]],Prestation[[#This Row],[Rappel collaborateur]],\"\")","v":""},{"$f":"_xlfn.TEXTJOIN(\",\",TRUE,IF(Prestation[DossierCode]=Prestation[[#This Row],[DossierCode]],Prestation[Collaborateur unique],\"\"))","v":"0"}]
[null,null,null,null,null,null,null,null,null,null,null,null,null,null,null,null,null,null,null,null,null,null,null,null,null,null,null,null,null,null,null,null,null,null,null,null,null,null,null,null,null,null,null,null,null,null,null,null,null,null,null,null,null,null,null,null,null,null,null,null,null,null,null,null,null,null,null,null,{"$f":"Prestation[[#This Row],[CollaborateurTrigramme]]","v":0},{"$f":"Prestation[[#This Row],[DossierCode]]","v":0},{"$f":"_xlfn.CONCAT(Prestation[[#This Row],[DossierCode]],\"-\",Prestation[[#This Row],[CollaborateurTrigramme]])","v":"-"},{"$f":"ROW(Prestation[[#This Row],[Clés dossier et collaborateur]])","v":102},{"$f":"_xlfn.MINIFS(Prestation[Numéro de ligne],Prestation[Clés dossier et collaborateur],Prestation[[#This Row],[Clés dossier et collaborateur]])","v":6},{"$f":"IF(Prestation[[#This Row],[Numéro min de ligne pour la clé]]=Prestation[[#This Row],[Numéro de ligne]],Prestation[[#This Row],[Rappel collaborateur]],\"\")","v":""},{"$f":"_xlfn.TEXTJOIN(\",\",TRUE,IF(Prestation[DossierCode]=Prestation[[#This Row],[DossierCode]],Prestation[Collaborateur unique],\"\"))","v":"0"}]
[null,null,null,null,null,null,null,null,null,null,null,null,null,null,null,null,null,null,null,null,null,null,null,null,null,null,null,null,null,null,null,null,null,null,null,null,null,null,null,null,null,null,null,null,null,null,null,null,null,null,null,null,null,null,null,null,null,null,null,null,null,null,null,null,null,null,null,null,{"$f":"Prestation[[#This Row],[CollaborateurTrigramme]]","v":0},{"$f":"Prestation[[#This Row],[DossierCode]]","v":0},{"$f":"_xlfn.CONCAT(Prestation[[#This Row],[DossierCode]],\"-\",Prestation[[#This Row],[CollaborateurTrigramme]])","v":"-"},{"$f":"ROW(Prestation[[#This Row],[Clés dossier et collaborateur]])","v":103},{"$f":"_xlfn.MINIFS(Prestation[Numéro de ligne],Prestation[Clés dossier et collaborateur],Prestation[[#This Row],[Clés dossier et collaborateur]])","v":6},{"$f":"IF(Prestation[[#This Row],[Numéro min de ligne pour la clé]]=Prestation[[#This Row],[Numéro de ligne]],Prestation[[#This Row],[Rappel collaborateur]],\"\")","v":""},{"$f":"_xlfn.TEXTJOIN(\",\",TRUE,IF(Prestation[DossierCode]=Prestation[[#This Row],[DossierCode]],Prestation[Collaborateur unique],\"\"))","v":"0"}]
[null,null,null,null,null,null,null,null,null,null,null,null,null,null,null,null,null,null,null,null,null,null,null,null,null,null,null,null,null,null,null,null,null,null,null,null,null,null,null,null,null,null,null,null,null,null,null,null,null,null,null,null,null,null,null,null,null,null,null,null,null,null,null,null,null,null,null,null,{"$f":"Prestation[[#This Row],[CollaborateurTrigramme]]","v":0},{"$f":"Prestation[[#This Row],[DossierCode]]","v":0},{"$f":"_xlfn.CONCAT(Prestation[[#This Row],[DossierCode]],\"-\",Prestation[[#This Row],[CollaborateurTrigramme]])","v":"-"},{"$f":"ROW(Prestation[[#This Row],[Clés dossier et collaborateur]])","v":104},{"$f":"_xlfn.MINIFS(Prestation[Numéro de ligne],Prestation[Clés dossier et collaborateur],Prestation[[#This Row],[Clés dossier et collaborateur]])","v":6},{"$f":"IF(Prestation[[#This Row],[Numéro min de ligne pour la clé]]=Prestation[[#This Row],[Numéro de ligne]],Prestation[[#This Row],[Rappel collaborateur]],\"\")","v":""},{"$f":"_xlfn.TEXTJOIN(\",\",TRUE,IF(Prestation[DossierCode]=Prestation[[#This Row],[DossierCode]],Prestation[Collaborateur unique],\"\"))","v":"0"}]
[null,null,null,null,null,null,null,null,null,null,null,null,null,null,null,null,null,null,null,null,null,null,null,null,null,null,null,null,null,null,null,null,null,null,null,null,null,null,null,null,null,null,null,null,null,null,null,null,null,null,null,null,null,null,null,null,null,null,null,null,null,null,null,null,null,null,null,null,{"$f":"Prestation[[#This Row],[CollaborateurTrigramme]]","v":0},{"$f":"Prestation[[#This Row],[DossierCode]]","v":0},{"$f":"_xlfn.CONCAT(Prestation[[#This Row],[DossierCode]],\"-\",Prestation[[#This Row],[CollaborateurTrigramme]])","v":"-"},{"$f":"ROW(Prestation[[#This Row],[Clés dossier et collaborateur]])","v":105},{"$f":"_xlfn.MINIFS(Prestation[Numéro de ligne],Prestation[Clés dossier et collaborateur],Prestation[[#This Row],[Clés dossier et collaborateur]])","v":6},{"$f":"IF(Prestation[[#This Row],[Numéro min de ligne pour la clé]]=Prestation[[#This Row],[Numéro de ligne]],Prestation[[#This Row],[Rappel collaborateur]],\"\")","v":""},{"$f":"_xlfn.TEXTJOIN(\",\",TRUE,IF(Prestation[DossierCode]=Prestation[[#This Row],[DossierCode]],Prestation[Collaborateur unique],\"\"))","v":"0"}]
[null,null,null,null,null,null,null,null,null,null,null,null,null,null,null,null,null,null,null,null,null,null,null,null,null,null,null,null,null,null,null,null,null,null,null,null,null,null,null,null,null,null,null,null,null,null,null,null,null,null,null,null,null,null,null,null,null,null,null,null,null,null,null,null,null,null,null,null,{"$f":"Prestation[[#This Row],[CollaborateurTrigramme]]","v":0},{"$f":"Prestation[[#This Row],[DossierCode]]","v":0},{"$f":"_xlfn.CONCAT(Prestation[[#This Row],[DossierCode]],\"-\",Prestation[[#This Row],[CollaborateurTrigramme]])","v":"-"},{"$f":"ROW(Prestation[[#This Row],[Clés dossier et collaborateur]])","v":106},{"$f":"_xlfn.MINIFS(Prestation[Numéro de ligne],Prestation[Clés dossier et collaborateur],Prestation[[#This Row],[Clés dossier et collaborateur]])","v":6},{"$f":"IF(Prestation[[#This Row],[Numéro min de ligne pour la clé]]=Prestation[[#This Row],[Numéro de ligne]],Prestation[[#This Row],[Rappel collaborateur]],\"\")","v":""},{"$f":"_xlfn.TEXTJOIN(\",\",TRUE,IF(Prestation[DossierCode]=Prestation[[#This Row],[DossierCode]],Prestation[Collaborateur unique],\"\"))","v":"0"}]
[null,null,null,null,null,null,null,null,null,null,null,null,null,null,null,null,null,null,null,null,null,null,null,null,null,null,null,null,null,null,null,null,null,null,null,null,null,null,null,null,null,null,null,null,null,null,null,null,null,null,null,null,null,null,null,null,null,null,null,null,null,null,null,null,null,null,null,null,{"$f":"Prestation[[#This Row],[CollaborateurTrigramme]]","v":0},{"$f":"Prestation[[#This Row],[DossierCode]]","v":0},{"$f":"_xlfn.CONCAT(Prestation[[#This Row],[DossierCode]],\"-\",Prestation[[#This Row],[CollaborateurTrigramme]])","v":"-"},{"$f":"ROW(Prestation[[#This Row],[Clés dossier et collaborateur]])","v":107},{"$f":"_xlfn.MINIFS(Prestation[Numéro de ligne],Prestation[Clés dossier et collaborateur],Prestation[[#This Row],[Clés dossier et collaborateur]])","v":6},{"$f":"IF(Prestation[[#This Row],[Numéro min de ligne pour la clé]]=Prestation[[#This Row],[Numéro de ligne]],Prestation[[#This Row],[Rappel collaborateur]],\"\")","v":""},{"$f":"_xlfn.TEXTJOIN(\",\",TRUE,IF(Prestation[DossierCode]=Prestation[[#This Row],[DossierCode]],Prestation[Collaborateur unique],\"\"))","v":"0"}]
[null,null,null,null,null,null,null,null,null,null,null,null,null,null,null,null,null,null,null,null,null,null,null,null,null,null,null,null,null,null,null,null,null,null,null,null,null,null,null,null,null,null,null,null,null,null,null,null,null,null,null,null,null,null,null,null,null,null,null,null,null,null,null,null,null,null,null,null,{"$f":"Prestation[[#This Row],[CollaborateurTrigramme]]","v":0},{"$f":"Prestation[[#This Row],[DossierCode]]","v":0},{"$f":"_xlfn.CONCAT(Prestation[[#This Row],[DossierCode]],\"-\",Prestation[[#This Row],[CollaborateurTrigramme]])","v":"-"},{"$f":"ROW(Prestation[[#This Row],[Clés dossier et collaborateur]])","v":108},{"$f":"_xlfn.MINIFS(Prestation[Numéro de ligne],Prestation[Clés dossier et collaborateur],Prestation[[#This Row],[Clés dossier et collaborateur]])","v":6},{"$f":"IF(Prestation[[#This Row],[Numéro min de ligne pour la clé]]=Prestation[[#This Row],[Numéro de ligne]],Prestation[[#This Row],[Rappel collaborateur]],\"\")","v":""},{"$f":"_xlfn.TEXTJOIN(\",\",TRUE,IF(Prestation[DossierCode]=Prestation[[#This Row],[DossierCode]],Prestation[Collaborateur unique],\"\"))","v":"0"}]
[null,null,null,null,null,null,null,null,null,null,null,null,null,null,null,null,null,null,null,null,null,null,null,null,null,null,null,null,null,null,null,null,null,null,null,null,null,null,null,null,null,null,null,null,null,null,null,null,null,null,null,null,null,null,null,null,null,null,null,null,null,null,null,null,null,null,null,null,{"$f":"Prestation[[#This Row],[CollaborateurTrigramme]]","v":0},{"$f":"Prestation[[#This Row],[DossierCode]]","v":0},{"$f":"_xlfn.CONCAT(Prestation[[#This Row],[DossierCode]],\"-\",Prestation[[#This Row],[CollaborateurTrigramme]])","v":"-"},{"$f":"ROW(Prestation[[#This Row],[Clés dossier et collaborateur]])","v":109},{"$f":"_xlfn.MINIFS(Prestation[Numéro de ligne],Prestation[Clés dossier et collaborateur],Prestation[[#This Row],[Clés dossier et collaborateur]])","v":6},{"$f":"IF(Prestation[[#This Row],[Numéro min de ligne pour la clé]]=Prestation[[#This Row],[Numéro de ligne]],Prestation[[#This Row],[Rappel collaborateur]],\"\")","v":""},{"$f":"_xlfn.TEXTJOIN(\",\",TRUE,IF(Prestation[DossierCode]=Prestation[[#This Row],[DossierCode]],Prestation[Collaborateur unique],\"\"))","v":"0"}]
[null,null,null,null,null,null,null,null,null,null,null,null,null,null,null,null,null,null,null,null,null,null,null,null,null,null,null,null,null,null,null,null,null,null,null,null,null,null,null,null,null,null,null,null,null,null,null,null,null,null,null,null,null,null,null,null,null,null,null,null,null,null,null,null,null,null,null,null,{"$f":"Prestation[[#This Row],[CollaborateurTrigramme]]","v":0},{"$f":"Prestation[[#This Row],[DossierCode]]","v":0},{"$f":"_xlfn.CONCAT(Prestation[[#This Row],[DossierCode]],\"-\",Prestation[[#This Row],[CollaborateurTrigramme]])","v":"-"},{"$f":"ROW(Prestation[[#This Row],[Clés dossier et collaborateur]])","v":110},{"$f":"_xlfn.MINIFS(Prestation[Numéro de ligne],Prestation[Clés dossier et collaborateur],Prestation[[#This Row],[Clés dossier et collaborateur]])","v":6},{"$f":"IF(Prestation[[#This Row],[Numéro min de ligne pour la clé]]=Prestation[[#This Row],[Numéro de ligne]],Prestation[[#This Row],[Rappel collaborateur]],\"\")","v":""},{"$f":"_xlfn.TEXTJOIN(\",\",TRUE,IF(Prestation[DossierCode]=Prestation[[#This Row],[DossierCode]],Prestation[Collaborateur unique],\"\"))","v":"0"}]
[null,null,null,null,null,null,null,null,null,null,null,null,null,null,null,null,null,null,null,null,null,null,null,null,null,null,null,null,null,null,null,null,null,null,null,null,null,null,null,null,null,null,null,null,null,null,null,null,null,null,null,null,null,null,null,null,null,null,null,null,null,null,null,null,null,null,null,null,{"$f":"Prestation[[#This Row],[CollaborateurTrigramme]]","v":0},{"$f":"Prestation[[#This Row],[DossierCode]]","v":0},{"$f":"_xlfn.CONCAT(Prestation[[#This Row],[DossierCode]],\"-\",Prestation[[#This Row],[CollaborateurTrigramme]])","v":"-"},{"$f":"ROW(Prestation[[#This Row],[Clés dossier et collaborateur]])","v":111},{"$f":"_xlfn.MINIFS(Prestation[Numéro de ligne],Prestation[Clés dossier et collaborateur],Prestation[[#This Row],[Clés dossier et collaborateur]])","v":6},{"$f":"IF(Prestation[[#This Row],[Numéro min de ligne pour la clé]]=Prestation[[#This Row],[Numéro de ligne]],Prestation[[#This Row],[Rappel collaborateur]],\"\")","v":""},{"$f":"_xlfn.TEXTJOIN(\",\",TRUE,IF(Prestation[DossierCode]=Prestation[[#This Row],[DossierCode]],Prestation[Collaborateur unique],\"\"))","v":"0"}]
[null,null,null,null,null,null,null,null,null,null,null,null,null,null,null,null,null,null,null,null,null,null,null,null,null,null,null,null,null,null,null,null,null,null,null,null,null,null,null,null,null,null,null,null,null,null,null,null,null,null,null,null,null,null,null,null,null,null,null,null,null,null,null,null,null,null,null,null,{"$f":"Prestation[[#This Row],[CollaborateurTrigramme]]","v":0},{"$f":"Prestation[[#This Row],[DossierCode]]","v":0},{"$f":"_xlfn.CONCAT(Prestation[[#This Row],[DossierCode]],\"-\",Prestation[[#This Row],[CollaborateurTrigramme]])","v":"-"},{"$f":"ROW(Prestation[[#This Row],[Clés dossier et collaborateur]])","v":112},{"$f":"_xlfn.MINIFS(Prestation[Numéro de ligne],Prestation[Clés dossier et collaborateur],Prestation[[#This Row],[Clés dossier et collaborateur]])","v":6},{"$f":"IF(Prestation[[#This Row],[Numéro min de ligne pour la clé]]=Prestation[[#This Row],[Numéro de ligne]],Prestation[[#This Row],[Rappel collaborateur]],\"\")","v":""},{"$f":"_xlfn.TEXTJOIN(\",\",TRUE,IF(Prestation[DossierCode]=Prestation[[#This Row],[DossierCode]],Prestation[Collaborateur unique],\"\"))","v":"0"}]
[null,null,null,null,null,null,null,null,null,null,null,null,null,null,null,null,null,null,null,null,null,null,null,null,null,null,null,null,null,null,null,null,null,null,null,null,null,null,null,null,null,null,null,null,null,null,null,null,null,null,null,null,null,null,null,null,null,null,null,null,null,null,null,null,null,null,null,null,{"$f":"Prestation[[#This Row],[CollaborateurTrigramme]]","v":0},{"$f":"Prestation[[#This Row],[DossierCode]]","v":0},{"$f":"_xlfn.CONCAT(Prestation[[#This Row],[DossierCode]],\"-\",Prestation[[#This Row],[CollaborateurTrigramme]])","v":"-"},{"$f":"ROW(Prestation[[#This Row],[Clés dossier et collaborateur]])","v":113},{"$f":"_xlfn.MINIFS(Prestation[Numéro de ligne],Prestation[Clés dossier et collaborateur],Prestation[[#This Row],[Clés dossier et collaborateur]])","v":6},{"$f":"IF(Prestation[[#This Row],[Numéro min de ligne pour la clé]]=Prestation[[#This Row],[Numéro de ligne]],Prestation[[#This Row],[Rappel collaborateur]],\"\")","v":""},{"$f":"_xlfn.TEXTJOIN(\",\",TRUE,IF(Prestation[DossierCode]=Prestation[[#This Row],[DossierCode]],Prestation[Collaborateur unique],\"\"))","v":"0"}]
[null,null,null,null,null,null,null,null,null,null,null,null,null,null,null,null,null,null,null,null,null,null,null,null,null,null,null,null,null,null,null,null,null,null,null,null,null,null,null,null,null,null,null,null,null,null,null,null,null,null,null,null,null,null,null,null,null,null,null,null,null,null,null,null,null,null,null,null,{"$f":"Prestation[[#This Row],[CollaborateurTrigramme]]","v":0},{"$f":"Prestation[[#This Row],[DossierCode]]","v":0},{"$f":"_xlfn.CONCAT(Prestation[[#This Row],[DossierCode]],\"-\",Prestation[[#This Row],[CollaborateurTrigramme]])","v":"-"},{"$f":"ROW(Prestation[[#This Row],[Clés dossier et collaborateur]])","v":114},{"$f":"_xlfn.MINIFS(Prestation[Numéro de ligne],Prestation[Clés dossier et collaborateur],Prestation[[#This Row],[Clés dossier et collaborateur]])","v":6},{"$f":"IF(Prestation[[#This Row],[Numéro min de ligne pour la clé]]=Prestation[[#This Row],[Numéro de ligne]],Prestation[[#This Row],[Rappel collaborateur]],\"\")","v":""},{"$f":"_xlfn.TEXTJOIN(\",\",TRUE,IF(Prestation[DossierCode]=Prestation[[#This Row],[DossierCode]],Prestation[Collaborateur unique],\"\"))","v":"0"}]
[null,null,null,null,null,null,null,null,null,null,null,null,null,null,null,null,null,null,null,null,null,null,null,null,null,null,null,null,null,null,null,null,null,null,null,null,null,null,null,null,null,null,null,null,null,null,null,null,null,null,null,null,null,null,null,null,null,null,null,null,null,null,null,null,null,null,null,null,{"$f":"Prestation[[#This Row],[CollaborateurTrigramme]]","v":0},{"$f":"Prestation[[#This Row],[DossierCode]]","v":0},{"$f":"_xlfn.CONCAT(Prestation[[#This Row],[DossierCode]],\"-\",Prestation[[#This Row],[CollaborateurTrigramme]])","v":"-"},{"$f":"ROW(Prestation[[#This Row],[Clés dossier et collaborateur]])","v":115},{"$f":"_xlfn.MINIFS(Prestation[Numéro de ligne],Prestation[Clés dossier et collaborateur],Prestation[[#This Row],[Clés dossier et collaborateur]])","v":6},{"$f":"IF(Prestation[[#This Row],[Numéro min de ligne pour la clé]]=Prestation[[#This Row],[Numéro de ligne]],Prestation[[#This Row],[Rappel collaborateur]],\"\")","v":""},{"$f":"_xlfn.TEXTJOIN(\",\",TRUE,IF(Prestation[DossierCode]=Prestation[[#This Row],[DossierCode]],Prestation[Collaborateur unique],\"\"))","v":"0"}]
[null,null,null,null,null,null,null,null,null,null,null,null,null,null,null,null,null,null,null,null,null,null,null,null,null,null,null,null,null,null,null,null,null,null,null,null,null,null,null,null,null,null,null,null,null,null,null,null,null,null,null,null,null,null,null,null,null,null,null,null,null,null,null,null,null,null,null,null,{"$f":"Prestation[[#This Row],[CollaborateurTrigramme]]","v":0},{"$f":"Prestation[[#This Row],[DossierCode]]","v":0},{"$f":"_xlfn.CONCAT(Prestation[[#This Row],[DossierCode]],\"-\",Prestation[[#This Row],[CollaborateurTrigramme]])","v":"-"},{"$f":"ROW(Prestation[[#This Row],[Clés dossier et collaborateur]])","v":116},{"$f":"_xlfn.MINIFS(Prestation[Numéro de ligne],Prestation[Clés dossier et collaborateur],Prestation[[#This Row],[Clés dossier et collaborateur]])","v":6},{"$f":"IF(Prestation[[#This Row],[Numéro min de ligne pour la clé]]=Prestation[[#This Row],[Numéro de ligne]],Prestation[[#This Row],[Rappel collaborateur]],\"\")","v":""},{"$f":"_xlfn.TEXTJOIN(\",\",TRUE,IF(Prestation[DossierCode]=Prestation[[#This Row],[DossierCode]],Prestation[Collaborateur unique],\"\"))","v":"0"}]
[null,null,null,null,null,null,null,null,null,null,null,null,null,null,null,null,null,null,null,null,null,null,null,null,null,null,null,null,null,null,null,null,null,null,null,null,null,null,null,null,null,null,null,null,null,null,null,null,null,null,null,null,null,null,null,null,null,null,null,null,null,null,null,null,null,null,null,null,{"$f":"Prestation[[#This Row],[CollaborateurTrigramme]]","v":0},{"$f":"Prestation[[#This Row],[DossierCode]]","v":0},{"$f":"_xlfn.CONCAT(Prestation[[#This Row],[DossierCode]],\"-\",Prestation[[#This Row],[CollaborateurTrigramme]])","v":"-"},{"$f":"ROW(Prestation[[#This Row],[Clés dossier et collaborateur]])","v":117},{"$f":"_xlfn.MINIFS(Prestation[Numéro de ligne],Prestation[Clés dossier et collaborateur],Prestation[[#This Row],[Clés dossier et collaborateur]])","v":6},{"$f":"IF(Prestation[[#This Row],[Numéro min de ligne pour la clé]]=Prestation[[#This Row],[Numéro de ligne]],Prestation[[#This Row],[Rappel collaborateur]],\"\")","v":""},{"$f":"_xlfn.TEXTJOIN(\",\",TRUE,IF(Prestation[DossierCode]=Prestation[[#This Row],[DossierCode]],Prestation[Collaborateur unique],\"\"))","v":"0"}]
[null,null,null,null,null,null,null,null,null,null,null,null,null,null,null,null,null,null,null,null,null,null,null,null,null,null,null,null,null,null,null,null,null,null,null,null,null,null,null,null,null,null,null,null,null,null,null,null,null,null,null,null,null,null,null,null,null,null,null,null,null,null,null,null,null,null,null,null,{"$f":"Prestation[[#This Row],[CollaborateurTrigramme]]","v":0},{"$f":"Prestation[[#This Row],[DossierCode]]","v":0},{"$f":"_xlfn.CONCAT(Prestation[[#This Row],[DossierCode]],\"-\",Prestation[[#This Row],[CollaborateurTrigramme]])","v":"-"},{"$f":"ROW(Prestation[[#This Row],[Clés dossier et collaborateur]])","v":118},{"$f":"_xlfn.MINIFS(Prestation[Numéro de ligne],Prestation[Clés dossier et collaborateur],Prestation[[#This Row],[Clés dossier et collaborateur]])","v":6},{"$f":"IF(Prestation[[#This Row],[Numéro min de ligne pour la clé]]=Prestation[[#This Row],[Numéro de ligne]],Prestation[[#This Row],[Rappel collaborateur]],\"\")","v":""},{"$f":"_xlfn.TEXTJOIN(\",\",TRUE,IF(Prestation[DossierCode]=Prestation[[#This Row],[DossierCode]],Prestation[Collaborateur unique],\"\"))","v":"0"}]
[null,null,null,null,null,null,null,null,null,null,null,null,null,null,null,null,null,null,null,null,null,null,null,null,null,null,null,null,null,null,null,null,null,null,null,null,null,null,null,null,null,null,null,null,null,null,null,null,null,null,null,null,null,null,null,null,null,null,null,null,null,null,null,null,null,null,null,null,{"$f":"Prestation[[#This Row],[CollaborateurTrigramme]]","v":0},{"$f":"Prestation[[#This Row],[DossierCode]]","v":0},{"$f":"_xlfn.CONCAT(Prestation[[#This Row],[DossierCode]],\"-\",Prestation[[#This Row],[CollaborateurTrigramme]])","v":"-"},{"$f":"ROW(Prestation[[#This Row],[Clés dossier et collaborateur]])","v":119},{"$f":"_xlfn.MINIFS(Prestation[Numéro de ligne],Prestation[Clés dossier et collaborateur],Prestation[[#This Row],[Clés dossier et collaborateur]])","v":6},{"$f":"IF(Prestation[[#This Row],[Numéro min de ligne pour la clé]]=Prestation[[#This Row],[Numéro de ligne]],Prestation[[#This Row],[Rappel collaborateur]],\"\")","v":""},{"$f":"_xlfn.TEXTJOIN(\",\",TRUE,IF(Prestation[DossierCode]=Prestation[[#This Row],[DossierCode]],Prestation[Collaborateur unique],\"\"))","v":"0"}]
[null,null,null,null,null,null,null,null,null,null,null,null,null,null,null,null,null,null,null,null,null,null,null,null,null,null,null,null,null,null,null,null,null,null,null,null,null,null,null,null,null,null,null,null,null,null,null,null,null,null,null,null,null,null,null,null,null,null,null,null,null,null,null,null,null,null,null,null,{"$f":"Prestation[[#This Row],[CollaborateurTrigramme]]","v":0},{"$f":"Prestation[[#This Row],[DossierCode]]","v":0},{"$f":"_xlfn.CONCAT(Prestation[[#This Row],[DossierCode]],\"-\",Prestation[[#This Row],[CollaborateurTrigramme]])","v":"-"},{"$f":"ROW(Prestation[[#This Row],[Clés dossier et collaborateur]])","v":120},{"$f":"_xlfn.MINIFS(Prestation[Numéro de ligne],Prestation[Clés dossier et collaborateur],Prestation[[#This Row],[Clés dossier et collaborateur]])","v":6},{"$f":"IF(Prestation[[#This Row],[Numéro min de ligne pour la clé]]=Prestation[[#This Row],[Numéro de ligne]],Prestation[[#This Row],[Rappel collaborateur]],\"\")","v":""},{"$f":"_xlfn.TEXTJOIN(\",\",TRUE,IF(Prestation[DossierCode]=Prestation[[#This Row],[DossierCode]],Prestation[Collaborateur unique],\"\"))","v":"0"}]
[null,null,null,null,null,null,null,null,null,null,null,null,null,null,null,null,null,null,null,null,null,null,null,null,null,null,null,null,null,null,null,null,null,null,null,null,null,null,null,null,null,null,null,null,null,null,null,null,null,null,null,null,null,null,null,null,null,null,null,null,null,null,null,null,null,null,null,null,{"$f":"Prestation[[#This Row],[CollaborateurTrigramme]]","v":0},{"$f":"Prestation[[#This Row],[DossierCode]]","v":0},{"$f":"_xlfn.CONCAT(Prestation[[#This Row],[DossierCode]],\"-\",Prestation[[#This Row],[CollaborateurTrigramme]])","v":"-"},{"$f":"ROW(Prestation[[#This Row],[Clés dossier et collaborateur]])","v":121},{"$f":"_xlfn.MINIFS(Prestation[Numéro de ligne],Prestation[Clés dossier et collaborateur],Prestation[[#This Row],[Clés dossier et collaborateur]])","v":6},{"$f":"IF(Prestation[[#This Row],[Numéro min de ligne pour la clé]]=Prestation[[#This Row],[Numéro de ligne]],Prestation[[#This Row],[Rappel collaborateur]],\"\")","v":""},{"$f":"_xlfn.TEXTJOIN(\",\",TRUE,IF(Prestation[DossierCode]=Prestation[[#This Row],[DossierCode]],Prestation[Collaborateur unique],\"\"))","v":"0"}]
[null,null,null,null,null,null,null,null,null,null,null,null,null,null,null,null,null,null,null,null,null,null,null,null,null,null,null,null,null,null,null,null,null,null,null,null,null,null,null,null,null,null,null,null,null,null,null,null,null,null,null,null,null,null,null,null,null,null,null,null,null,null,null,null,null,null,null,null,{"$f":"Prestation[[#This Row],[CollaborateurTrigramme]]","v":0},{"$f":"Prestation[[#This Row],[DossierCode]]","v":0},{"$f":"_xlfn.CONCAT(Prestation[[#This Row],[DossierCode]],\"-\",Prestation[[#This Row],[CollaborateurTrigramme]])","v":"-"},{"$f":"ROW(Prestation[[#This Row],[Clés dossier et collaborateur]])","v":122},{"$f":"_xlfn.MINIFS(Prestation[Numéro de ligne],Prestation[Clés dossier et collaborateur],Prestation[[#This Row],[Clés dossier et collaborateur]])","v":6},{"$f":"IF(Prestation[[#This Row],[Numéro min de ligne pour la clé]]=Prestation[[#This Row],[Numéro de ligne]],Prestation[[#This Row],[Rappel collaborateur]],\"\")","v":""},{"$f":"_xlfn.TEXTJOIN(\",\",TRUE,IF(Prestation[DossierCode]=Prestation[[#This Row],[DossierCode]],Prestation[Collaborateur unique],\"\"))","v":"0"}]
[null,null,null,null,null,null,null,null,null,null,null,null,null,null,null,null,null,null,null,null,null,null,null,null,null,null,null,null,null,null,null,null,null,null,null,null,null,null,null,null,null,null,null,null,null,null,null,null,null,null,null,null,null,null,null,null,null,null,null,null,null,null,null,null,null,null,null,null,{"$f":"Prestation[[#This Row],[CollaborateurTrigramme]]","v":0},{"$f":"Prestation[[#This Row],[DossierCode]]","v":0},{"$f":"_xlfn.CONCAT(Prestation[[#This Row],[DossierCode]],\"-\",Prestation[[#This Row],[CollaborateurTrigramme]])","v":"-"},{"$f":"ROW(Prestation[[#This Row],[Clés dossier et collaborateur]])","v":123},{"$f":"_xlfn.MINIFS(Prestation[Numéro de ligne],Prestation[Clés dossier et collaborateur],Prestation[[#This Row],[Clés dossier et collaborateur]])","v":6},{"$f":"IF(Prestation[[#This Row],[Numéro min de ligne pour la clé]]=Prestation[[#This Row],[Numéro de ligne]],Prestation[[#This Row],[Rappel collaborateur]],\"\")","v":""},{"$f":"_xlfn.TEXTJOIN(\",\",TRUE,IF(Prestation[DossierCode]=Prestation[[#This Row],[DossierCode]],Prestation[Collaborateur unique],\"\"))","v":"0"}]
[null,null,null,null,null,null,null,null,null,null,null,null,null,null,null,null,null,null,null,null,null,null,null,null,null,null,null,null,null,null,null,null,null,null,null,null,null,null,null,null,null,null,null,null,null,null,null,null,null,null,null,null,null,null,null,null,null,null,null,null,null,null,null,null,null,null,null,null,{"$f":"Prestation[[#This Row],[CollaborateurTrigramme]]","v":0},{"$f":"Prestation[[#This Row],[DossierCode]]","v":0},{"$f":"_xlfn.CONCAT(Prestation[[#This Row],[DossierCode]],\"-\",Prestation[[#This Row],[CollaborateurTrigramme]])","v":"-"},{"$f":"ROW(Prestation[[#This Row],[Clés dossier et collaborateur]])","v":124},{"$f":"_xlfn.MINIFS(Prestation[Numéro de ligne],Prestation[Clés dossier et collaborateur],Prestation[[#This Row],[Clés dossier et collaborateur]])","v":6},{"$f":"IF(Prestation[[#This Row],[Numéro min de ligne pour la clé]]=Prestation[[#This Row],[Numéro de ligne]],Prestation[[#This Row],[Rappel collaborateur]],\"\")","v":""},{"$f":"_xlfn.TEXTJOIN(\",\",TRUE,IF(Prestation[DossierCode]=Prestation[[#This Row],[DossierCode]],Prestation[Collaborateur unique],\"\"))","v":"0"}]
[null,null,null,null,null,null,null,null,null,null,null,null,null,null,null,null,null,null,null,null,null,null,null,null,null,null,null,null,null,null,null,null,null,null,null,null,null,null,null,null,null,null,null,null,null,null,null,null,null,null,null,null,null,null,null,null,null,null,null,null,null,null,null,null,null,null,null,null,{"$f":"Prestation[[#This Row],[CollaborateurTrigramme]]","v":0},{"$f":"Prestation[[#This Row],[DossierCode]]","v":0},{"$f":"_xlfn.CONCAT(Prestation[[#This Row],[DossierCode]],\"-\",Prestation[[#This Row],[CollaborateurTrigramme]])","v":"-"},{"$f":"ROW(Prestation[[#This Row],[Clés dossier et collaborateur]])","v":125},{"$f":"_xlfn.MINIFS(Prestation[Numéro de ligne],Prestation[Clés dossier et collaborateur],Prestation[[#This Row],[Clés dossier et collaborateur]])","v":6},{"$f":"IF(Prestation[[#This Row],[Numéro min de ligne pour la clé]]=Prestation[[#This Row],[Numéro de ligne]],Prestation[[#This Row],[Rappel collaborateur]],\"\")","v":""},{"$f":"_xlfn.TEXTJOIN(\",\",TRUE,IF(Prestation[DossierCode]=Prestation[[#This Row],[DossierCode]],Prestation[Collaborateur unique],\"\"))","v":"0"}]
[null,null,null,null,null,null,null,null,null,null,null,null,null,null,null,null,null,null,null,null,null,null,null,null,null,null,null,null,null,null,null,null,null,null,null,null,null,null,null,null,null,null,null,null,null,null,null,null,null,null,null,null,null,null,null,null,null,null,null,null,null,null,null,null,null,null,null,null,{"$f":"Prestation[[#This Row],[CollaborateurTrigramme]]","v":0},{"$f":"Prestation[[#This Row],[DossierCode]]","v":0},{"$f":"_xlfn.CONCAT(Prestation[[#This Row],[DossierCode]],\"-\",Prestation[[#This Row],[CollaborateurTrigramme]])","v":"-"},{"$f":"ROW(Prestation[[#This Row],[Clés dossier et collaborateur]])","v":126},{"$f":"_xlfn.MINIFS(Prestation[Numéro de ligne],Prestation[Clés dossier et collaborateur],Prestation[[#This Row],[Clés dossier et collaborateur]])","v":6},{"$f":"IF(Prestation[[#This Row],[Numéro min de ligne pour la clé]]=Prestation[[#This Row],[Numéro de ligne]],Prestation[[#This Row],[Rappel collaborateur]],\"\")","v":""},{"$f":"_xlfn.TEXTJOIN(\",\",TRUE,IF(Prestation[DossierCode]=Prestation[[#This Row],[DossierCode]],Prestation[Collaborateur unique],\"\"))","v":"0"}]
[null,null,null,null,null,null,null,null,null,null,null,null,null,null,null,null,null,null,null,null,null,null,null,null,null,null,null,null,null,null,null,null,null,null,null,null,null,null,null,null,null,null,null,null,null,null,null,null,null,null,null,null,null,null,null,null,null,null,null,null,null,null,null,null,null,null,null,null,{"$f":"Prestation[[#This Row],[CollaborateurTrigramme]]","v":0},{"$f":"Prestation[[#This Row],[DossierCode]]","v":0},{"$f":"_xlfn.CONCAT(Prestation[[#This Row],[DossierCode]],\"-\",Prestation[[#This Row],[CollaborateurTrigramme]])","v":"-"},{"$f":"ROW(Prestation[[#This Row],[Clés dossier et collaborateur]])","v":127},{"$f":"_xlfn.MINIFS(Prestation[Numéro de ligne],Prestation[Clés dossier et collaborateur],Prestation[[#This Row],[Clés dossier et collaborateur]])","v":6},{"$f":"IF(Prestation[[#This Row],[Numéro min de ligne pour la clé]]=Prestation[[#This Row],[Numéro de ligne]],Prestation[[#This Row],[Rappel collaborateur]],\"\")","v":""},{"$f":"_xlfn.TEXTJOIN(\",\",TRUE,IF(Prestation[DossierCode]=Prestation[[#This Row],[DossierCode]],Prestation[Collaborateur unique],\"\"))","v":"0"}]
[null,null,null,null,null,null,null,null,null,null,null,null,null,null,null,null,null,null,null,null,null,null,null,null,null,null,null,null,null,null,null,null,null,null,null,null,null,null,null,null,null,null,null,null,null,null,null,null,null,null,null,null,null,null,null,null,null,null,null,null,null,null,null,null,null,null,null,null,{"$f":"Prestation[[#This Row],[CollaborateurTrigramme]]","v":0},{"$f":"Prestation[[#This Row],[DossierCode]]","v":0},{"$f":"_xlfn.CONCAT(Prestation[[#This Row],[DossierCode]],\"-\",Prestation[[#This Row],[CollaborateurTrigramme]])","v":"-"},{"$f":"ROW(Prestation[[#This Row],[Clés dossier et collaborateur]])","v":128},{"$f":"_xlfn.MINIFS(Prestation[Numéro de ligne],Prestation[Clés dossier et collaborateur],Prestation[[#This Row],[Clés dossier et collaborateur]])","v":6},{"$f":"IF(Prestation[[#This Row],[Numéro min de ligne pour la clé]]=Prestation[[#This Row],[Numéro de ligne]],Prestation[[#This Row],[Rappel collaborateur]],\"\")","v":""},{"$f":"_xlfn.TEXTJOIN(\",\",TRUE,IF(Prestation[DossierCode]=Prestation[[#This Row],[DossierCode]],Prestation[Collaborateur unique],\"\"))","v":"0"}]
[null,null,null,null,null,null,null,null,null,null,null,null,null,null,null,null,null,null,null,null,null,null,null,null,null,null,null,null,null,null,null,null,null,null,null,null,null,null,null,null,null,null,null,null,null,null,null,null,null,null,null,null,null,null,null,null,null,null,null,null,null,null,null,null,null,null,null,null,{"$f":"Prestation[[#This Row],[CollaborateurTrigramme]]","v":0},{"$f":"Prestation[[#This Row],[DossierCode]]","v":0},{"$f":"_xlfn.CONCAT(Prestation[[#This Row],[DossierCode]],\"-\",Prestation[[#This Row],[CollaborateurTrigramme]])","v":"-"},{"$f":"ROW(Prestation[[#This Row],[Clés dossier et collaborateur]])","v":129},{"$f":"_xlfn.MINIFS(Prestation[Numéro de ligne],Prestation[Clés dossier et collaborateur],Prestation[[#This Row],[Clés dossier et collaborateur]])","v":6},{"$f":"IF(Prestation[[#This Row],[Numéro min de ligne pour la clé]]=Prestation[[#This Row],[Numéro de ligne]],Prestation[[#This Row],[Rappel collaborateur]],\"\")","v":""},{"$f":"_xlfn.TEXTJOIN(\",\",TRUE,IF(Prestation[DossierCode]=Prestation[[#This Row],[DossierCode]],Prestation[Collaborateur unique],\"\"))","v":"0"}]
[null,null,null,null,null,null,null,null,null,null,null,null,null,null,null,null,null,null,null,null,null,null,null,null,null,null,null,null,null,null,null,null,null,null,null,null,null,null,null,null,null,null,null,null,null,null,null,null,null,null,null,null,null,null,null,null,null,null,null,null,null,null,null,null,null,null,null,null,{"$f":"Prestation[[#This Row],[CollaborateurTrigramme]]","v":0},{"$f":"Prestation[[#This Row],[DossierCode]]","v":0},{"$f":"_xlfn.CONCAT(Prestation[[#This Row],[DossierCode]],\"-\",Prestation[[#This Row],[CollaborateurTrigramme]])","v":"-"},{"$f":"ROW(Prestation[[#This Row],[Clés dossier et collaborateur]])","v":130},{"$f":"_xlfn.MINIFS(Prestation[Numéro de ligne],Prestation[Clés dossier et collaborateur],Prestation[[#This Row],[Clés dossier et collaborateur]])","v":6},{"$f":"IF(Prestation[[#This Row],[Numéro min de ligne pour la clé]]=Prestation[[#This Row],[Numéro de ligne]],Prestation[[#This Row],[Rappel collaborateur]],\"\")","v":""},{"$f":"_xlfn.TEXTJOIN(\",\",TRUE,IF(Prestation[DossierCode]=Prestation[[#This Row],[DossierCode]],Prestation[Collaborateur unique],\"\"))","v":"0"}]

{"sheet":"BI - HON COL","index":9,"n_rows":5,"n_cols":24,"rows_kept":5,"cut":false,"hidden":false,"merged":[]}
[]
[null,"HONORAIRES COLLABORATEURS"]
[null,"EXPORT DE DONNEES"]
[]
[null,"HonoraireId","DateFacture","FactureNumero","FactureLibelle","CollaborateurId","RoleDossier","CollaborateurNomComplet","CollaborateurCivilite","CollaborateurNom","CollaborateurPrenom","CollaborateurTrigramme","Site","DossierId","DossierCode","DossierNom","DossierDateCreation","ModeRepartition","ModeRepartitionLibelle","PourcentageRepartition","MontantRepartition","Forfait","Abonnement","DateFraicheur"]

{"sheet":"BI - ECR","index":10,"n_rows":5,"n_cols":51,"rows_kept":5,"cut":false,"hidden":false,"merged":[]}
[]
[null,"ECRITURES"]
[null,"EXPORT DE DONNEES"]
[]
[null,"HonoraireId","DateFacture","FactureNumero","FactureLibelle","NumeroPiece","DateHistorique","LienFactureId","ClientId","ClientType","ClientNom","CodeTVA","LibelleTVA","TauxTVA","CodeTVAExo","LibelleTVAExo","TauxTVAExo","Territoire","CollaborateurId","CollaborateurNomComplet","CollaborateurCivilite","CollaborateurNom","CollaborateurPrenom","CollaborateurTrigramme","DossierId","DossierCode","DossierNom","DossierDateCreation","ModeReglement","TypedePiece","Evenement","Abonnement","Forfait","TotalHT","TotalTTC","TotalReglementHT","TotalReglementTTC","TotalHonoraireHT","TotalFraisHT","TotalDeboursHT","TotalReglementHonoraireHT","TotalReglementFraisHT","TotalReglementDeboursHT","RemiseHT","MajorationHT","PrestationFacturableHT","Partiel","Lettree","Annulee","LettrageId","DateFraicheur"]